Ref No,Fund Type,Dept,Cost Centre Description    ,Description    ,Creditor Name    ,GL Code Net Amount,Payment date        
2,Revenue,CAHD,Bed Purchasing - South,Permanent Residential,.,1580.54, 12-Apr-2016
3,Revenue,CAHD,Bed Purchasing - South,Permanent Nursing,.,865.02, 12-Apr-2016
4,Revenue,CAHD,18-25 Year Olds,Permanent Residential,1 St Georges House,13443.26, 12-Apr-2016
5,Revenue,CAHD,Supporting People Programme,Grants to Voluntary Bodies,1625 Independent People,17102.24, 11-Apr-2016
6,Revenue,CAHD,Supporting People Programme,Grants to Voluntary Bodies,1625 Independent People,17102.16, 29-Apr-2016
7,Revenue,CAHD,Home Care - Elderly - North,Supported Living,3 Trees Community Support Limited,639.80, 12-Apr-2016
8,Revenue,CAHD,Home Care - Elderly - South,Day Care / Social Activities,3 Trees Community Support Ltd,90.40, 06-Apr-2016
9,Revenue,CAHD,Home Care - Elderly - North,Day Care / Social Activities,3 Trees Community Support Ltd,3412.60, 06-Apr-2016
10,Revenue,CAHD,Home Care - Elderly - North,Supported Living,3 Trees Community Support Ltd,9271.27, 06-Apr-2016
11,Revenue,CAHD,Home Care - Elderly - South,Day Care / Social Activities,3 Trees Community Support Ltd,90.40, 06-Apr-2016
12,Revenue,CAHD,Home Care - Elderly - North,Day Care / Social Activities,3 Trees Community Support Ltd,3100.72, 06-Apr-2016
13,Revenue,CAHD,Home Care - Elderly - North,Supported Living,3 Trees Community Support Ltd,9063.15, 06-Apr-2016
14,Revenue,CAHD,Home Care - Elderly - South,Day Care / Social Activities,3 Trees Community Support Ltd,90.40, 15-Apr-2016
15,Revenue,CAHD,Home Care - Elderly - North,Day Care / Social Activities,3 Trees Community Support Ltd,3399.04, 15-Apr-2016
16,Revenue,CAHD,Home Care - Elderly - North,Supported Living,3 Trees Community Support Ltd,8607.12, 15-Apr-2016
17,Revenue,CAHD,Bed Purchasing - South,Permanent Residential,5Th Floor Harlech Court,16349.70, 12-Apr-2016
18,Revenue,CAHD,18-25 Year Olds,Permanent Residential,5Th Floor Harlech Court,13934.62, 12-Apr-2016
19,Revenue,CAHD,18-25 Year Olds,Permanent Residential,5Th Floor Harlech Court,14211.84, 12-Apr-2016
20,Revenue,CAHD,18-25 Year Olds,Permanent Residential,5Th Floor Harlech Court,12608.98, 12-Apr-2016
21,Revenue,CAHD,Bed Purchasing - North,Respite Planned - Residential,5Th Floor Harlech Court,5835.60, 12-Apr-2016
22,Revenue,CAHD,Bed Purchasing - North,Permanent Residential,5Th Floor Harlech Court,4906.24, 12-Apr-2016
23,Revenue,CAHD,Jointly Funded H&SC Packages,Permanent Residential,5Th Floor Harlech Court,1082.75, 12-Apr-2016
24,Revenue,CAHD,Bed Purchasing - North,Permanent Residential,5Th Floor Harlech Court,2395.60, 12-Apr-2016
25,Revenue,CAHD,18-25 Year Olds,Permanent Residential,5Th Floor Harlech Court,16035.70, 12-Apr-2016
26,Revenue,CAHD,Bed Purchasing - South,Permanent Residential,5Th Floor Harlech Court,9469.50, 12-Apr-2016
27,Revenue,CAHD,Bed purchasing - S28A Under 65 - South,Permanent Residential,5Th Floor Harlech Court,9923.62, 12-Apr-2016
28,Revenue,CAHD,Bed Purchasing - South,Permanent Residential,5Th Floor Harlech Court,10425.10, 12-Apr-2016
29,Revenue,CAHD,Woodleaze,Prop.Serv. General Repairs,A G Gribble Limited,570.00, 20-Apr-2016
30,Revenue,CAHD,Bed Purchasing - North,Permanent Nursing,ABI Development Limited,7096.72, 12-Apr-2016
31,Revenue,CAHD,Day Care - South,Day Care / Social Activities,About Me Care and Support Limited,1289.54, 08-Apr-2016
32,Revenue,CAHD,Day Care - North,Day Care / Social Activities,About Me Care and Support Limited,549.98, 06-Apr-2016
33,Revenue,CAHD,Older People's Commissioned Se,Grants to Voluntary Bodies,Action for Blind People,24606.00, 05-Apr-2016
34,Revenue,CAHD,Performance Management Support,Membership Fees,ADASS,1350.00, 12-Apr-2016
35,Revenue,CAHD,Tenancy Start Up Scheme,Other Supplies & Services,Individual,725.00, 29-Apr-2016
36,Revenue,CAHD,Home Care - Elderly - South,Other Small Contracts,Agincare Chippenham,858.55, 15-Apr-2016
37,Revenue,CAHD,Home Care - Elderly - North,Other Small Contracts,Agincare Chippenham,500.50, 15-Apr-2016
38,Revenue,CAHD,Home Care - Elderly - South,Other Small Contracts,Agincare Chippenham,900.90, 15-Apr-2016
39,Revenue,CAHD,Home Care - Elderly - North,Other Small Contracts,Agincare Chippenham,504.35, 15-Apr-2016
40,Revenue,CAHD,Home Care - Elderly - South,Other Small Contracts,Agincare Chippenham,885.50, 15-Apr-2016
41,Revenue,CAHD,Home Care - Elderly - North,Other Small Contracts,Agincare Chippenham,492.80, 15-Apr-2016
42,Revenue,CAHD,Home Care - Elderly - South,Other Small Contracts,Agincare UK Limited,985.60, 19-Apr-2016
43,Revenue,CAHD,Home Care - Elderly - North,Other Small Contracts,Agincare UK Limited,596.75, 19-Apr-2016
44,Revenue,CAHD,Home Care - Elderly - South,Other Small Contracts,Agincare UK Limited,1031.80, 18-Apr-2016
45,Revenue,CAHD,Home Care - Elderly - North,Other Small Contracts,Agincare UK Limited,623.70, 18-Apr-2016
46,Revenue,CAHD,Home Care - Elderly - South,Other Small Contracts,Agincare UK Limited,977.90, 18-Apr-2016
47,Revenue,CAHD,Home Care - Elderly - North,Other Small Contracts,Agincare UK Limited,500.50, 18-Apr-2016
48,Revenue,CAHD,Home Care - Elderly - North,Other Small Contracts,Agincare UK Nutfield,1617.00, 18-Apr-2016
49,Revenue,CAHD,Home Care - Elderly - South,Other Small Contracts,AliMo Care Ltd,1299.98, 06-Apr-2016
50,Revenue,CAHD,Home Care - Elderly - South,Other Small Contracts,AliMo Care Ltd,1220.56, 13-Apr-2016
51,Revenue,CAHD,Home Care - Elderly - South,Other Small Contracts,AliMo Care Ltd,1245.64, 29-Apr-2016
52,Revenue,CAHD,Bed Purchasing - South,Permanent Nursing,Ambleside Nusing Ho!,1539.18, 12-Apr-2016
53,Revenue,CAHD,Bed Purchasing - Southmead Hospital,Permanent Nursing,Amerind Grove Nursing Home,1937.66, 12-Apr-2016
54,Revenue,CAHD,Bed Purchasing - Southmead Hospital,Permanent Nursing,Amerind Grove Nursing Home,1703.80, 12-Apr-2016
55,Revenue,CAHD,Direct Payments - Phys Dis - North,Grants to Voluntary Bodies,Aquarium Card Management Solutions Ltd,2043.50, 29-Apr-2016
56,Revenue,CAHD,Bed Purchasing - North,Permanent Residential,Ark Care Homes Ltd,10421.38, 12-Apr-2016
57,Revenue,CAHD,S117 Placements PCT,Permanent Residential,Ash View House,7100.72, 12-Apr-2016
58,Revenue,CAHD,18-25 Year Olds,Permanent Residential,Ash View House,6270.86, 12-Apr-2016
59,Revenue,CAHD,Section 117 Placements MH Younger,Permanent Residential,Ash View House,2329.26, 12-Apr-2016
60,Revenue,CAHD,Jointly Funded H&SC Packages,Permanent Residential,Ash View House,998.26, 12-Apr-2016
61,Revenue,CAHD,Section 117 Placements MH Younger,Permanent Residential,Ash View House,1641.44, 12-Apr-2016
62,Revenue,CAHD,Jointly Funded H&SC Packages,Permanent Residential,Ash View House,703.47, 12-Apr-2016
63,Revenue,CAHD,Section 117 Placements MH Younger,Permanent Residential,Ash View House,937.97, 12-Apr-2016
64,Revenue,CAHD,Bed purchasing - Elderly S117 - South,Permanent Residential,Ash View House,6289.24, 12-Apr-2016
65,Revenue,CAHD,Bed Purchasing - North,Permanent Residential,Aspects 2 Limited,6474.06, 12-Apr-2016
66,Revenue,CAHD,Supporting People Programme,Grants to Voluntary Bodies,Aspects and Milestones Trust,3298.62, 11-Apr-2016
67,Revenue,CAHD,Supporting People Programme,Grants to Voluntary Bodies,Aspects and Milestones Trust,1653.75, 11-Apr-2016
68,Revenue,CAHD,Supporting People Programme,Grants to Voluntary Bodies,Aspects and Milestones Trust,2014.37, 11-Apr-2016
69,Revenue,CAHD,Supporting People Programme,Grants to Voluntary Bodies,Aspects and Milestones Trust,2510.20, 11-Apr-2016
70,Revenue,CAHD,Supporting People Programme,Grants to Voluntary Bodies,Aspects and Milestones Trust,3298.58, 29-Apr-2016
71,Revenue,CAHD,Supporting People Programme,Grants to Voluntary Bodies,Aspects and Milestones Trust,1653.75, 29-Apr-2016
72,Revenue,CAHD,Supporting People Programme,Grants to Voluntary Bodies,Aspects and Milestones Trust,2014.33, 29-Apr-2016
73,Revenue,CAHD,Supporting People Programme,Grants to Voluntary Bodies,Aspects and Milestones Trust,2510.16, 29-Apr-2016
74,Revenue,CAHD,Bed Purchasing - South,Permanent Residential,Autism Specialised Care Homes,5713.94, 12-Apr-2016
75,Revenue,CAHD,Younger Adult Mental Health,Health Services (Third Party Payments),Avon & Wiltshire Mental Health,1666.00, 01-Apr-2016
76,Revenue,CAHD,Younger Adult Mental Health,Other Supplies & Services,Avon & Wiltshire Mental Health,461.50, 07-Apr-2016
77,Revenue,CAHD,Pathway 2 - (Interim Beds),Permanent Nursing,Avon Lodge Care Centre,10234.68, 29-Apr-2016
78,Revenue,CAHD,Training - Adult Services,Training Expenses,Bawa Healthcare & Leisure,1499.99, 28-Apr-2016
79,Revenue,CAHD,Bed Purchasing - Southmead Hospital,Permanent Nursing,Bayview Nursing & Residential Home,1499.16, 12-Apr-2016
80,Revenue,CAHD,Pathway 3 - (Complex Beds),Permanent Nursing,Beaufort Care Ltd,5200.00, 29-Apr-2016
81,Revenue,CAHD,Bed Purchasing - Elderly S117- North,Permanent Nursing,Beaufort Grange Care Home,4381.60, 12-Apr-2016
82,Revenue,CAHD,South Glos Users in South Glos Homes,Permanent Nursing,Beaufort Grange Care Home,1536.00, 12-Apr-2016
83,Revenue,CAHD,Bed Purchasing - Elderly S117- North,Permanent Nursing,Beaufort Grange Care Home,4582.96, 12-Apr-2016
84,Revenue,CAHD,South Glos Users in South Glos Homes,Permanent Nursing,Beaufort Grange Care Home,1856.00, 12-Apr-2016
85,Revenue,CAHD,South Glos Users in South Glos Homes,Permanent Nursing,Beaufort Grange Care Home,1104.00, 12-Apr-2016
86,Revenue,CAHD,Bed Purchasing - North,Permanent Residential,Beaufort House,1695.92, 12-Apr-2016
87,Revenue,CAHD,Bed Purchasing - North,Permanent Residential,Beaufort House,954.92, 12-Apr-2016
88,Revenue,CAHD,Bed Purchasing - North,Permanent Residential,Beaufort House,947.40, 12-Apr-2016
89,Revenue,CAHD,Bed Purchasing - North,Permanent Residential,Beaufort House,1229.46, 12-Apr-2016
90,Revenue,CAHD,Bed Purchasing - North,Permanent Residential,Beaufort House,1212.96, 12-Apr-2016
91,Revenue,CAHD,Bed Purchasing - North,Permanent Residential,Beaufort House,954.92, 12-Apr-2016
92,Revenue,CAHD,Bed Purchasing - North,Permanent Residential,Beaufort House,947.40, 12-Apr-2016
93,Revenue,CAHD,Bed Purchasing - North,Permanent Residential,Beaufort House,1404.92, 12-Apr-2016
94,Revenue,CAHD,Bed Purchasing - South,Permanent Residential,Beaufort House,1449.62, 12-Apr-2016
95,Revenue,CAHD,Bed Purchasing - North,Permanent Residential,Beaufort House,923.32, 12-Apr-2016
96,Revenue,CAHD,Bed Purchasing - North,Permanent Residential,Beaufort House,911.42, 12-Apr-2016
97,Revenue,CAHD,Bed Purchasing - Southmead Hospital,Permanent Residential,Beaufort House,1279.72, 12-Apr-2016
98,Revenue,CAHD,Bed purchasing - Elderly S117 - South,Permanent Residential,Beaufort House,1216.32, 12-Apr-2016
99,Revenue,CAHD,Bed purchasing - Elderly S117 - South,Permanent Residential,Beaufort House,1200.00, 12-Apr-2016
100,Revenue,CAHD,Bed Purchasing - North,Permanent Residential,Beaufort House,1374.40, 12-Apr-2016
101,Revenue,CAHD,Bed Purchasing - North,Permanent Residential,Beaufort House,1968.24, 12-Apr-2016
102,Revenue,CAHD,Bed Purchasing - North,Respite Emergency - Residential,Beaufort House,1216.32, 12-Apr-2016
103,Revenue,CAHD,Bed Purchasing - North,Respite Emergency - Residential,Beaufort House,1200.00, 12-Apr-2016
104,Revenue,CAHD,Bed Purchasing - Southmead Hospital,Permanent Residential,Beaufort House,928.60, 12-Apr-2016
105,Revenue,CAHD,Bed Purchasing - Southmead Hospital,Permanent Residential,Beaufort House,916.32, 12-Apr-2016
106,Revenue,CAHD,Bed Purchasing - South,Permanent Residential,Bedrock Lodge,3210.74, 12-Apr-2016
107,Revenue,CAHD,Bed Purchasing - South,Permanent Residential,Bedrock Lodge,2991.64, 12-Apr-2016
108,Revenue,CAHD,Section 117 Placements MH Younger,Permanent Residential,Bedrock Lodge,1897.86, 12-Apr-2016
109,Revenue,CAHD,Swift Dump Code,Permanent Residential,Beech House,3266.99, 12-Apr-2016
110,Revenue,CAHD,Bed Purchasing - North,Respite Planned - Nursing,Beech House,2380.00, 12-Apr-2016
111,Revenue,CAHD,Bed Purchasing - North,Permanent Nursing,Beech House,1582.24, 12-Apr-2016
112,Revenue,CAHD,Bed Purchasing - South,Permanent Residential,Beech House,1274.00, 12-Apr-2016
113,Revenue,CAHD,Bed Purchasing - North,Permanent Nursing,Beech House,1674.02, 12-Apr-2016
114,Revenue,CAHD,Bed Purchasing - North,Permanent Nursing,Beech House,2128.14, 12-Apr-2016
115,Revenue,CAHD,Bed Purchasing - North,Permanent Residential,Beech House,1448.00, 12-Apr-2016
116,Revenue,CAHD,Swift Dump Code,Permanent Residential,Beech House,2880.53, 12-Apr-2016
117,Revenue,CAHD,Swift Dump Code,Permanent Residential,Beech House,1681.27, 12-Apr-2016
118,Revenue,CAHD,Bed Purchasing - North,Permanent Nursing,Beech House,1088.32, 12-Apr-2016
119,Revenue,CAHD,Bed Purchasing - North,Permanent Residential,Beech House,1422.94, 12-Apr-2016
121,Revenue,CAHD,Home Care - Elderly - North,Day Care / Social Activities,Bibby Factors Bristol Limited,134.40, 06-Apr-2016
122,Revenue,CAHD,Home Care - Elderly - North,Other Small Contracts,Bibby Factors Bristol Limited,7303.80, 06-Apr-2016
123,Revenue,CAHD,Home Care - Elderly - North,Day Care / Social Activities,Bibby Factors Bristol Limited,100.80, 06-Apr-2016
124,Revenue,CAHD,Home Care - Elderly - North,Other Small Contracts,Bibby Factors Bristol Limited,7581.00, 06-Apr-2016
125,Revenue,CAHD,Home Care - Elderly - North,Day Care / Social Activities,Bibby Factors Bristol Limited,67.20, 18-Apr-2016
126,Revenue,CAHD,Home Care - Elderly - North,Other Small Contracts,Bibby Factors Bristol Limited,7534.80, 18-Apr-2016
127,Revenue,CAHD,Home Care - Elderly - North,Day Care / Social Activities,Bibby Factors Bristol Limited,134.40, 20-Apr-2016
128,Revenue,CAHD,Home Care - Elderly - North,Other Small Contracts,Bibby Factors Bristol Limited,7526.40, 20-Apr-2016
129,Revenue,CAHD,Bed Purchasing - North,Permanent Nursing,Blossom Field,2385.48, 12-Apr-2016
130,Revenue,CAHD,Bed Purchasing - Elderly S117- North,Permanent Nursing,Blossom Field,2026.00, 12-Apr-2016
131,Revenue,CAHD,Bed purchasing - Elderly S117 - South,Permanent Nursing,Blossom Field,2229.92, 12-Apr-2016
132,Revenue,CAHD,Bed purchasing - Elderly S117 - South,Permanent Nursing,Blossom Field,2200.00, 12-Apr-2016
133,Revenue,CAHD,Bed purchasing - Elderly S117 - South,Permanent Nursing,Blossom Field,2205.60, 12-Apr-2016
134,Revenue,CAHD,Bed purchasing - Elderly S117 - South,Permanent Nursing,Blossom Field,2176.00, 12-Apr-2016
135,Revenue,CAHD,South Glos Users in South Glos Homes,Permanent Nursing,Blossom Field,768.00, 12-Apr-2016
136,Revenue,CAHD,Bed Purchasing - North,Permanent Nursing,Blossom Field,2867.36, 12-Apr-2016
137,Revenue,CAHD,Bed Purchasing - North,Permanent Nursing,Blossom Field,2746.62, 12-Apr-2016
138,Revenue,CAHD,Bed Purchasing - Southmead Hospital,Permanent Nursing,Blossom Field,1219.62, 12-Apr-2016
139,Revenue,CAHD,Bed Purchasing - Southmead Hospital,Permanent Nursing,Blossom Field,773.18, 12-Apr-2016
140,Revenue,CAHD,Bed Purchasing - North,Permanent Nursing,Blossom Fields,1874.48, 18-Apr-2016
141,Revenue,CAHD,Bed Purchasing - Southmead Hospital,Permanent Nursing,Blossom Fields,2111.72, 18-Apr-2016
142,Revenue,CAHD,Bed Purchasing - North,Permanent Nursing,Blossom Fields,2616.92, 18-Apr-2016
143,Revenue,CAHD,Home Care - Elderly - South,Other Small Contracts,Bluebird Care (South Gloucestershire),742.50, 18-Apr-2016
144,Revenue,CAHD,Home Care - Elderly - North,Other Small Contracts,Bluebird Care (South Gloucestershire),2802.68, 18-Apr-2016
145,Revenue,CAHD,Home Care - Elderly - South,Other Small Contracts,Bluebird Care (South Gloucestershire),747.45, 18-Apr-2016
146,Revenue,CAHD,Home Care - Elderly - North,Other Small Contracts,Bluebird Care (South Gloucestershire),2624.48, 18-Apr-2016
147,Revenue,CAHD,Home Care - Elderly - South,Other Small Contracts,Bluebird Care (South Gloucestershire),752.40, 18-Apr-2016
148,Revenue,CAHD,Home Care - Elderly - North,Other Small Contracts,Bluebird Care (South Gloucestershire),2584.88, 18-Apr-2016
149,Revenue,CAHD,Home Care - Elderly - South,Other Small Contracts,Bluebird Care (South Gloucestershire),742.50, 18-Apr-2016
150,Revenue,CAHD,Home Care - Elderly - North,Other Small Contracts,Bluebird Care (South Gloucestershire),2654.18, 18-Apr-2016
151,Revenue,CAHD,Training - Adult Services,Training Expenses,Bob Dawson,975.00, 14-Apr-2016
152,Revenue,CAHD,NTS Grant - Trainee Social Wor,Training Expenses,Bournemouth University,595.00, 01-Apr-2016
153,Revenue,CAHD,Bed purchasing - S28A Under 65 - South,Permanent Residential,Bradbury House,4323.70, 12-Apr-2016
154,Revenue,CAHD,Bed Purchasing - South,Permanent Residential,Bradbury House,7890.46, 12-Apr-2016
155,Revenue,CAHD,Bed purchasing - S28A Under 65 - South,Permanent Residential,Bradbury House,6431.77, 12-Apr-2016
156,Revenue,CAHD,18-25 Year Olds,Permanent Residential,Bradbury House,8918.58, 12-Apr-2016
157,Revenue,CAHD,Bed purchasing - Elderly S117 - South,Permanent Residential,Bradbury House,4231.28, 12-Apr-2016
158,Revenue,CAHD,Jointly Funded H&SC Packages,Permanent Residential,Bradbury House,1572.04, 12-Apr-2016
159,Revenue,CAHD,Bed purchasing - Elderly S117 - South,Permanent Residential,Bradbury House,2981.79, 12-Apr-2016
160,Revenue,CAHD,Jointly Funded H&SC Packages,Permanent Residential,Bradbury House,1107.83, 12-Apr-2016
161,Revenue,CAHD,Bed purchasing - Elderly S117 - South,Permanent Residential,Bradbury House,1635.85, 12-Apr-2016
162,Revenue,CAHD,Bed Purchasing - North,Permanent Residential,Bradley House,1551.48, 12-Apr-2016
163,Revenue,CAHD,Bed Purchasing - South,Permanent Nursing,Brandon Trust,21560.04, 12-Apr-2016
164,Revenue,CAHD,Bed Purchasing - South,Permanent Nursing,Brandon Trust,5629.84, 12-Apr-2016
165,Revenue,CAHD,Bed Purchasing - S28A - Over 65- North,Permanent Residential,Brandon Trust,3142.38, 12-Apr-2016
166,Revenue,CAHD,Bed Purchasing - South,Permanent Residential,Brandon Trust,10453.18, 12-Apr-2016
167,Revenue,CAHD,Bed Purchasing - South,Permanent Residential,Brandon Trust,4110.70, 12-Apr-2016
168,Revenue,CAHD,Bed Purchasing - Southmead Hospital,Permanent Nursing,Brandon Trust,13136.70, 12-Apr-2016
169,Revenue,CAHD,Bed Purchasing - Southmead Hospital,Permanent Nursing,Brandon Trust,4633.06, 12-Apr-2016
170,Revenue,CAHD,Bed Purchasing - South,Permanent Nursing,Brandon Trust,5129.30, 12-Apr-2016
171,Revenue,CAHD,Bed purchasing - S28A Under 65 - South,Permanent Nursing,Brandon Trust,2787.16, 12-Apr-2016
172,Revenue,CAHD,Bed purchasing - S28A Under 65 - South,Permanent Nursing,Brandon Trust,2737.02, 12-Apr-2016
173,Revenue,CAHD,Bed purchasing - S28A Under 65 - South,Permanent Residential,Brandon Trust,4392.82, 12-Apr-2016
174,Revenue,CAHD,Bed Purchasing - LD S28A- Over 65- South,Permanent Nursing,Brandon Trust,5220.88, 12-Apr-2016
175,Revenue,CAHD,Bed Purchasing - LD S28A- Over 65- South,Permanent Nursing,Brandon Trust,4934.86, 12-Apr-2016
176,Revenue,CAHD,Bed Purchasing - South,Permanent Residential,Brandon Trust,3334.58, 12-Apr-2016
177,Revenue,CAHD,Bed purchasing - S28A Under 65 - South,Permanent Residential,Brandon Trust,2667.96, 12-Apr-2016
178,Revenue,CAHD,Bed purchasing - S28A Under 65 - South,Permanent Residential,Brandon Trust,2630.00, 12-Apr-2016
179,Revenue,CAHD,Bed purchasing - S28A Under 65 - South,Permanent Residential,Brandon Trust,2696.48, 12-Apr-2016
180,Revenue,CAHD,Bed purchasing - S28A Under 65 - South,Permanent Residential,Brandon Trust,2658.14, 12-Apr-2016
181,Revenue,CAHD,Bed purchasing - S28A Under 65 - South,Permanent Nursing,Brandon Trust,2748.06, 12-Apr-2016
182,Revenue,CAHD,Bed purchasing - S28A Under 65 - South,Permanent Nursing,Brandon Trust,2709.02, 12-Apr-2016
183,Revenue,CAHD,Bed purchasing -S28A  Under 65 - North,Permanent Nursing,Brandon Trust,4870.96, 12-Apr-2016
184,Revenue,CAHD,Bed purchasing - S28A Under 65 - South,Permanent Residential,Brandon Trust,2696.48, 12-Apr-2016
185,Revenue,CAHD,Bed purchasing - S28A Under 65 - South,Permanent Residential,Brandon Trust,2658.14, 12-Apr-2016
186,Revenue,CAHD,Bed Purchasing - LD S28A- Over 65- South,Permanent Residential,Brandon Trust,4822.68, 12-Apr-2016
187,Revenue,CAHD,Bed Purchasing - North,Permanent Residential,Bridge House Care Home,777.40, 12-Apr-2016
188,Revenue,CAHD,Bed Purchasing - North,Permanent Residential,Bridge House Care Home,766.80, 12-Apr-2016
189,Revenue,CAHD,Bed Purchasing - North,Permanent Residential,Bridge House Care Home,1342.84, 12-Apr-2016
190,Revenue,CAHD,Bed Purchasing - North,Permanent Residential,Bridge House Care Home,1084.50, 12-Apr-2016
191,Revenue,CAHD,Bed Purchasing - North,Permanent Residential,Bridge House Care Home,774.98, 12-Apr-2016
192,Revenue,CAHD,Bed Purchasing - North,Permanent Residential,Bridge House Care Home,765.74, 12-Apr-2016
193,Revenue,CAHD,Bed Purchasing - North,Permanent Residential,Bridge House Care Home,775.40, 12-Apr-2016
194,Revenue,CAHD,Bed Purchasing - North,Permanent Residential,Bridge House Care Home,772.30, 12-Apr-2016
195,Revenue,CAHD,Bed Purchasing - North,Permanent Residential,Bridgwater Court,10124.06, 12-Apr-2016
196,Revenue,CAHD,Bed Purchasing - South,Permanent Residential,Brightbow,2122.88, 12-Apr-2016
197,Revenue,CAHD,MH Purchasing - Younger,Permanent Residential,Brightbow,1511.84, 12-Apr-2016
198,Revenue,CAHD,Older People's Commissioned Se,Grants to Voluntary Bodies,Bristol Area Stroke Foundation,17419.00, 05-Apr-2016
199,Revenue,CAHD,Supporting People Programme,Grants to Voluntary Bodies,Bristol Missing Link,2039.70, 11-Apr-2016
200,Revenue,CAHD,Supporting People Programme,Grants to Voluntary Bodies,Bristol Missing Link,1484.70, 11-Apr-2016
201,Revenue,CAHD,Supporting People Programme,Grants to Voluntary Bodies,Bristol Missing Link,2039.66, 29-Apr-2016
202,Revenue,CAHD,Supporting People Programme,Grants to Voluntary Bodies,Bristol Missing Link,1484.66, 29-Apr-2016
203,Revenue,CAHD,Home Care - Elderly - North,SU Employment Support,Britannia House,693.60, 12-Apr-2016
204,Revenue,CAHD,Home Care - Elderly - North,Day Care / Social Activities,Britannia House,924.80, 12-Apr-2016
205,Revenue,CAHD,Home Care - Elderly - North,Day Care / Social Activities,Britannia House,693.60, 12-Apr-2016
206,Revenue,CAHD,Home Care - Elderly - North,Day Care / Social Activities,Britannia House,693.60, 12-Apr-2016
207,Revenue,CAHD,Home Care - Elderly - North,Day Care / Social Activities,Britannia House,924.80, 12-Apr-2016
208,Revenue,CAHD,Home Care - Elderly - South,Day Care / Social Activities,Britannia House,1156.00, 12-Apr-2016
209,Revenue,CAHD,Home Care - Elderly - South,Day Care / Social Activities,Britannia House,693.60, 12-Apr-2016
210,Revenue,CAHD,Home Care - Elderly - South,Day Care / Social Activities,Britannia House,693.60, 12-Apr-2016
211,Revenue,CAHD,Home Care - Elderly - South,Day Care / Social Activities,Britannia House,693.60, 12-Apr-2016
212,Revenue,CAHD,User Involvement,"Provisions (Food, etc)",British Youth Council,500.00, 06-Apr-2016
213,Revenue,CAHD,Supporting People Programme,Grants to Voluntary Bodies,Bromford Housing Group,14395.12, 11-Apr-2016
214,Revenue,CAHD,Supporting People Programme,Grants to Voluntary Bodies,Bromford Housing Group,14395.08, 29-Apr-2016
215,Revenue,CAHD,Home Care - Elderly - North,Private & Voluntary Home Care,Brunelcare,23822.65, 04-Apr-2016
216,Revenue,CAHD,Home Care - Elderly - North,Private & Voluntary Home Care,Brunelcare,23822.65, 11-Apr-2016
217,Revenue,CAHD,Home Care - Elderly - North,Private & Voluntary Home Care,Brunelcare,23822.65, 18-Apr-2016
218,Revenue,CAHD,Home Care - Elderly - North,Private & Voluntary Home Care,Brunelcare,23822.65, 25-Apr-2016
219,Revenue,CAHD,Home Care - Elderly - North,Private & Voluntary Home Care,Brunelcare,23822.65, 29-Apr-2016
220,Revenue,CAHD,Bed Purchasing - Southmead Hospital,Permanent Nursing,Brunelcare,2253.74, 15-Apr-2016
221,Revenue,CAHD,Bed Purchasing - South,Permanent Nursing,Brunelcare,1108.43, 15-Apr-2016
222,Revenue,CAHD,Bed Purchasing - South,Permanent Nursing,Brunelcare,2530.57, 15-Apr-2016
223,Revenue,CAHD,Bed Purchasing - Elderly S117- North,Permanent Nursing,Brunelcare,3135.43, 15-Apr-2016
224,Revenue,CAHD,Bed Purchasing - South,Permanent Nursing,Brunelcare,2320.39, 15-Apr-2016
225,Revenue,CAHD,Bed Purchasing - Southmead Hospital,Permanent Nursing,Brunelcare,2510.91, 15-Apr-2016
226,Revenue,CAHD,Bed Purchasing - Southmead Hospital,Permanent Nursing,Brunelcare,1414.62, 15-Apr-2016
227,Revenue,CAHD,Bed Purchasing - Southmead Hospital,Permanent Nursing,Brunelcare,2461.13, 15-Apr-2016
228,Revenue,CAHD,Bed Purchasing - South,Permanent Nursing,Brunelcare,2576.10, 15-Apr-2016
229,Revenue,CAHD,Bed Purchasing - South,Permanent Nursing,Brunelcare,2285.50, 15-Apr-2016
230,Revenue,CAHD,Bed purchasing - Elderly S117 - South,Permanent Nursing,Brunelcare,3135.43, 15-Apr-2016
231,Revenue,CAHD,Bed Purchasing - North,Permanent Nursing,Brunelcare,2501.61, 15-Apr-2016
232,Revenue,CAHD,Bed Purchasing - Southmead Hospital,Permanent Nursing,Brunelcare,2400.42, 15-Apr-2016
233,Revenue,CAHD,Bed Purchasing - North,Permanent Nursing,Brunelcare,2516.31, 15-Apr-2016
234,Revenue,CAHD,Bed Purchasing - North,Permanent Nursing,Brunelcare,2576.10, 15-Apr-2016
235,Revenue,CAHD,Bed Purchasing - Southmead Hospital,Permanent Nursing,Brunelcare,2576.10, 15-Apr-2016
236,Revenue,CAHD,Bed Purchasing - Southmead Hospital,Permanent Nursing,Brunelcare,2478.23, 15-Apr-2016
237,Revenue,CAHD,Bed Purchasing - Elderly S117- North,Permanent Nursing,Brunelcare,3135.43, 15-Apr-2016
238,Revenue,CAHD,Bed Purchasing - South,Permanent Nursing,Brunelcare,708.00, 15-Apr-2016
239,Revenue,CAHD,Bed Purchasing - North,Respite Planned - Nursing,Brunelcare,1517.14, 15-Apr-2016
240,Revenue,CAHD,Bed Purchasing - South,Respite Planned - Nursing,Brunelcare,708.00, 15-Apr-2016
241,Revenue,CAHD,South Glos Users in Gloucestershire Home,Permanent Nursing,Brunelcare,55897.92, 19-Apr-2016
242,Revenue,CAHD,Home Care - Elderly - South,Other Small Contracts,Brunelcare,2308.67, 18-Apr-2016
243,Revenue,CAHD,Home Care - Elderly - North,Other Small Contracts,Brunelcare,2083.86, 18-Apr-2016
244,Revenue,CAHD,Day Care - South,Day Care / Social Activities,Brunelcare,24.78, 18-Apr-2016
245,Revenue,CAHD,Home Care - Elderly - South,Other Small Contracts,Brunelcare,2131.08, 18-Apr-2016
246,Revenue,CAHD,Home Care - Elderly - North,Other Small Contracts,Brunelcare,2073.26, 18-Apr-2016
247,Revenue,CAHD,Home Care - Elderly - South,Other Small Contracts,Brunelcare,2122.82, 18-Apr-2016
248,Revenue,CAHD,Home Care - Elderly - North,Other Small Contracts,Brunelcare,1895.67, 18-Apr-2016
249,Revenue,CAHD,Home Care - Elderly - South,Other Small Contracts,Brunelcare,2126.95, 18-Apr-2016
250,Revenue,CAHD,Home Care - Elderly - North,Other Small Contracts,Brunelcare,1986.53, 18-Apr-2016
251,Revenue,CAHD,Home Care - Elderly - North,Private & Voluntary Home Care,Brunelcare,68687.62, 18-Apr-2016
252,Revenue,CAHD,Tenancy Start Up Scheme,Other Supplies & Services,Brunt & Fussell,725.00, 13-Apr-2016
253,Revenue,CAHD,Information Systems - Software,Computer Equipment - Purchase,BT Global Services Solutions,985.98, 11-Apr-2016
254,Revenue,CAHD,Information Systems - Software,Computer Equipment - Purchase,BT Global Services Solutions,985.98, 22-Apr-2016
255,Revenue,CAHD,Bed Purchasing - North,Permanent Nursing,Bupa Care Services  Bridge House,870.00, 12-Apr-2016
256,Revenue,CAHD,Jointly Funded H&SC Packages,Permanent Nursing,Bupa Care Services  Bridge House,2172.02, 12-Apr-2016
257,Revenue,CAHD,Bed Purchasing - North,Permanent Nursing,Bupa Care Services  Bridge House,612.86, 12-Apr-2016
258,Revenue,CAHD,Jointly Funded H&SC Packages,Permanent Nursing,Bupa Care Services  Bridge House,1530.86, 12-Apr-2016
259,Revenue,CAHD,Bed Purchasing - North,Permanent Nursing,Bupa Care Services  Bridge House,857.49, 12-Apr-2016
260,Revenue,CAHD,South Glos Users in all other LA Homes,Permanent Nursing,Bupa Care Services  Bridge House,616.56, 12-Apr-2016
261,Revenue,CAHD,Bed Purchasing - Southmead Hospital,Permanent Nursing,Bupa Care Services  Bridge House,826.98, 12-Apr-2016
262,Revenue,CAHD,Home Care - Elderly - North,Day Care / Social Activities,Camphill Communities Thornbury Limited,1122.90, 06-Apr-2016
263,Revenue,CAHD,Home Care - Elderly - North,Other Small Contracts,Camphill Communities Thornbury Limited,145.78, 06-Apr-2016
264,Revenue,CAHD,Home Care - Elderly - North,Supported Living,Camphill Communities Thornbury Limited,1118.96, 06-Apr-2016
265,Revenue,CAHD,Home Care - Elderly - North,Day Care / Social Activities,Camphill Communities Thornbury Limited,1107.14, 13-Apr-2016
266,Revenue,CAHD,Home Care - Elderly - North,Other Small Contracts,Camphill Communities Thornbury Limited,141.84, 13-Apr-2016
267,Revenue,CAHD,Home Care - Elderly - North,Supported Living,Camphill Communities Thornbury Limited,1268.68, 13-Apr-2016
268,Revenue,CAHD,Home Care - Elderly - North,Day Care / Social Activities,Camphill Communities Thornbury Limited,1022.49, 21-Apr-2016
269,Revenue,CAHD,Home Care - Elderly - North,Other Small Contracts,Camphill Communities Thornbury Limited,141.84, 21-Apr-2016
270,Revenue,CAHD,Home Care - Elderly - North,Supported Living,Camphill Communities Thornbury Limited,1402.64, 21-Apr-2016
271,Revenue,CAHD,Home Care - Elderly - North,Day Care / Social Activities,Camphill Communities Thornbury Limited,681.62, 29-Apr-2016
272,Revenue,CAHD,Home Care - Elderly - North,Other Small Contracts,Camphill Communities Thornbury Limited,94.56, 29-Apr-2016
273,Revenue,CAHD,Home Care - Elderly - North,Supported Living,Camphill Communities Thornbury Limited,945.60, 29-Apr-2016
274,Revenue,CAHD,Bed Purchasing - Elderly S117- North,Permanent Residential,Canjayor,2375.28, 12-Apr-2016
275,Revenue,CAHD,Information Systems - Software,Software Support & Maintenance,Capita Business Services Ltd,6000.00, 06-Apr-2016
276,Revenue,CAHD,Information Systems - Software,Computer Equipment - Purchase,Capita Business Services Ltd,181816.45, 06-Apr-2016
277,Revenue,CAHD,Information Systems - Software,Software Support & Maintenance,Capita Business Services Ltd,3200.00, 06-Apr-2016
278,Revenue,CAHD,Connecting Care,Software Support & Maintenance,Capita Business Services Ltd,59073.30, 05-Apr-2016
279,Revenue,CAHD,Home Care - Elderly - South,Other Small Contracts,Care 1st Homecare,4241.50, 29-Apr-2016
280,Revenue,CAHD,Home Care - Elderly - South,Supported Living,Care 1st Homecare,17.00, 29-Apr-2016
281,Revenue,CAHD,Home Care - Elderly - North,One-off Planned Direct Payment,Care 1st Homecare,63.75, 29-Apr-2016
282,Revenue,CAHD,Home Care - Elderly - North,Other Small Contracts,Care 1st Homecare,3038.75, 29-Apr-2016
283,Revenue,CAHD,Home Care - Elderly - South,Other Small Contracts,Care 1st Homecare,4343.50, 29-Apr-2016
284,Revenue,CAHD,Home Care - Elderly - South,Supported Living,Care 1st Homecare,25.50, 29-Apr-2016
285,Revenue,CAHD,Home Care - Elderly - North,Other Small Contracts,Care 1st Homecare,2907.00, 29-Apr-2016
286,Revenue,CAHD,Home Care - Elderly - South,Other Small Contracts,Care 1st Homecare,4343.50, 29-Apr-2016
287,Revenue,CAHD,Home Care - Elderly - South,Supported Living,Care 1st Homecare,21.25, 29-Apr-2016
288,Revenue,CAHD,Home Care - Elderly - North,Other Small Contracts,Care 1st Homecare,2788.00, 29-Apr-2016
289,Revenue,CAHD,Home Care - Elderly - South,Other Small Contracts,Care Horizons Limited,346.50, 06-Apr-2016
290,Revenue,CAHD,Home Care - Elderly - North,Day Care / Social Activities,Care Horizons Limited,153.00, 06-Apr-2016
291,Revenue,CAHD,Home Care - Elderly - North,Other Small Contracts,Care Horizons Limited,450.00, 06-Apr-2016
292,Revenue,CAHD,Home Care - Elderly - South,Other Small Contracts,Care Horizons Limited,346.50, 06-Apr-2016
293,Revenue,CAHD,Home Care - Elderly - North,Day Care / Social Activities,Care Horizons Limited,162.00, 06-Apr-2016
294,Revenue,CAHD,Home Care - Elderly - North,Other Small Contracts,Care Horizons Limited,441.00, 06-Apr-2016
295,Revenue,CAHD,Home Care - Elderly - South,Other Small Contracts,Care Horizons Limited,324.00, 06-Apr-2016
296,Revenue,CAHD,Home Care - Elderly - North,Day Care / Social Activities,Care Horizons Limited,162.00, 06-Apr-2016
297,Revenue,CAHD,Home Care - Elderly - North,Other Small Contracts,Care Horizons Limited,504.00, 06-Apr-2016
298,Revenue,CAHD,Home Care - Elderly - South,Other Small Contracts,Care Horizons Limited,297.00, 06-Apr-2016
299,Revenue,CAHD,Home Care - Elderly - North,Day Care / Social Activities,Care Horizons Limited,162.00, 06-Apr-2016
300,Revenue,CAHD,Home Care - Elderly - North,Other Small Contracts,Care Horizons Limited,373.50, 06-Apr-2016
301,Revenue,CAHD,Home Care - Elderly - South,Other Small Contracts,Care Horizons Limited,342.00, 06-Apr-2016
302,Revenue,CAHD,Home Care - Elderly - North,Day Care / Social Activities,Care Horizons Limited,166.50, 06-Apr-2016
303,Revenue,CAHD,Home Care - Elderly - North,Other Small Contracts,Care Horizons Limited,508.50, 06-Apr-2016
304,Revenue,CAHD,Home Care - Elderly - South,Other Small Contracts,Care Horizons Limited,333.00, 06-Apr-2016
305,Revenue,CAHD,Home Care - Elderly - North,Day Care / Social Activities,Care Horizons Limited,162.00, 06-Apr-2016
306,Revenue,CAHD,Home Care - Elderly - North,Other Small Contracts,Care Horizons Limited,396.00, 06-Apr-2016
307,Revenue,CAHD,Home Care - Elderly - South,Other Small Contracts,Care Horizons Limited,346.50, 06-Apr-2016
308,Revenue,CAHD,Home Care - Elderly - North,Day Care / Social Activities,Care Horizons Limited,166.50, 06-Apr-2016
309,Revenue,CAHD,Home Care - Elderly - North,Other Small Contracts,Care Horizons Limited,364.50, 06-Apr-2016
310,Revenue,CAHD,Home Care - Elderly - South,Other Small Contracts,Care Horizons Limited,342.00, 06-Apr-2016
311,Revenue,CAHD,Home Care - Elderly - North,Day Care / Social Activities,Care Horizons Limited,162.00, 06-Apr-2016
312,Revenue,CAHD,Home Care - Elderly - North,Other Small Contracts,Care Horizons Limited,490.50, 06-Apr-2016
313,Revenue,CAHD,Home Care - Elderly - South,Other Small Contracts,Care Horizons Limited,342.00, 15-Apr-2016
314,Revenue,CAHD,Home Care - Elderly - North,Day Care / Social Activities,Care Horizons Limited,157.50, 15-Apr-2016
315,Revenue,CAHD,Home Care - Elderly - North,Other Small Contracts,Care Horizons Limited,414.00, 15-Apr-2016
316,Revenue,CAHD,Home Care - Elderly - South,Other Small Contracts,Care Horizons Limited,346.50, 20-Apr-2016
317,Revenue,CAHD,Home Care - Elderly - North,Day Care / Social Activities,Care Horizons Limited,157.50, 20-Apr-2016
318,Revenue,CAHD,Home Care - Elderly - North,Other Small Contracts,Care Horizons Limited,409.50, 20-Apr-2016
319,Revenue,CAHD,Supported Living - North,Private & Voluntary Home Care,Care Horizons Limited,4040.84, 20-Apr-2016
320,Revenue,CAHD,Supported Living - North,Private & Voluntary Home Care,Care Horizons Limited,4040.85, 20-Apr-2016
321,Revenue,CAHD,Purchase of Non-Res Care - North,Day Care / Social Activities,Care Horizons Limited,1391.57, 14-Apr-2016
322,Revenue,CAHD,Home Care Monitoring (CM2000),Other Supplies & Services,Care Monitoring 2000 Limited,10182.93, 11-Apr-2016
323,Revenue,CAHD,General EPH budgets,Other Supplies & Services,Care Quality Commission,12393.00, 25-Apr-2016
324,Revenue,CAHD,Home Care - Elderly - South,Other Small Contracts,Care UK,3414.20, 19-Apr-2016
325,Revenue,CAHD,Home Care - Elderly - North,Other Small Contracts,Care UK,1373.62, 19-Apr-2016
326,Revenue,CAHD,Home Care - Elderly - South,Other Small Contracts,Carers R Us (Bristol) Limited,662.56, 18-Apr-2016
327,Revenue,CAHD,Home Care - Elderly - South,Other Small Contracts,Carers R Us (Bristol) Limited,658.52, 15-Apr-2016
328,Revenue,CAHD,Home Care - Elderly - South,Other Small Contracts,Carers R Us (Bristol) Limited,666.60, 18-Apr-2016
329,Revenue,CAHD,Home Care - Elderly - South,Other Small Contracts,Carers R Us (Bristol) Limited,686.80, 15-Apr-2016
330,Revenue,CAHD,SLA Grants - Support Serv,Grants to Voluntary Bodies,Carers Support Centre,12275.00, 05-Apr-2016
331,Revenue,CAHD,SLA Grants - Support Serv,Grants to Voluntary Bodies,Carers Support Centre,25025.00, 05-Apr-2016
332,Revenue,CAHD,Home Care - Elderly - South,Other Small Contracts,Caring Comes 1st Ltd,1144.80, 29-Apr-2016
333,Revenue,CAHD,Social Lettings Agency,Fees - General,Individual,10.53, 01-Apr-2016
334,Revenue,CAHD,Social Lettings Agency,Fees & Charges Income - General,Individual,595.11, 01-Apr-2016
335,Revenue,CAHD,Social Lettings Agency,Fees - General,Individual,10.53, 29-Apr-2016
336,Revenue,CAHD,Social Lettings Agency,Fees & Charges Income - General,Individual,595.11, 29-Apr-2016
337,Revenue,CAHD,Tenancy Start Up Scheme,Other Supplies & Services,Individual,1650.00, 29-Apr-2016
338,Revenue,CAHD,Bed Purchasing - North,Permanent Residential,Charlton House,910.82, 12-Apr-2016
339,Revenue,CAHD,Bed Purchasing - North,Permanent Residential,Charlton House,921.84, 12-Apr-2016
340,Revenue,CAHD,Training - Adult Services,Training Expenses,Chartered Management Institute,747.00, 26-Apr-2016
341,Revenue,CAHD,Home Care - Elderly - South,Other Small Contracts,Cherish Able Care Limited,4739.06, 07-Apr-2016
342,Revenue,CAHD,Home Care - Elderly - North,Other Small Contracts,Cherish Able Care Limited,324.94, 07-Apr-2016
343,Revenue,CAHD,Home Care - Elderly - South,Other Small Contracts,Cherish Able Care Limited,4916.30, 14-Apr-2016
344,Revenue,CAHD,Home Care - Elderly - North,Other Small Contracts,Cherish Able Care Limited,261.64, 14-Apr-2016
345,Revenue,CAHD,Home Care - Elderly - South,Other Small Contracts,Cherish Able Care Limited,5034.46, 21-Apr-2016
346,Revenue,CAHD,Home Care - Elderly - North,Other Small Contracts,Cherish Able Care Limited,118.16, 21-Apr-2016
347,Revenue,CAHD,Home Care - Elderly - South,Other Small Contracts,Cherish Able Care Limited,4924.74, 28-Apr-2016
348,Revenue,CAHD,Home Care - Elderly - North,Other Small Contracts,Cherish Able Care Limited,118.16, 28-Apr-2016
349,Revenue,CAHD,Bed purchasing -S28A  Under 65 - North,Permanent Residential,Chescombe Lodge,8853.94, 12-Apr-2016
350,Revenue,CAHD,Bed Purchasing - Southmead Hospital,Permanent Nursing,Cholwell House Nursing Home Ltd,1997.84, 12-Apr-2016
351,Revenue,CAHD,Tenancy Start Up Scheme,Other Supplies & Services,Individual,1500.00, 19-Apr-2016
352,Revenue,CAHD,Bed Purchasing - Southmead Hospital,Permanent Nursing,Churchill Property Services,1586.64, 12-Apr-2016
353,Revenue,CAHD,18-25 Year Olds,Permanent Residential,Citibase Watford,7139.52, 12-Apr-2016
354,Revenue,CAHD,Bed Purchasing - Elderly S117- North,Permanent Residential,Citibase Watford,1612.24, 12-Apr-2016
355,Revenue,CAHD,Jointly Funded H&SC Packages,Permanent Residential,Citibase Watford,1612.26, 12-Apr-2016
356,Revenue,CAHD,Bed Purchasing - Elderly S117- North,Permanent Residential,Citibase Watford,1289.80, 12-Apr-2016
357,Revenue,CAHD,18-25 Year Olds,Permanent Residential,Citibase Watford,5554.66, 12-Apr-2016
358,Revenue,CAHD,Bed and Breakfast,Storage & Removal,City Movers Ltd T/A City Moves,430.00, 18-Apr-2016
359,Revenue,CAHD,Bed Purchasing - South,Permanent Residential,Cleeve Lodge,571.92, 12-Apr-2016
360,Revenue,CAHD,Bed Purchasing - Southmead Hospital,Permanent Residential,Cleeve Lodge,1485.28, 12-Apr-2016
361,Revenue,CAHD,Bed Purchasing - South,Permanent Residential,Cleeve Lodge,1759.60, 12-Apr-2016
362,Revenue,CAHD,Bed Purchasing - South,Permanent Residential,Cleeve Lodge,927.70, 12-Apr-2016
363,Revenue,CAHD,Bed Purchasing - South,Permanent Residential,Cleeve Lodge,916.52, 12-Apr-2016
364,Revenue,CAHD,Bed Purchasing - South,Permanent Residential,Cleeve Lodge,926.30, 12-Apr-2016
365,Revenue,CAHD,Bed Purchasing - South,Permanent Residential,Cleeve Lodge,913.88, 12-Apr-2016
366,Revenue,CAHD,Bed Purchasing - South,Permanent Residential,Collingwood Residential Home,733.62, 12-Apr-2016
367,Revenue,CAHD,Bed Purchasing - South,Permanent Residential,Collingwood Residential Home,728.40, 12-Apr-2016
368,Revenue,CAHD,Bed Purchasing - South,Permanent Residential,Collingwood Residential Home,742.06, 12-Apr-2016
369,Revenue,CAHD,Bed Purchasing - South,Permanent Residential,Collingwood Residential Home,733.02, 12-Apr-2016
370,Revenue,CAHD,Bed Purchasing - South,Permanent Residential,Collingwood Residential Home,1401.68, 12-Apr-2016
371,Revenue,CAHD,Bed Purchasing - South,Permanent Residential,Collingwood Residential Home,1336.98, 12-Apr-2016
372,Revenue,CAHD,Bed Purchasing - South,Permanent Residential,Collingwood Residential Home,671.54, 12-Apr-2016
373,Revenue,CAHD,Bed Purchasing - South,Permanent Residential,Collingwood Residential Home,663.58, 12-Apr-2016
374,Revenue,CAHD,Bed Purchasing - South,Permanent Nursing,Community Integrated Care,670.74, 12-Apr-2016
375,Revenue,CAHD,Bed and Breakfast,Bed & Breakfast,Connolly & Callaghan Limited,476.00, 12-Apr-2016
376,Revenue,CAHD,Bed and Breakfast,Bed & Breakfast,Connolly & Callaghan Limited,651.00, 19-Apr-2016
377,Revenue,CAHD,Bed and Breakfast,Bed & Breakfast,Connolly & Callaghan Limited,581.00, 13-Apr-2016
378,Revenue,CAHD,Bed and Breakfast,Bed & Breakfast,Connolly & Callaghan Limited,441.00, 12-Apr-2016
379,Revenue,CAHD,Bed and Breakfast,Bed & Breakfast,Connolly & Callaghan Limited,546.00, 12-Apr-2016
380,Revenue,CAHD,Bed and Breakfast,Bed & Breakfast,Connolly & Callaghan Limited,700.00, 12-Apr-2016
381,Revenue,CAHD,Bed and Breakfast,Bed & Breakfast,Connolly & Callaghan Limited,476.00, 13-Apr-2016
382,Revenue,CAHD,Bed and Breakfast,Bed & Breakfast,Connolly & Callaghan Limited,546.00, 19-Apr-2016
383,Revenue,CAHD,Bed and Breakfast,Bed & Breakfast,Connolly & Callaghan Limited,476.00, 12-Apr-2016
384,Revenue,CAHD,Bed and Breakfast,Bed & Breakfast,Connolly & Callaghan Limited,546.00, 12-Apr-2016
385,Revenue,CAHD,Bed and Breakfast,Bed & Breakfast,Connolly & Callaghan Limited,441.00, 12-Apr-2016
386,Revenue,CAHD,Bed and Breakfast,Bed & Breakfast,Connolly & Callaghan Limited,616.00, 12-Apr-2016
387,Revenue,CAHD,Bed and Breakfast,Bed & Breakfast,Connolly & Callaghan Limited,441.00, 12-Apr-2016
388,Revenue,CAHD,Bed and Breakfast,Bed & Breakfast,Connolly & Callaghan Limited,441.00, 12-Apr-2016
389,Revenue,CAHD,Bed and Breakfast,Bed & Breakfast,Connolly & Callaghan Limited,651.00, 12-Apr-2016
390,Revenue,CAHD,Bed and Breakfast,Bed & Breakfast,Connolly & Callaghan Limited,476.00, 12-Apr-2016
391,Revenue,CAHD,Bed and Breakfast,Bed & Breakfast,Connolly & Callaghan Limited,616.00, 12-Apr-2016
392,Revenue,CAHD,Bed and Breakfast,Bed & Breakfast,Connolly & Callaghan Limited,651.00, 12-Apr-2016
393,Revenue,CAHD,Bed and Breakfast,Bed & Breakfast,Connolly & Callaghan Limited,581.00, 12-Apr-2016
394,Revenue,CAHD,Bed and Breakfast,Bed & Breakfast,Connolly & Callaghan Limited,441.00, 06-Apr-2016
395,Revenue,CAHD,Bed and Breakfast,Bed & Breakfast,Connolly & Callaghan Limited,546.00, 06-Apr-2016
396,Revenue,CAHD,Bed and Breakfast,Bed & Breakfast,Connolly & Callaghan Limited,501.00, 07-Apr-2016
397,Revenue,CAHD,Bed and Breakfast,Bed & Breakfast,Connolly & Callaghan Limited,546.00, 07-Apr-2016
398,Revenue,CAHD,Bed and Breakfast,Bed & Breakfast,Connolly & Callaghan Limited,476.00, 07-Apr-2016
399,Revenue,CAHD,Bed and Breakfast,Bed & Breakfast,Connolly & Callaghan Limited,441.00, 06-Apr-2016
400,Revenue,CAHD,Bed and Breakfast,Bed & Breakfast,Connolly & Callaghan Limited,616.00, 07-Apr-2016
401,Revenue,CAHD,Bed and Breakfast,Bed & Breakfast,Connolly & Callaghan Limited,441.00, 06-Apr-2016
402,Revenue,CAHD,Bed and Breakfast,Bed & Breakfast,Connolly & Callaghan Limited,651.00, 07-Apr-2016
403,Revenue,CAHD,Bed and Breakfast,Bed & Breakfast,Connolly & Callaghan Limited,581.00, 06-Apr-2016
404,Revenue,CAHD,Bed and Breakfast,Bed & Breakfast,Connolly & Callaghan Limited,476.00, 11-Apr-2016
405,Revenue,CAHD,Bed and Breakfast,Bed & Breakfast,Connolly & Callaghan Limited,581.00, 19-Apr-2016
406,Revenue,CAHD,Bed and Breakfast,Bed & Breakfast,Connolly & Callaghan Limited,441.00, 11-Apr-2016
407,Revenue,CAHD,Bed and Breakfast,Bed & Breakfast,Connolly & Callaghan Limited,651.00, 11-Apr-2016
408,Revenue,CAHD,Bed and Breakfast,Bed & Breakfast,Connolly & Callaghan Limited,546.00, 11-Apr-2016
409,Revenue,CAHD,Bed and Breakfast,Bed & Breakfast,Connolly & Callaghan Limited,511.00, 11-Apr-2016
410,Revenue,CAHD,Bed and Breakfast,Bed & Breakfast,Connolly & Callaghan Limited,476.00, 11-Apr-2016
411,Revenue,CAHD,Bed and Breakfast,Bed & Breakfast,Connolly & Callaghan Limited,441.00, 11-Apr-2016
412,Revenue,CAHD,Bed and Breakfast,Bed & Breakfast,Connolly & Callaghan Limited,441.00, 11-Apr-2016
413,Revenue,CAHD,Bed and Breakfast,Bed & Breakfast,Connolly & Callaghan Limited,616.00, 11-Apr-2016
414,Revenue,CAHD,Bed and Breakfast,Bed & Breakfast,Connolly & Callaghan Limited,441.00, 11-Apr-2016
415,Revenue,CAHD,Bed and Breakfast,Bed & Breakfast,Connolly & Callaghan Limited,651.00, 11-Apr-2016
416,Revenue,CAHD,Bed and Breakfast,Bed & Breakfast,Connolly & Callaghan Limited,581.00, 11-Apr-2016
417,Revenue,CAHD,Bed and Breakfast,Bed & Breakfast,Connolly & Callaghan Limited,581.00, 19-Apr-2016
418,Revenue,CAHD,Bed and Breakfast,Bed & Breakfast,Connolly & Callaghan Limited,441.00, 19-Apr-2016
419,Revenue,CAHD,Bed and Breakfast,Bed & Breakfast,Connolly & Callaghan Limited,651.00, 19-Apr-2016
420,Revenue,CAHD,Bed and Breakfast,Bed & Breakfast,Connolly & Callaghan Limited,511.00, 19-Apr-2016
421,Revenue,CAHD,Bed and Breakfast,Bed & Breakfast,Connolly & Callaghan Limited,476.00, 19-Apr-2016
422,Revenue,CAHD,Bed and Breakfast,Bed & Breakfast,Connolly & Callaghan Limited,441.00, 22-Apr-2016
423,Revenue,CAHD,Bed and Breakfast,Bed & Breakfast,Connolly & Callaghan Limited,441.00, 19-Apr-2016
424,Revenue,CAHD,Bed and Breakfast,Bed & Breakfast,Connolly & Callaghan Limited,616.00, 19-Apr-2016
425,Revenue,CAHD,Bed and Breakfast,Bed & Breakfast,Connolly & Callaghan Limited,441.00, 19-Apr-2016
426,Revenue,CAHD,Bed and Breakfast,Bed & Breakfast,Connolly & Callaghan Limited,651.00, 19-Apr-2016
427,Revenue,CAHD,Bed and Breakfast,Bed & Breakfast,Connolly & Callaghan Limited,581.00, 19-Apr-2016
428,Revenue,CAHD,Bed and Breakfast,Bed & Breakfast,Connolly & Callaghan Limited,546.00, 19-Apr-2016
429,Revenue,CAHD,Bed and Breakfast,Bed & Breakfast,Connolly & Callaghan Limited,476.00, 27-Apr-2016
430,Revenue,CAHD,Bed and Breakfast,Bed & Breakfast,Connolly & Callaghan Limited,529.20, 25-Apr-2016
431,Revenue,CAHD,Bed and Breakfast,Bed & Breakfast,Connolly & Callaghan Limited,651.00, 25-Apr-2016
432,Revenue,CAHD,Bed and Breakfast,Bed & Breakfast,Connolly & Callaghan Limited,546.00, 28-Apr-2016
433,Revenue,CAHD,Bed and Breakfast,Bed & Breakfast,Connolly & Callaghan Limited,511.00, 27-Apr-2016
434,Revenue,CAHD,Bed and Breakfast,Bed & Breakfast,Connolly & Callaghan Limited,476.00, 27-Apr-2016
435,Revenue,CAHD,Bed and Breakfast,Bed & Breakfast,Connolly & Callaghan Limited,441.00, 25-Apr-2016
436,Revenue,CAHD,Bed and Breakfast,Bed & Breakfast,Connolly & Callaghan Limited,441.00, 25-Apr-2016
437,Revenue,CAHD,Bed and Breakfast,Bed & Breakfast,Connolly & Callaghan Limited,441.00, 25-Apr-2016
438,Revenue,CAHD,Bed and Breakfast,Bed & Breakfast,Connolly & Callaghan Limited,651.00, 27-Apr-2016
439,Revenue,CAHD,Bed and Breakfast,Bed & Breakfast,Connolly & Callaghan Limited,581.00, 25-Apr-2016
440,Revenue,CAHD,Bed and Breakfast,Bed & Breakfast,Connolly & Callaghan Limited,546.00, 25-Apr-2016
441,Revenue,CAHD,Bed and Breakfast,Bed & Breakfast,Connolly & Callaghan Limited,616.00, 27-Apr-2016
442,Revenue,CAHD,Bed and Breakfast,Bed & Breakfast,Connolly & Callaghan Limited,511.00, 29-Apr-2016
443,Revenue,CAHD,Bed and Breakfast,Bed & Breakfast,Connolly & Callaghan Limited,441.00, 29-Apr-2016
444,Revenue,CAHD,Bed and Breakfast,Bed & Breakfast,Connolly & Callaghan Limited,441.00, 29-Apr-2016
445,Revenue,CAHD,Bed and Breakfast,Bed & Breakfast,Connolly & Callaghan Limited,441.00, 29-Apr-2016
446,Revenue,CAHD,Bed and Breakfast,Bed & Breakfast,Connolly & Callaghan Limited,651.00, 29-Apr-2016
447,Revenue,CAHD,Bed and Breakfast,Bed & Breakfast,Connolly & Callaghan Limited,581.00, 29-Apr-2016
448,Revenue,CAHD,Bed and Breakfast,Bed & Breakfast,Connolly & Callaghan Limited,546.00, 29-Apr-2016
449,Revenue,CAHD,Bed and Breakfast,Bed & Breakfast,Connolly & Callaghan Limited,476.00, 19-Apr-2016
450,Revenue,CAHD,Bed Purchasing - S28A - Over 65- North,Permanent Residential,Cream Ii Ltd  Longrun House,8154.76, 12-Apr-2016
451,Revenue,CAHD,Bed Purchasing - South,Permanent Residential,Cream Ii Ltd  Longrun House,1459.76, 12-Apr-2016
452,Revenue,CAHD,Jointly Funded H&SC Packages,Permanent Residential,Cream Ii Ltd  Longrun House,1423.58, 12-Apr-2016
453,Revenue,CAHD,Bed Purchasing - South,Permanent Residential,Cream Ii Ltd  Longrun House,1028.70, 12-Apr-2016
454,Revenue,CAHD,Jointly Funded H&SC Packages,Permanent Residential,Cream Ii Ltd  Longrun House,1003.20, 12-Apr-2016
455,Revenue,CAHD,Bed Purchasing - South,Permanent Residential,Cream Ii Ltd  Longrun House,812.76, 12-Apr-2016
456,Revenue,CAHD,Bed purchasing -S28A  Under 65 - North,Permanent Residential,Creedy Court,9454.08, 12-Apr-2016
457,Revenue,CAHD,Bed Purchasing - S28A - Over 65- North,Permanent Residential,Creedy Court,7854.00, 12-Apr-2016
458,Revenue,CAHD,Bed Purchasing - North,Permanent Residential,Creedy Court,12806.04, 12-Apr-2016
459,Revenue,CAHD,Bed Purchasing - South,Permanent Residential,Daneswood,11191.50, 12-Apr-2016
460,Revenue,CAHD,Bed Purchasing - North,Permanent Residential,Daneswood,9278.78, 12-Apr-2016
461,Revenue,CAHD,Bed Purchasing - Elderly S117- North,Permanent Nursing,Danshell Healthcare Group,5142.86, 12-Apr-2016
462,Revenue,CAHD,Jointly Funded H&SC Packages,Permanent Nursing,Danshell Healthcare Group,763.14, 12-Apr-2016
463,Revenue,CAHD,Bed Purchasing - Elderly S117- North,Permanent Nursing,Danshell Healthcare Group,3624.19, 12-Apr-2016
464,Revenue,CAHD,Jointly Funded H&SC Packages,Permanent Nursing,Danshell Healthcare Group,537.79, 12-Apr-2016
465,Revenue,CAHD,Learning Difficulties PSL,Other Supplies & Services,Individual,2105.50, 22-Apr-2016
466,Revenue,CAHD,Community Support - North,Preventative Assistance,Dean Healthcare South West Ltd,737.26, 13-Apr-2016
467,Revenue,CAHD,Community Support - North,Preventative Assistance,Dean Healthcare South West Ltd,590.53, 13-Apr-2016
468,Revenue,CAHD,SLA Grants - Support Serv,Grants to Voluntary Bodies,Delia Robins,500.00, 01-Apr-2016
469,Revenue,CAHD,Home Care - Elderly - South,Supported Living,Design House,2674.68, 12-Apr-2016
470,Revenue,CAHD,Home Care - Elderly - South,Supported Living,Design House,2859.20, 12-Apr-2016
471,Revenue,CAHD,Home Care - Elderly - South,Supported Living,Design House,2924.32, 12-Apr-2016
472,Revenue,CAHD,Home Care - Elderly - South,Supported Living,Design House,2794.08, 12-Apr-2016
473,Revenue,CAHD,Home Care - Elderly - North,Day Care / Social Activities,Design House,2340.00, 12-Apr-2016
474,Revenue,CAHD,Home Care - Elderly - South,Supported Living,Design House,2463.04, 12-Apr-2016
475,Revenue,CAHD,Home Care - Elderly - South,Supported Living,Design House,2463.04, 12-Apr-2016
476,Revenue,CAHD,Home Care - Elderly - South,Supported Living,Design House,2349.08, 12-Apr-2016
477,Revenue,CAHD,Home Care - Elderly - South,Supported Living,Design House,3800.40, 12-Apr-2016
478,Revenue,CAHD,Home Care - Elderly - South,Supported Living,Design House,2707.24, 12-Apr-2016
479,Revenue,CAHD,Home Care - Elderly - South,Supported Living,Design House,2756.08, 12-Apr-2016
480,Revenue,CAHD,Home Care - Elderly - South,Supported Living,Design House,2107.28, 12-Apr-2016
481,Revenue,CAHD,Home Care - Elderly - South,Supported Living,Design House,2107.28, 12-Apr-2016
482,Revenue,CAHD,Bed Purchasing - South,Permanent Residential,Devon & Cornwall Autistic Community Trus,8943.92, 12-Apr-2016
483,Revenue,CAHD,Home Care - Elderly - South,Day Care / Social Activities,Dhek Bhal,235.20, 06-Apr-2016
484,Revenue,CAHD,Home Care - Elderly - South,Other Small Contracts,Dhek Bhal,274.40, 06-Apr-2016
485,Revenue,CAHD,Home Care - Elderly - North,Other Small Contracts,Dhek Bhal,117.60, 06-Apr-2016
486,Revenue,CAHD,Home Care - Elderly - South,Day Care / Social Activities,Dhek Bhal,215.60, 06-Apr-2016
487,Revenue,CAHD,Home Care - Elderly - South,Other Small Contracts,Dhek Bhal,274.40, 06-Apr-2016
488,Revenue,CAHD,Home Care - Elderly - North,Other Small Contracts,Dhek Bhal,117.60, 06-Apr-2016
489,Revenue,CAHD,Home Care - Elderly - South,Day Care / Social Activities,Dhek Bhal,196.00, 15-Apr-2016
490,Revenue,CAHD,Home Care - Elderly - South,Other Small Contracts,Dhek Bhal,269.50, 15-Apr-2016
491,Revenue,CAHD,Home Care - Elderly - North,Other Small Contracts,Dhek Bhal,117.60, 15-Apr-2016
492,Revenue,CAHD,Home Care - Elderly - South,Day Care / Social Activities,Dhek Bhal,200.90, 20-Apr-2016
493,Revenue,CAHD,Home Care - Elderly - South,Other Small Contracts,Dhek Bhal,269.50, 20-Apr-2016
494,Revenue,CAHD,Home Care - Elderly - North,Other Small Contracts,Dhek Bhal,122.50, 20-Apr-2016
495,Revenue,CAHD,Bed Purchasing - South,Permanent Residential,Dimensions  Suite 2,4969.50, 12-Apr-2016
496,Revenue,CAHD,Home Care - Elderly - South,Day Care / Social Activities,DoCare Ltd,40.24, 18-Apr-2016
497,Revenue,CAHD,Home Care - Elderly - South,Other Small Contracts,DoCare Ltd,744.44, 18-Apr-2016
498,Revenue,CAHD,Home Care - Elderly - North,Other Small Contracts,DoCare Ltd,2162.90, 18-Apr-2016
499,Revenue,CAHD,Home Care - Elderly - South,Day Care / Social Activities,DoCare Ltd,75.45, 18-Apr-2016
500,Revenue,CAHD,Home Care - Elderly - South,Other Small Contracts,DoCare Ltd,653.90, 18-Apr-2016
501,Revenue,CAHD,Home Care - Elderly - North,Other Small Contracts,DoCare Ltd,2394.28, 18-Apr-2016
502,Revenue,CAHD,Social Lettings Agency,Other Supplies & Services,Individual,605.64, 22-Apr-2016
503,Revenue,CAHD,MH Purchasing - Younger,Permanent Residential,Dunraven House,1890.34, 12-Apr-2016
504,Revenue,CAHD,Bed and Breakfast,Bed & Breakfast,E J Bartlett,420.00, 06-Apr-2016
505,Revenue,CAHD,Bed and Breakfast,Bed & Breakfast,E J Bartlett,420.00, 06-Apr-2016
506,Revenue,CAHD,Bed and Breakfast,Bed & Breakfast,E J Bartlett,679.00, 06-Apr-2016
507,Revenue,CAHD,Bed and Breakfast,Bed & Breakfast,E J Bartlett,420.00, 06-Apr-2016
508,Revenue,CAHD,Bed and Breakfast,Bed & Breakfast,E J Bartlett,420.00, 06-Apr-2016
509,Revenue,CAHD,Bed and Breakfast,Bed & Breakfast,E J Bartlett,679.00, 06-Apr-2016
510,Revenue,CAHD,Bed and Breakfast,Bed & Breakfast,E J Bartlett,420.00, 12-Apr-2016
511,Revenue,CAHD,Bed and Breakfast,Bed & Breakfast,E J Bartlett,420.00, 12-Apr-2016
512,Revenue,CAHD,Bed and Breakfast,Bed & Breakfast,E J Bartlett,679.00, 12-Apr-2016
513,Revenue,CAHD,Bed and Breakfast,Bed & Breakfast,E J Bartlett,420.00, 18-Apr-2016
514,Revenue,CAHD,Bed and Breakfast,Bed & Breakfast,E J Bartlett,420.00, 18-Apr-2016
515,Revenue,CAHD,Bed and Breakfast,Bed & Breakfast,E J Bartlett,495.00, 18-Apr-2016
516,Revenue,CAHD,Bed and Breakfast,Bed & Breakfast,E J Bartlett,420.00, 18-Apr-2016
517,Revenue,CAHD,Bed and Breakfast,Bed & Breakfast,E J Bartlett,679.00, 19-Apr-2016
518,Revenue,CAHD,Bed and Breakfast,Bed & Breakfast,E J Bartlett,420.00, 25-Apr-2016
519,Revenue,CAHD,Bed and Breakfast,Bed & Breakfast,E J Bartlett,420.00, 25-Apr-2016
520,Revenue,CAHD,Bed and Breakfast,Bed & Breakfast,E J Bartlett,420.00, 25-Apr-2016
521,Revenue,CAHD,Bed and Breakfast,Bed & Breakfast,E J Bartlett,679.00, 25-Apr-2016
522,Revenue,CAHD,Bed Purchasing - North,Permanent Residential,East Court,2255.80, 12-Apr-2016
523,Revenue,CAHD,Minor Adaptations Service,Operational Equipment,Eastman & Co (Timber) Limited,609.00, 22-Apr-2016
524,Revenue,CAHD,Home Care - Elderly - South,Day Care / Social Activities,Easton Community Centre,526.08, 12-Apr-2016
525,Revenue,CAHD,Home Care - Elderly - South,Day Care / Social Activities,Easton Community Centre,526.08, 12-Apr-2016
526,Revenue,CAHD,Home Care - Elderly - North,Day Care / Social Activities,Easton Community Centre,526.08, 12-Apr-2016
527,Revenue,CAHD,Home Care - Elderly - North,Day Care / Social Activities,Easton Community Centre,526.08, 12-Apr-2016
528,Revenue,CAHD,Home Care - Elderly - South,Day Care / Social Activities,Eclipse Office Park,743.04, 12-Apr-2016
529,Revenue,CAHD,18-25 Year Olds,Day Care / Social Activities,Eclipse Office Park,650.16, 12-Apr-2016
530,Revenue,CAHD,Home Care - Elderly - North,Day Care / Social Activities,Eclipse Office Park,990.72, 12-Apr-2016
531,Revenue,CAHD,Home Care - Elderly - South,Day Care / Social Activities,Eclipse Office Park,619.20, 12-Apr-2016
532,Revenue,CAHD,Home Care - Elderly - South,Day Care / Social Activities,Eclipse Office Park,743.04, 12-Apr-2016
533,Revenue,CAHD,Home Care - Elderly - South,Day Care / Social Activities,Eclipse Office Park,866.88, 12-Apr-2016
534,Revenue,CAHD,Home Care - Elderly - South,Day Care / Social Activities,Eclipse Office Park,743.04, 12-Apr-2016
535,Revenue,CAHD,Home Care - Elderly - South,Day Care / Social Activities,Eclipse Office Park,866.88, 12-Apr-2016
536,Revenue,CAHD,Home Care - Elderly - South,Day Care / Social Activities,Eclipse Office Park,1238.40, 12-Apr-2016
537,Revenue,CAHD,Home Care - Elderly - South,Day Care / Social Activities,Eclipse Office Park,743.04, 12-Apr-2016
538,Revenue,CAHD,Home Care - Elderly - South,Day Care / Social Activities,Eclipse Office Park,866.88, 12-Apr-2016
539,Revenue,CAHD,Home Care - Elderly - South,Day Care / Social Activities,Eclipse Office Park,990.72, 12-Apr-2016
540,Revenue,CAHD,Mental Capacity Act - Advocacy,Other Supplies & Services,Edge Training & Consultancy Limited,1105.00, 11-Apr-2016
541,Revenue,CAHD,Bed Purchasing - Southmead Hospital,Permanent Residential,Edgecumbe Lodge,1788.00, 12-Apr-2016
542,Revenue,CAHD,Bed Purchasing - South,Permanent Residential,Edgecumbe Lodge,1209.14, 12-Apr-2016
543,Revenue,CAHD,Bed Purchasing - South,Permanent Residential,Edgecumbe Lodge,1066.96, 12-Apr-2016
544,Revenue,CAHD,Bed Purchasing - Southmead Hospital,Permanent Residential,Edgecumbe Lodge,1623.12, 12-Apr-2016
545,Revenue,CAHD,Bed Purchasing - North,Permanent Residential,Edgecumbe Lodge,1031.10, 12-Apr-2016
546,Revenue,CAHD,Bed Purchasing - South,Permanent Residential,Edgecumbe Lodge,1579.86, 12-Apr-2016
547,Revenue,CAHD,Bed Purchasing - South,Permanent Residential,Edgecumbe Lodge,1153.02, 12-Apr-2016
548,Revenue,CAHD,Bed Purchasing - North,Permanent Residential,Edgecumbe Lodge,1412.04, 12-Apr-2016
549,Revenue,CAHD,Bed Purchasing - North,Respite Planned - Residential,Edgemont House Ltd,3533.57, 12-Apr-2016
550,Revenue,CAHD,Bed Purchasing - South,Permanent Residential,Edgemont House Ltd,1157.04, 12-Apr-2016
551,Revenue,CAHD,Bed Purchasing - Southmead Hospital,Permanent Residential,Edgemont House Ltd,664.84, 12-Apr-2016
552,Revenue,CAHD,Bed Purchasing - Southmead Hospital,Permanent Residential,Edgemont House Ltd,661.40, 12-Apr-2016
553,Revenue,CAHD,Bed Purchasing - South,Permanent Residential,Edgemont House Ltd,664.76, 12-Apr-2016
554,Revenue,CAHD,Bed Purchasing - South,Permanent Residential,Edgemont House Ltd,655.68, 12-Apr-2016
555,Revenue,CAHD,Bed Purchasing - South,Permanent Nursing,Edgemont View Nursing Home,1405.44, 12-Apr-2016
556,Revenue,CAHD,Bed Purchasing - South,Permanent Nursing,Edgemont View Nursing Home,1725.82, 12-Apr-2016
557,Revenue,CAHD,Bed Purchasing - South,Permanent Nursing,Edgemont View Nursing Home,1462.00, 12-Apr-2016
558,Revenue,CAHD,Bed Purchasing - South,Permanent Nursing,Edgemont View Nursing Home,1914.40, 12-Apr-2016
559,Revenue,CAHD,Planning and Partnerships Procurement,Other Supplies & Services,Eldercare,1672.28, 29-Apr-2016
560,Revenue,CAHD,Supporting People Programme,Grants to Voluntary Bodies,Elim Housing Association Limited,5139.24, 11-Apr-2016
561,Revenue,CAHD,Supporting People Programme,Grants to Voluntary Bodies,Elim Housing Association Limited,5139.16, 29-Apr-2016
562,Revenue,CAHD,Home Care - Elderly - South,Day Care / Social Activities,Elite Home Care Ltd,97.24, 06-Apr-2016
563,Revenue,CAHD,Home Care - Elderly - South,Other Small Contracts,Elite Home Care Ltd,6289.66, 06-Apr-2016
564,Revenue,CAHD,Home Care - Elderly - South,Day Care / Social Activities,Elite Home Care Ltd,97.24, 19-Apr-2016
565,Revenue,CAHD,Home Care - Elderly - South,Other Small Contracts,Elite Home Care Ltd,6347.12, 19-Apr-2016
566,Revenue,CAHD,Home Care - Elderly - South,Day Care / Social Activities,Elite Home Care Ltd,101.66, 20-Apr-2016
567,Revenue,CAHD,Home Care - Elderly - South,Other Small Contracts,Elite Home Care Ltd,6585.80, 20-Apr-2016
568,Revenue,CAHD,Bed Purchasing - North,Permanent Residential,Epworth House,1057.08, 12-Apr-2016
569,Revenue,CAHD,Home Care - Elderly - South,Other Small Contracts,Everycare (Bristol) Ltd,4039.10, 26-Apr-2016
570,Revenue,CAHD,Home Care - Elderly - North,Day Care / Social Activities,Everycare (Bristol) Ltd,64.50, 26-Apr-2016
571,Revenue,CAHD,Home Care - Elderly - North,Other Small Contracts,Everycare (Bristol) Ltd,1810.30, 26-Apr-2016
572,Revenue,CAHD,Home Care - Elderly - South,Other Small Contracts,Everycare (Bristol) Ltd,3999.21, 28-Apr-2016
573,Revenue,CAHD,Home Care - Elderly - North,Other Small Contracts,Everycare (Bristol) Ltd,1638.30, 28-Apr-2016
574,Revenue,CAHD,Bed Purchasing - South,Permanent Nursing,Fairview Court,2458.08, 12-Apr-2016
575,Revenue,CAHD,Bed Purchasing - Southmead Hospital,Permanent Nursing,Fairview Court,1903.46, 12-Apr-2016
576,Revenue,CAHD,Bed Purchasing - Southmead Hospital,Permanent Nursing,Fairview Court,2158.34, 12-Apr-2016
577,Revenue,CAHD,Bed Purchasing - South,Permanent Nursing,Fairview Court,555.26, 12-Apr-2016
578,Revenue,CAHD,Bed purchasing - Elderly S117 - South,Permanent Nursing,Fairview Court,1020.00, 12-Apr-2016
579,Revenue,CAHD,Bed purchasing - Elderly S117 - South,Permanent Nursing,Fairview Court,1006.00, 12-Apr-2016
580,Revenue,CAHD,Bed Purchasing - South,Permanent Nursing,Fairview Court,783.20, 12-Apr-2016
581,Revenue,CAHD,Bed Purchasing - South,Permanent Nursing,Fairview Court,552.63, 12-Apr-2016
582,Revenue,CAHD,Bed Purchasing - South,Permanent Nursing,Fairview Court,2211.34, 12-Apr-2016
583,Revenue,CAHD,South Glos Users in South Glos Homes,Permanent Nursing,Fairview Court,7043.47, 12-Apr-2016
584,Revenue,CAHD,South Glos Users in South Glos Homes,Permanent Nursing,Fairview Court,947.44, 12-Apr-2016
585,Revenue,CAHD,Bed Purchasing - South,Permanent Nursing,Fairview Court,671.44, 12-Apr-2016
586,Revenue,CAHD,Bed Purchasing - North,Permanent Nursing,Fairview Court,2422.08, 12-Apr-2016
587,Revenue,CAHD,Bed Purchasing - South,Permanent Nursing,Fairview Court,1796.94, 12-Apr-2016
588,Revenue,CAHD,Bed Purchasing - South,Permanent Nursing,Fairview Court,2027.40, 12-Apr-2016
589,Revenue,CAHD,Bed Purchasing - South,Permanent Nursing,Fairview Court,947.44, 12-Apr-2016
590,Revenue,CAHD,Bed Purchasing - South,Permanent Nursing,Fairview Court,671.44, 12-Apr-2016
591,Revenue,CAHD,Bed Purchasing - Southmead Hospital,Permanent Nursing,Fairview Court,2364.10, 12-Apr-2016
592,Revenue,CAHD,Pathway 2 - (Interim Beds),Permanent Nursing,Fairview Court Care Home,728.57, 06-Apr-2016
593,Revenue,CAHD,Bed purchasing - Elderly S117 - South,Permanent Residential,Fairview House,1950.74, 12-Apr-2016
594,Revenue,CAHD,Bed Purchasing - Southmead Hospital,Permanent Residential,Fairview House,526.88, 12-Apr-2016
595,Revenue,CAHD,Bed Purchasing - Southmead Hospital,Permanent Residential,Fairview House,521.58, 12-Apr-2016
596,Revenue,CAHD,Bed Purchasing - Southmead Hospital,Permanent Residential,Fairview House,1833.51, 12-Apr-2016
597,Revenue,CAHD,Bed Purchasing - Southmead Hospital,Permanent Residential,Fairview House,1615.24, 12-Apr-2016
598,Revenue,CAHD,Bed Purchasing - South,Permanent Residential,Fairview House,874.20, 12-Apr-2016
599,Revenue,CAHD,Bed Purchasing - South,Permanent Residential,Fairview House,674.34, 12-Apr-2016
600,Revenue,CAHD,Bed Purchasing - South,Permanent Residential,Fairview House,1282.00, 12-Apr-2016
601,Revenue,CAHD,Bed Purchasing - South,Permanent Residential,Fairview House,978.38, 12-Apr-2016
602,Revenue,CAHD,Bed Purchasing - South,Permanent Residential,Fairview House,1230.56, 12-Apr-2016
603,Revenue,CAHD,Bed Purchasing - South,Permanent Residential,Fairview House,1140.74, 12-Apr-2016
604,Revenue,CAHD,Bed Purchasing - South,Permanent Residential,Fairview House,682.50, 12-Apr-2016
605,Revenue,CAHD,Bed Purchasing - South,Permanent Residential,Fairview House,529.27, 12-Apr-2016
606,Revenue,CAHD,Bed Purchasing - South,Permanent Residential,Fairview House,527.30, 12-Apr-2016
607,Revenue,CAHD,Bed Purchasing - South,Permanent Residential,Fairview House,522.00, 12-Apr-2016
608,Revenue,CAHD,Bed Purchasing - South,Permanent Residential,Fairview House,1465.32, 12-Apr-2016
609,Revenue,CAHD,Bed Purchasing - Southmead Hospital,Permanent Residential,Fairview House,1414.42, 12-Apr-2016
610,Revenue,CAHD,Bed Purchasing - Southmead Hospital,Permanent Residential,Faith House,565.86, 12-Apr-2016
611,Revenue,CAHD,Bed Purchasing - Southmead Hospital,Respite Planned - Residential,Faith House,4612.35, 12-Apr-2016
612,Revenue,CAHD,Bed Purchasing - Southmead Hospital,Permanent Residential,Faith House,1259.96, 12-Apr-2016
613,Revenue,CAHD,Bed Purchasing - North,Permanent Residential,Fernbank,7845.44, 12-Apr-2016
614,Revenue,CAHD,Bed Purchasing - North,Permanent Nursing,Field House Care Home,2542.88, 12-Apr-2016
615,Revenue,CAHD,Home Care - Elderly - South,Other Small Contracts,Firstpoint Homecare Ltd,1661.03, 06-Apr-2016
616,Revenue,CAHD,Home Care - Elderly - North,Other Small Contracts,Firstpoint Homecare Ltd,404.58, 06-Apr-2016
617,Revenue,CAHD,Home Care - Elderly - South,Other Small Contracts,Firstpoint Homecare Ltd,1824.41, 15-Apr-2016
618,Revenue,CAHD,Home Care - Elderly - North,Day Care / Social Activities,Firstpoint Homecare Ltd,112.81, 15-Apr-2016
619,Revenue,CAHD,Home Care - Elderly - North,Other Small Contracts,Firstpoint Homecare Ltd,291.75, 15-Apr-2016
620,Revenue,CAHD,Bed Purchasing - South,Permanent Residential,Four Seasons Health Care,1141.10, 12-Apr-2016
621,Revenue,CAHD,Home Care - Elderly - South,Day Care / Social Activities,Fourways Care Limited,465.50, 06-Apr-2016
622,Revenue,CAHD,Home Care - Elderly - South,Other Small Contracts,Fourways Care Limited,3952.00, 06-Apr-2016
623,Revenue,CAHD,Home Care - Elderly - North,Other Small Contracts,Fourways Care Limited,2119.70, 06-Apr-2016
624,Revenue,CAHD,Home Care - Elderly - South,Day Care / Social Activities,Fourways Care Limited,465.50, 08-Apr-2016
625,Revenue,CAHD,Home Care - Elderly - South,Other Small Contracts,Fourways Care Limited,4004.25, 08-Apr-2016
626,Revenue,CAHD,Home Care - Elderly - North,Other Small Contracts,Fourways Care Limited,1972.05, 08-Apr-2016
627,Revenue,CAHD,Home Care - Elderly - South,Day Care / Social Activities,Fourways Care Limited,460.75, 20-Apr-2016
628,Revenue,CAHD,Home Care - Elderly - South,Other Small Contracts,Fourways Care Limited,4346.25, 20-Apr-2016
629,Revenue,CAHD,Home Care - Elderly - North,Other Small Contracts,Fourways Care Limited,1871.90, 20-Apr-2016
630,Revenue,CAHD,Younger MH non-res purchasing,Day Care / Social Activities,Fourways Care Limited,76.00, 20-Apr-2016
631,Revenue,CAHD,Home Care - Elderly - South,Day Care / Social Activities,Fourways Care Limited,395.24, 28-Apr-2016
632,Revenue,CAHD,Home Care - Elderly - South,Other Small Contracts,Fourways Care Limited,4656.12, 28-Apr-2016
633,Revenue,CAHD,Home Care - Elderly - North,Other Small Contracts,Fourways Care Limited,2155.58, 28-Apr-2016
634,Revenue,CAHD,Younger MH non-res purchasing,Day Care / Social Activities,Fourways Care Limited,81.94, 28-Apr-2016
635,Revenue,CAHD,Supporting People Programme,Grants to Voluntary Bodies,Freeways Trust Limited,8162.62, 11-Apr-2016
636,Revenue,CAHD,Supporting People Programme,Grants to Voluntary Bodies,Freeways Trust Limited,8162.58, 29-Apr-2016
637,Revenue,CAHD,Freeways,Permanent Residential,Freeways Trust Limited,3651.28, 08-Apr-2016
638,Revenue,CAHD,Freeways,Permanent Residential,Freeways Trust Limited,2294.48, 08-Apr-2016
639,Revenue,CAHD,Freeways,Permanent Residential,Freeways Trust Limited,2372.68, 08-Apr-2016
640,Revenue,CAHD,Freeways,Permanent Residential,Freeways Trust Limited,2948.28, 08-Apr-2016
641,Revenue,CAHD,Freeways,Permanent Residential,Freeways Trust Limited,2294.48, 08-Apr-2016
642,Revenue,CAHD,Freeways,Permanent Residential,Freeways Trust Limited,3395.68, 08-Apr-2016
643,Revenue,CAHD,Freeways,Permanent Residential,Freeways Trust Limited,3560.84, 08-Apr-2016
644,Revenue,CAHD,Freeways,Permanent Residential,Freeways Trust Limited,2711.48, 08-Apr-2016
645,Revenue,CAHD,Freeways,Permanent Residential,Freeways Trust Limited,3456.40, 08-Apr-2016
646,Revenue,CAHD,Freeways,Permanent Residential,Freeways Trust Limited,3111.64, 08-Apr-2016
647,Revenue,CAHD,Freeways,Permanent Residential,Freeways Trust Limited,3608.28, 08-Apr-2016
648,Revenue,CAHD,Freeways,Permanent Residential,Freeways Trust Limited,5390.16, 08-Apr-2016
649,Revenue,CAHD,Freeways,Permanent Residential,Freeways Trust Limited,7355.16, 08-Apr-2016
650,Revenue,CAHD,Purchase of Non-Res Care - North,Day Care / Social Activities,Freeways Trust Limited,879.12, 15-Apr-2016
651,Revenue,CAHD,Bed Purchasing - North,Permanent Residential,Freeways Trust Ltd,2913.82, 12-Apr-2016
652,Revenue,CAHD,Bed purchasing - S28A Under 65 - South,Permanent Residential,Freeways Trust Ltd,2978.28, 12-Apr-2016
653,Revenue,CAHD,Bed Purchasing - North,Permanent Residential,Freeways Trust Ltd,3188.38, 12-Apr-2016
654,Revenue,CAHD,Bed Purchasing - North,Permanent Residential,Freeways Trust Ltd,2330.64, 12-Apr-2016
655,Revenue,CAHD,Bed Purchasing - North,Permanent Residential,Freeways Trust Ltd,2782.88, 12-Apr-2016
656,Revenue,CAHD,Bed Purchasing - South,Permanent Residential,Freeways Trust Ltd,3322.22, 12-Apr-2016
657,Revenue,CAHD,Bed Purchasing - North,Permanent Residential,Freeways Trust Ltd,2297.02, 12-Apr-2016
658,Revenue,CAHD,Bed Purchasing - South,Permanent Residential,Freeways Trust Ltd,2442.30, 12-Apr-2016
659,Revenue,CAHD,Bed Purchasing - North,Permanent Residential,Freeways Trust Ltd,2704.08, 12-Apr-2016
660,Revenue,CAHD,Bed Purchasing - North,Permanent Residential,Freeways Trust Ltd,3202.06, 12-Apr-2016
661,Revenue,CAHD,18-25 Year Olds,Permanent Residential,Freeways Trust Ltd,3432.82, 12-Apr-2016
662,Revenue,CAHD,Bed Purchasing - North,Permanent Residential,Freeways Trust Ltd,3895.10, 12-Apr-2016
663,Revenue,CAHD,Pathway 3 - (Complex Beds),Permanent Nursing,Frenchay House,5200.00, 18-Apr-2016
664,Revenue,CAHD,Bed Purchasing - South,Permanent Nursing,Frenchay Park Nursing Home,1516.66, 12-Apr-2016
665,Revenue,CAHD,Community Support - South,Preventative Assistance,Friends for Pets North Bristol Ltd,660.30, 29-Apr-2016
666,Revenue,CAHD,Bed Purchasing - South,Permanent Nursing,Fshc  1St Floor,533.82, 12-Apr-2016
667,Revenue,CAHD,Bed Purchasing - South,Permanent Nursing,Fshc  1St Floor,527.18, 12-Apr-2016
668,Revenue,CAHD,Bed Purchasing - South,Permanent Nursing,Fshc  1St Floor,1017.64, 12-Apr-2016
669,Revenue,CAHD,Bed Purchasing - Southmead Hospital,Permanent Nursing,Fshc  1St Floor,1316.46, 12-Apr-2016
670,Revenue,CAHD,Bed Purchasing - Southmead Hospital,Permanent Nursing,Fshc  1St Floor,1366.94, 12-Apr-2016
671,Revenue,CAHD,Bed Purchasing - Southmead Hospital,Permanent Nursing,Fshc  1St Floor,703.54, 12-Apr-2016
672,Revenue,CAHD,Bed Purchasing - Southmead Hospital,Permanent Nursing,Fshc  1St Floor,699.40, 12-Apr-2016
673,Revenue,CAHD,Bed Purchasing - Southmead Hospital,Permanent Nursing,Fshc  1St Floor,703.54, 12-Apr-2016
674,Revenue,CAHD,Bed Purchasing - Southmead Hospital,Permanent Nursing,Fshc  1St Floor,699.40, 12-Apr-2016
675,Revenue,CAHD,Bed Purchasing - Southmead Hospital,Permanent Nursing,Fshc  1St Floor,541.04, 12-Apr-2016
676,Revenue,CAHD,Bed Purchasing - Southmead Hospital,Permanent Nursing,Fshc  1St Floor,532.14, 12-Apr-2016
677,Revenue,CAHD,Bed Purchasing - South,Permanent Nursing,Fshc  1St Floor,1247.71, 12-Apr-2016
678,Revenue,CAHD,Bed Purchasing - South,Permanent Nursing,Fshc  1St Floor,879.92, 12-Apr-2016
679,Revenue,CAHD,Bed Purchasing - South,Permanent Nursing,Fshc  1St Floor,873.40, 12-Apr-2016
680,Revenue,CAHD,Bed Purchasing - Southmead Hospital,Permanent Nursing,Fshc  1St Floor,879.92, 12-Apr-2016
681,Revenue,CAHD,Bed Purchasing - Southmead Hospital,Permanent Nursing,Fshc  1St Floor,873.40, 12-Apr-2016
682,Revenue,CAHD,Bed Purchasing - Southmead Hospital,Permanent Nursing,Fshc  1St Floor,703.54, 12-Apr-2016
683,Revenue,CAHD,Bed Purchasing - Southmead Hospital,Permanent Nursing,Fshc  1St Floor,699.40, 12-Apr-2016
684,Revenue,CAHD,Bed Purchasing - Southmead Hospital,Permanent Nursing,Fshc  1St Floor,700.12, 12-Apr-2016
685,Revenue,CAHD,Bed Purchasing - Southmead Hospital,Permanent Nursing,Fshc  1St Floor,691.22, 12-Apr-2016
686,Revenue,CAHD,Bed Purchasing - South,Permanent Nursing,Fshc  1St Floor,680.94, 12-Apr-2016
687,Revenue,CAHD,Bed Purchasing - South,Permanent Nursing,Fshc  1St Floor,672.04, 12-Apr-2016
688,Revenue,CAHD,Bed Purchasing - Southmead Hospital,Permanent Nursing,Fshc  1St Floor,703.54, 12-Apr-2016
689,Revenue,CAHD,Bed Purchasing - Southmead Hospital,Permanent Nursing,Fshc  1St Floor,699.40, 12-Apr-2016
690,Revenue,CAHD,Bed Purchasing - South,Permanent Nursing,Fshc  1St Floor,1180.56, 12-Apr-2016
691,Revenue,CAHD,Bed Purchasing - North,Permanent Nursing,Fshc  1St Floor,1916.94, 12-Apr-2016
692,Revenue,CAHD,Bed Purchasing - Southmead Hospital,Permanent Nursing,Fshc  1St Floor,703.54, 12-Apr-2016
693,Revenue,CAHD,Bed Purchasing - Southmead Hospital,Permanent Nursing,Fshc  1St Floor,699.40, 12-Apr-2016
694,Revenue,CAHD,Bed Purchasing - Southmead Hospital,Permanent Nursing,Fshc  1St Floor,1215.10, 12-Apr-2016
695,Revenue,CAHD,Bed Purchasing - South,Permanent Nursing,Fshc  1St Floor,703.54, 12-Apr-2016
696,Revenue,CAHD,Bed Purchasing - South,Permanent Nursing,Fshc  1St Floor,699.40, 12-Apr-2016
697,Revenue,CAHD,Bed Purchasing - South,Permanent Nursing,Fshc  1St Floor,685.96, 12-Apr-2016
698,Revenue,CAHD,Bed Purchasing - South,Permanent Nursing,Fshc  1St Floor,677.10, 12-Apr-2016
699,Revenue,CAHD,Bed Purchasing - North,Permanent Nursing,Fshc  1St Floor,1616.34, 12-Apr-2016
700,Revenue,CAHD,Bed Purchasing - Southmead Hospital,Permanent Nursing,Fshc  1St Floor,703.54, 12-Apr-2016
701,Revenue,CAHD,Bed Purchasing - Southmead Hospital,Permanent Nursing,Fshc  1St Floor,699.40, 12-Apr-2016
702,Revenue,CAHD,Bed Purchasing - North,Permanent Nursing,Fshc  1St Floor,555.08, 12-Apr-2016
703,Revenue,CAHD,Bed Purchasing - North,Permanent Nursing,Fshc  1St Floor,548.84, 12-Apr-2016
704,Revenue,CAHD,Bed Purchasing - North,Permanent Residential,Fshc  1St Floor,1274.00, 12-Apr-2016
705,Revenue,CAHD,Bed Purchasing - Southmead Hospital,Permanent Nursing,Fshc  1St Floor,1030.08, 12-Apr-2016
706,Revenue,CAHD,Bed Purchasing - Southmead Hospital,Permanent Nursing,Fshc  1St Floor,1632.14, 12-Apr-2016
707,Revenue,CAHD,Bed Purchasing - Southmead Hospital,Permanent Nursing,Fshc  1St Floor,941.28, 12-Apr-2016
708,Revenue,CAHD,Bed Purchasing - Southmead Hospital,Permanent Residential,Fshc  1St Floor,586.96, 12-Apr-2016
709,Revenue,CAHD,Bed Purchasing - Southmead Hospital,Permanent Residential,Fshc  1St Floor,579.00, 12-Apr-2016
710,Revenue,CAHD,Bed Purchasing - Southmead Hospital,Permanent Nursing,Fshc  1St Floor,1116.54, 12-Apr-2016
711,Revenue,CAHD,Bed Purchasing - Southmead Hospital,Permanent Nursing,Fshc  1St Floor,1138.36, 12-Apr-2016
712,Revenue,CAHD,Bed Purchasing - Southmead Hospital,Permanent Nursing,Fshc  1St Floor,703.54, 12-Apr-2016
713,Revenue,CAHD,Bed Purchasing - Southmead Hospital,Permanent Nursing,Fshc  1St Floor,699.40, 12-Apr-2016
714,Revenue,CAHD,Bed Purchasing - North,Permanent Nursing,Fshc  1St Floor,1333.74, 12-Apr-2016
715,Revenue,CAHD,Bed Purchasing - Southmead Hospital,Permanent Nursing,Fshc  1St Floor,572.82, 12-Apr-2016
716,Revenue,CAHD,Bed Purchasing - Southmead Hospital,Permanent Nursing,Fshc  1St Floor,565.38, 12-Apr-2016
717,Revenue,CAHD,Bed Purchasing - North,Permanent Residential,Fshc  1St Floor,630.90, 12-Apr-2016
718,Revenue,CAHD,Bed Purchasing - North,Permanent Residential,Fshc  1St Floor,624.20, 12-Apr-2016
719,Revenue,CAHD,Bed Purchasing - South,Permanent Residential,Fshc  1St Floor,580.76, 12-Apr-2016
720,Revenue,CAHD,Bed Purchasing - South,Permanent Residential,Fshc  1St Floor,574.38, 12-Apr-2016
721,Revenue,CAHD,Bed Purchasing - Southmead Hospital,Permanent Nursing,Fshc  1St Floor,2094.14, 12-Apr-2016
722,Revenue,CAHD,Bed Purchasing - Southmead Hospital,Permanent Nursing,Fshc  1St Floor,703.54, 12-Apr-2016
723,Revenue,CAHD,Bed Purchasing - Southmead Hospital,Permanent Nursing,Fshc  1St Floor,696.62, 12-Apr-2016
724,Revenue,CAHD,Bed Purchasing - Southmead Hospital,Permanent Nursing,Fshc  1St Floor,703.54, 12-Apr-2016
725,Revenue,CAHD,Bed Purchasing - Southmead Hospital,Permanent Nursing,Fshc  1St Floor,699.40, 12-Apr-2016
726,Revenue,CAHD,Bed Purchasing - North,Permanent Nursing,Fshc  1St Floor,552.08, 12-Apr-2016
727,Revenue,CAHD,Bed Purchasing - Southmead Hospital,Permanent Residential,Fshc  1St Floor,624.78, 12-Apr-2016
728,Revenue,CAHD,Bed Purchasing - Southmead Hospital,Permanent Residential,Fshc  1St Floor,940.83, 12-Apr-2016
729,Revenue,CAHD,Bed Purchasing - Southmead Hospital,Permanent Residential,Fshc  1St Floor,635.18, 12-Apr-2016
730,Revenue,CAHD,Bed Purchasing - Southmead Hospital,Permanent Residential,Fshc  1St Floor,627.22, 12-Apr-2016
731,Revenue,CAHD,Bed Purchasing - Southmead Hospital,Permanent Nursing,Fshc  1St Floor,701.76, 12-Apr-2016
732,Revenue,CAHD,Bed Purchasing - Southmead Hospital,Permanent Nursing,Fshc  1St Floor,692.86, 12-Apr-2016
733,Revenue,CAHD,Bed Purchasing - North,Permanent Nursing,Fshc  1St Floor,644.00, 12-Apr-2016
734,Revenue,CAHD,Bed Purchasing - North,Permanent Nursing,Fshc  1St Floor,635.10, 12-Apr-2016
735,Revenue,CAHD,Bed Purchasing - North,Permanent Nursing,Fshc  1St Floor,914.52, 12-Apr-2016
736,Revenue,CAHD,Bed Purchasing - North,Permanent Nursing,Fshc  1St Floor,703.54, 12-Apr-2016
737,Revenue,CAHD,Bed Purchasing - North,Permanent Nursing,Fshc  1St Floor,699.40, 12-Apr-2016
738,Revenue,CAHD,Bed Purchasing - North,Permanent Nursing,Fshc  1St Floor,1579.34, 12-Apr-2016
739,Revenue,CAHD,Bed Purchasing - North,Permanent Residential,Fshc  1St Floor,720.28, 12-Apr-2016
740,Revenue,CAHD,Bed Purchasing - North,Permanent Residential,Fshc  1St Floor,710.92, 12-Apr-2016
741,Revenue,CAHD,Bed Purchasing - North,Permanent Nursing,Fshc  1St Floor,1013.24, 12-Apr-2016
742,Revenue,CAHD,Bed Purchasing - North,Permanent Nursing,Fshc  1St Floor,3604.00, 12-Apr-2016
743,Revenue,CAHD,Bed Purchasing - North,Permanent Nursing,Fshc  1St Floor,1916.94, 12-Apr-2016
744,Revenue,CAHD,Bed Purchasing - North,Permanent Residential,Fshc  1St Floor,640.74, 12-Apr-2016
745,Revenue,CAHD,Bed Purchasing - North,Permanent Residential,Fshc  1St Floor,634.04, 12-Apr-2016
746,Revenue,CAHD,Bed Purchasing - Southmead Hospital,Permanent Nursing,Fshc  1St Floor,560.38, 12-Apr-2016
747,Revenue,CAHD,Bed Purchasing - Southmead Hospital,Permanent Nursing,Fshc  1St Floor,554.14, 12-Apr-2016
748,Revenue,CAHD,Bed Purchasing - North,Permanent Nursing,Fshc  1St Floor,1426.94, 12-Apr-2016
749,Revenue,CAHD,Bed Purchasing - North,Permanent Residential,Fshc  1St Floor,720.16, 12-Apr-2016
750,Revenue,CAHD,Bed Purchasing - North,Permanent Residential,Fshc  1St Floor,710.80, 12-Apr-2016
751,Revenue,CAHD,Bed Purchasing - North,Permanent Nursing,Fshc  1St Floor,1608.14, 12-Apr-2016
752,Revenue,CAHD,Bed Purchasing - North,Permanent Residential,Fshc  1St Floor,3176.56, 12-Apr-2016
753,Revenue,CAHD,Swift Dump Code,Permanent Residential,Fshc  1St Floor,1344.47, 12-Apr-2016
754,Revenue,CAHD,Bed Purchasing - North,Permanent Nursing,Fshc  1St Floor,703.54, 12-Apr-2016
755,Revenue,CAHD,Bed Purchasing - North,Permanent Nursing,Fshc  1St Floor,699.40, 12-Apr-2016
756,Revenue,CAHD,Bed Purchasing - South,Permanent Nursing,Fshc  1St Floor,1422.94, 12-Apr-2016
757,Revenue,CAHD,Bed Purchasing - Southmead Hospital,Permanent Nursing,Fshc  1St Floor,1204.12, 12-Apr-2016
758,Revenue,CAHD,Bed Purchasing - Southmead Hospital,Respite Planned - Residential,Fshc  1St Floor,2500.00, 12-Apr-2016
759,Revenue,CAHD,Bed Purchasing - North,Permanent Nursing,Fshc  1St Floor,1060.56, 12-Apr-2016
760,Revenue,CAHD,Bed Purchasing - Southmead Hospital,Permanent Residential,Fshc  1St Floor,1178.42, 12-Apr-2016
761,Revenue,CAHD,Bed Purchasing - Southmead Hospital,Permanent Nursing,Fshc  1St Floor,680.92, 12-Apr-2016
762,Revenue,CAHD,Bed Purchasing - Southmead Hospital,Permanent Nursing,Fshc  1St Floor,672.02, 12-Apr-2016
763,Revenue,CAHD,Bed Purchasing - North,Permanent Nursing,Fshc  1St Floor,515.96, 12-Apr-2016
764,Revenue,CAHD,Bed Purchasing - North,Permanent Nursing,Fshc  1St Floor,509.72, 12-Apr-2016
765,Revenue,CAHD,Bed Purchasing - North,Permanent Nursing,Fshc  1St Floor,1440.08, 12-Apr-2016
766,Revenue,CAHD,Bed Purchasing - Southmead Hospital,Permanent Nursing,Fshc  1St Floor,588.32, 12-Apr-2016
767,Revenue,CAHD,Bed Purchasing - Southmead Hospital,Permanent Nursing,Fshc  1St Floor,703.54, 12-Apr-2016
768,Revenue,CAHD,Bed Purchasing - Southmead Hospital,Permanent Nursing,Fshc  1St Floor,699.40, 12-Apr-2016
769,Revenue,CAHD,Bed Purchasing - Southmead Hospital,Permanent Nursing,Fshc  1St Floor,880.24, 12-Apr-2016
770,Revenue,CAHD,Bed Purchasing - Southmead Hospital,Permanent Nursing,Fshc  1St Floor,703.54, 12-Apr-2016
771,Revenue,CAHD,Bed Purchasing - Southmead Hospital,Permanent Nursing,Fshc  1St Floor,699.40, 12-Apr-2016
772,Revenue,CAHD,Bed Purchasing - Southmead Hospital,Respite Planned - Nursing,Fshc  1St Floor,1904.00, 12-Apr-2016
773,Revenue,CAHD,Bed Purchasing - North,Permanent Nursing,Fshc  1St Floor,1516.34, 12-Apr-2016
774,Revenue,CAHD,Bed Purchasing - Southmead Hospital,Permanent Nursing,Fshc  1St Floor,673.60, 12-Apr-2016
775,Revenue,CAHD,Bed Purchasing - Southmead Hospital,Permanent Nursing,Fshc  1St Floor,664.70, 12-Apr-2016
776,Revenue,CAHD,Bed Purchasing - North,Permanent Nursing,Fshc  1St Floor,1295.12, 12-Apr-2016
777,Revenue,CAHD,Bed Purchasing - Southmead Hospital,Permanent Nursing,Fshc  1St Floor,1278.08, 12-Apr-2016
778,Revenue,CAHD,Bed Purchasing - North,Permanent Nursing,Fshc  1St Floor,518.16, 12-Apr-2016
779,Revenue,CAHD,Bed Purchasing - North,Permanent Nursing,Fshc  1St Floor,511.92, 12-Apr-2016
780,Revenue,CAHD,Bed Purchasing - Southmead Hospital,Permanent Nursing,Fshc  1St Floor,1864.76, 12-Apr-2016
781,Revenue,CAHD,Bed Purchasing - North,Permanent Residential,Fshc  1St Floor,3058.62, 12-Apr-2016
782,Revenue,CAHD,Bed Purchasing - North,Permanent Nursing,Fshc  1St Floor,1409.22, 12-Apr-2016
783,Revenue,CAHD,Bed Purchasing - South,Respite Planned - Residential,Fshc  1St Floor,1972.00, 12-Apr-2016
784,Revenue,CAHD,Bed Purchasing - South,Permanent Nursing,Fshc  1St Floor,1205.00, 12-Apr-2016
785,Revenue,CAHD,Bed Purchasing - South,Permanent Nursing,Fshc  1St Floor,655.76, 12-Apr-2016
786,Revenue,CAHD,Bed Purchasing - South,Permanent Nursing,Fshc  1St Floor,649.24, 12-Apr-2016
787,Revenue,CAHD,Bed Purchasing - Southmead Hospital,Permanent Nursing,Fshc  1St Floor,676.42, 12-Apr-2016
788,Revenue,CAHD,Bed Purchasing - Southmead Hospital,Permanent Nursing,Fshc  1St Floor,667.52, 12-Apr-2016
789,Revenue,CAHD,Bed Purchasing - South,Permanent Nursing,Fshc  1St Floor,1916.94, 12-Apr-2016
790,Revenue,CAHD,Bed Purchasing - Southmead Hospital,Permanent Residential,Fshc  1St Floor,1499.40, 12-Apr-2016
791,Revenue,CAHD,Bed Purchasing - North,Permanent Residential,Fshc  1St Floor,1188.88, 12-Apr-2016
792,Revenue,CAHD,Bed Purchasing - North,Permanent Nursing,Fshc  1St Floor,1150.76, 12-Apr-2016
793,Revenue,CAHD,Bed Purchasing - South,Permanent Residential,Fshc  1St Floor,6024.36, 12-Apr-2016
794,Revenue,CAHD,Bed Purchasing - South,Permanent Residential,Fshc  1St Floor,738.00, 12-Apr-2016
795,Revenue,CAHD,Bed Purchasing - South,Permanent Residential,Fshc  1St Floor,733.40, 12-Apr-2016
796,Revenue,CAHD,Bed Purchasing - South,Permanent Residential,Fshc  1St Floor,1056.30, 12-Apr-2016
797,Revenue,CAHD,Bed Purchasing - South,Permanent Nursing,Fshc  1St Floor,695.54, 12-Apr-2016
798,Revenue,CAHD,Bed Purchasing - South,Permanent Nursing,Fshc  1St Floor,687.40, 12-Apr-2016
799,Revenue,CAHD,Bed Purchasing - Southmead Hospital,Permanent Nursing,Fshc  1St Floor,703.54, 12-Apr-2016
800,Revenue,CAHD,Bed Purchasing - Southmead Hospital,Permanent Nursing,Fshc  1St Floor,699.40, 12-Apr-2016
801,Revenue,CAHD,Bed Purchasing - South,Permanent Nursing,Fshc  1St Floor,567.66, 12-Apr-2016
802,Revenue,CAHD,Bed Purchasing - South,Permanent Nursing,Fshc  1St Floor,560.74, 12-Apr-2016
803,Revenue,CAHD,Bed Purchasing - Southmead Hospital,Permanent Nursing,Fshc  1St Floor,698.02, 12-Apr-2016
804,Revenue,CAHD,Bed Purchasing - Southmead Hospital,Permanent Nursing,Fshc  1St Floor,689.12, 12-Apr-2016
805,Revenue,CAHD,Bed Purchasing - Southmead Hospital,Permanent Nursing,Fshc  1St Floor,635.24, 12-Apr-2016
806,Revenue,CAHD,Bed Purchasing - Southmead Hospital,Permanent Nursing,Fshc  1St Floor,626.32, 12-Apr-2016
807,Revenue,CAHD,Bed Purchasing - South,Permanent Nursing,Fshc  1St Floor,626.66, 12-Apr-2016
808,Revenue,CAHD,Bed Purchasing - South,Permanent Nursing,Fshc  1St Floor,620.42, 12-Apr-2016
809,Revenue,CAHD,Bed Purchasing - Southmead Hospital,Permanent Nursing,Fshc  1St Floor,661.22, 12-Apr-2016
810,Revenue,CAHD,Bed Purchasing - Southmead Hospital,Permanent Nursing,Fshc  1St Floor,652.20, 12-Apr-2016
811,Revenue,CAHD,South Glos Users in South Glos Homes,Permanent Nursing,Fshc  1St Floor,608.00, 12-Apr-2016
812,Revenue,CAHD,Bed Purchasing - South,Permanent Residential,Fshc  1St Floor,1274.00, 12-Apr-2016
813,Revenue,CAHD,Bed Purchasing - Southmead Hospital,Permanent Nursing,Fshc  1St Floor,703.54, 12-Apr-2016
814,Revenue,CAHD,Bed Purchasing - Southmead Hospital,Permanent Nursing,Fshc  1St Floor,699.40, 12-Apr-2016
815,Revenue,CAHD,Bed Purchasing - South,Respite Emergency - Residential,Fshc  1St Floor,2306.57, 12-Apr-2016
816,Revenue,CAHD,Bed Purchasing - South,Permanent Nursing,Fshc  1St Floor,738.00, 12-Apr-2016
817,Revenue,CAHD,Bed Purchasing - South,Permanent Nursing,Fshc  1St Floor,733.40, 12-Apr-2016
818,Revenue,CAHD,Bed Purchasing - Southmead Hospital,Permanent Nursing,Fshc  1St Floor,703.54, 12-Apr-2016
819,Revenue,CAHD,Bed Purchasing - Southmead Hospital,Permanent Nursing,Fshc  1St Floor,699.40, 12-Apr-2016
820,Revenue,CAHD,Bed Purchasing - Southmead Hospital,Permanent Nursing,Fshc  1St Floor,671.26, 12-Apr-2016
821,Revenue,CAHD,Bed Purchasing - Southmead Hospital,Permanent Nursing,Fshc  1St Floor,662.36, 12-Apr-2016
822,Revenue,CAHD,Bed Purchasing - Southmead Hospital,Permanent Residential,Fshc  1St Floor,754.00, 12-Apr-2016
823,Revenue,CAHD,Bed Purchasing - Southmead Hospital,Permanent Residential,Fshc  1St Floor,742.08, 12-Apr-2016
824,Revenue,CAHD,Bed Purchasing - Southmead Hospital,Permanent Nursing,Fshc  1St Floor,703.54, 12-Apr-2016
825,Revenue,CAHD,Bed Purchasing - Southmead Hospital,Permanent Nursing,Fshc  1St Floor,699.40, 12-Apr-2016
826,Revenue,CAHD,Bed Purchasing - Southmead Hospital,Permanent Residential,Fshc  1St Floor,571.06, 12-Apr-2016
827,Revenue,CAHD,Bed Purchasing - Southmead Hospital,Permanent Residential,Fshc  1St Floor,565.76, 12-Apr-2016
828,Revenue,CAHD,Bed Purchasing - South,Permanent Nursing,Fshc  1St Floor,710.16, 12-Apr-2016
829,Revenue,CAHD,Bed Purchasing - South,Permanent Nursing,Fshc  1St Floor,701.26, 12-Apr-2016
830,Revenue,CAHD,Bed Purchasing - South,Permanent Residential,Fshc  1St Floor,702.84, 12-Apr-2016
831,Revenue,CAHD,Bed Purchasing - South,Permanent Residential,Fshc  1St Floor,693.48, 12-Apr-2016
832,Revenue,CAHD,Bed Purchasing - South,Permanent Nursing,Fshc  1St Floor,703.54, 12-Apr-2016
833,Revenue,CAHD,Bed Purchasing - South,Permanent Nursing,Fshc  1St Floor,699.40, 12-Apr-2016
834,Revenue,CAHD,South Glos Users in South Glos Homes,Permanent Nursing,Fshc  1St Floor,624.00, 12-Apr-2016
835,Revenue,CAHD,Bed Purchasing - South,Permanent Nursing,Fshc  1St Floor,568.58, 12-Apr-2016
836,Revenue,CAHD,Bed Purchasing - South,Permanent Nursing,Fshc  1St Floor,561.88, 12-Apr-2016
837,Revenue,CAHD,Bed Purchasing - South,Permanent Residential,Fshc  1St Floor,701.76, 12-Apr-2016
838,Revenue,CAHD,Bed Purchasing - South,Permanent Residential,Fshc  1St Floor,694.88, 12-Apr-2016
839,Revenue,CAHD,Bed Purchasing - South,Permanent Nursing,Fshc  1St Floor,703.54, 12-Apr-2016
840,Revenue,CAHD,Bed Purchasing - South,Permanent Nursing,Fshc  1St Floor,699.40, 12-Apr-2016
841,Revenue,CAHD,Bed Purchasing - South,Permanent Nursing,Fshc  1St Floor,635.52, 12-Apr-2016
842,Revenue,CAHD,Bed Purchasing - South,Permanent Nursing,Fshc  1St Floor,633.60, 12-Apr-2016
843,Revenue,CAHD,Bed Purchasing - Southmead Hospital,Permanent Nursing,Fshc  1St Floor,2294.34, 12-Apr-2016
844,Revenue,CAHD,Bed Purchasing - South,Permanent Nursing,Fshc  1St Floor,2842.24, 12-Apr-2016
845,Revenue,CAHD,Bed Purchasing - South,Permanent Nursing,Fshc  1St Floor,952.00, 12-Apr-2016
846,Revenue,CAHD,Bed Purchasing - South,Permanent Nursing,Fshc  1St Floor,717.54, 12-Apr-2016
847,Revenue,CAHD,Bed Purchasing - Southmead Hospital,Respite Planned - Nursing,Fshc  1St Floor,4556.00, 12-Apr-2016
848,Revenue,CAHD,Bed purchasing - Elderly S117 - South,Permanent Nursing,Fshc  1St Floor,964.94, 12-Apr-2016
849,Revenue,CAHD,Bed purchasing - Elderly S117 - South,Permanent Nursing,Fshc  1St Floor,952.00, 12-Apr-2016
850,Revenue,CAHD,Bed Purchasing - South,Permanent Nursing,Fshc  1St Floor,1140.06, 12-Apr-2016
851,Revenue,CAHD,Bed Purchasing - Southmead Hospital,Permanent Nursing,Fshc  1St Floor,627.60, 12-Apr-2016
852,Revenue,CAHD,Bed Purchasing - Southmead Hospital,Permanent Nursing,Fshc  1St Floor,620.32, 12-Apr-2016
853,Revenue,CAHD,Bed Purchasing - Southmead Hospital,Permanent Nursing,Fshc  1St Floor,962.96, 12-Apr-2016
854,Revenue,CAHD,Bed Purchasing - Southmead Hospital,Permanent Nursing,Fshc  1St Floor,1312.96, 12-Apr-2016
855,Revenue,CAHD,Bed Purchasing - Southmead Hospital,Permanent Nursing,Fshc  1St Floor,1402.94, 12-Apr-2016
856,Revenue,CAHD,Bed Purchasing - Southmead Hospital,Permanent Nursing,Fshc  1St Floor,575.56, 12-Apr-2016
857,Revenue,CAHD,Bed Purchasing - South,Permanent Nursing,Fshc  1St Floor,635.50, 12-Apr-2016
858,Revenue,CAHD,Bed Purchasing - South,Permanent Nursing,Fshc  1St Floor,627.56, 12-Apr-2016
859,Revenue,CAHD,Bed Purchasing - Southmead Hospital,Permanent Residential,Fshc  1St Floor,562.66, 12-Apr-2016
860,Revenue,CAHD,Bed Purchasing - North,Permanent Nursing,Fshc  1St Floor,687.20, 12-Apr-2016
861,Revenue,CAHD,Bed Purchasing - North,Permanent Nursing,Fshc  1St Floor,678.10, 12-Apr-2016
862,Revenue,CAHD,Bed Purchasing - North,Permanent Nursing,Fshc  1St Floor,688.74, 12-Apr-2016
863,Revenue,CAHD,Bed Purchasing - North,Permanent Nursing,Fshc  1St Floor,682.08, 12-Apr-2016
864,Revenue,CAHD,Bed Purchasing - Southmead Hospital,Permanent Nursing,Fshc  1St Floor,1434.36, 12-Apr-2016
865,Revenue,CAHD,Bed Purchasing - North,Permanent Nursing,Fshc  1St Floor,852.08, 12-Apr-2016
866,Revenue,CAHD,Bed Purchasing - North,Permanent Nursing,Fshc  1St Floor,758.60, 12-Apr-2016
867,Revenue,CAHD,Bed Purchasing - North,Permanent Nursing,Fshc  1St Floor,753.40, 12-Apr-2016
868,Revenue,CAHD,Bed Purchasing - Southmead Hospital,Permanent Nursing,Fshc  1St Floor,1487.14, 12-Apr-2016
869,Revenue,CAHD,Bed Purchasing - Southmead Hospital,Permanent Nursing,Fshc  1St Floor,1358.48, 12-Apr-2016
870,Revenue,CAHD,Bed Purchasing - Southmead Hospital,Permanent Nursing,Fshc  1St Floor,758.60, 12-Apr-2016
871,Revenue,CAHD,Bed Purchasing - Southmead Hospital,Permanent Nursing,Fshc  1St Floor,753.40, 12-Apr-2016
872,Revenue,CAHD,Bed Purchasing - North,Permanent Nursing,Fshc  1St Floor,694.46, 12-Apr-2016
873,Revenue,CAHD,Bed Purchasing - North,Permanent Nursing,Fshc  1St Floor,687.16, 12-Apr-2016
874,Revenue,CAHD,Bed Purchasing - North,Permanent Nursing,Fshc  1St Floor,1309.96, 12-Apr-2016
875,Revenue,CAHD,Bed Purchasing - Southmead Hospital,Permanent Nursing,Fshc  1St Floor,1580.14, 12-Apr-2016
876,Revenue,CAHD,Bed Purchasing - Southmead Hospital,Permanent Residential,Fshc  1St Floor,633.30, 12-Apr-2016
877,Revenue,CAHD,Bed Purchasing - Southmead Hospital,Permanent Residential,Fshc  1St Floor,625.34, 12-Apr-2016
878,Revenue,CAHD,Bed Purchasing - Southmead Hospital,Permanent Nursing,Fshc  1St Floor,698.72, 12-Apr-2016
879,Revenue,CAHD,Bed Purchasing - Southmead Hospital,Permanent Nursing,Fshc  1St Floor,691.14, 12-Apr-2016
880,Revenue,CAHD,Bed Purchasing - Southmead Hospital,Permanent Nursing,Fshc  1St Floor,626.44, 12-Apr-2016
881,Revenue,CAHD,Bed Purchasing - Southmead Hospital,Permanent Nursing,Fshc  1St Floor,621.14, 12-Apr-2016
882,Revenue,CAHD,Bed purchasing - Elderly MH - North,Permanent Nursing,Fshc  1St Floor,1751.34, 12-Apr-2016
883,Revenue,CAHD,Bed Purchasing - North,Permanent Nursing,Fshc  1St Floor,1306.88, 12-Apr-2016
884,Revenue,CAHD,Bed Purchasing - North,Permanent Nursing,Fshc  1St Floor,1290.46, 12-Apr-2016
885,Revenue,CAHD,Bed Purchasing - North,Permanent Nursing,Fshc  1St Floor,2307.14, 12-Apr-2016
886,Revenue,CAHD,Bed Purchasing - Elderly S117- North,Permanent Nursing,Fshc  1St Floor,2026.00, 12-Apr-2016
887,Revenue,CAHD,Bed Purchasing - North,Respite Planned - Nursing,Fshc  1St Floor,1371.43, 12-Apr-2016
888,Revenue,CAHD,Bed Purchasing - North,Respite Planned - Residential,Fshc  1St Floor,928.00, 12-Apr-2016
889,Revenue,CAHD,Bed Purchasing - Southmead Hospital,Permanent Nursing,Fshc  1St Floor,1317.68, 12-Apr-2016
890,Revenue,CAHD,Bed Purchasing - Southmead Hospital,Permanent Nursing,Fshc  1St Floor,1300.00, 12-Apr-2016
891,Revenue,CAHD,Bed Purchasing - Southmead Hospital,Permanent Nursing,Fshc  1St Floor,1906.32, 12-Apr-2016
892,Revenue,CAHD,Bed Purchasing - North,Permanent Nursing,Fshc  1St Floor,1512.00, 12-Apr-2016
893,Revenue,CAHD,Bed Purchasing - Southmead Hospital,Permanent Nursing,Fshc  1St Floor,1108.58, 12-Apr-2016
894,Revenue,CAHD,Bed Purchasing - North,Permanent Residential,Fshc  1St Floor,1053.50, 12-Apr-2016
895,Revenue,CAHD,Bed Purchasing - South,Permanent Residential,Fshc  1St Floor,1377.26, 12-Apr-2016
896,Revenue,CAHD,Bed Purchasing - Southmead Hospital,Permanent Residential,Fshc  1St Floor,812.94, 12-Apr-2016
897,Revenue,CAHD,Section 117 Placements MH Younger,Permanent Residential,Gladstone House,2810.98, 12-Apr-2016
898,Revenue,CAHD,Bed Purchasing - South,Permanent Residential,Gladstone House,5316.28, 12-Apr-2016
899,Revenue,CAHD,Bed Purchasing - South,Permanent Residential,Glasallt Fawr,4700.40, 12-Apr-2016
900,Revenue,CAHD,Bed Purchasing - North,Permanent Nursing,Glebe House Nursing Home,2154.86, 12-Apr-2016
901,Revenue,CAHD,Bed Purchasing - South,Permanent Residential,Glebe House Nursing Home,2087.84, 12-Apr-2016
902,Revenue,CAHD,Bed Purchasing - North,Permanent Nursing,Glebe House Nursing Home,2270.54, 12-Apr-2016
903,Revenue,CAHD,South Glos Users in South Glos Homes,Permanent Nursing,Glebe House Nursing Home,2352.00, 12-Apr-2016
904,Revenue,CAHD,Bed Purchasing - North,Permanent Nursing,Glebe House Nursing Home,2198.08, 12-Apr-2016
905,Revenue,CAHD,Bed Purchasing - South,Permanent Residential,Goldcare House,2251.58, 12-Apr-2016
906,Revenue,CAHD,18-25 Year Olds,Permanent Residential,Gordena Care Home,4716.40, 12-Apr-2016
907,Revenue,CAHD,Bed Purchasing - South,Permanent Residential,Gordena Care Home,2154.24, 12-Apr-2016
908,Revenue,CAHD,Bed Purchasing - South,Permanent Residential,Gordena Care Home,3206.16, 12-Apr-2016
909,Revenue,CAHD,Bed Purchasing - South,Permanent Residential,Gordena Care Home,3011.16, 12-Apr-2016
910,Revenue,CAHD,Bed Purchasing - South,Permanent Residential,Gordena Care Home,1957.98, 12-Apr-2016
911,Revenue,CAHD,Bed Purchasing - South,Permanent Residential,Gordena Care Home,3135.28, 12-Apr-2016
912,Revenue,CAHD,Bed Purchasing - South,Permanent Residential,Gordena Care Limited,2163.50, 12-Apr-2016
913,Revenue,CAHD,Bed Purchasing - South,Permanent Residential,Gordena Care Limited,2132.30, 12-Apr-2016
914,Revenue,CAHD,Bed purchasing - S28A Under 65 - South,Permanent Residential,Gordena Care Limited,4191.62, 12-Apr-2016
915,Revenue,CAHD,Bed Purchasing - North,Permanent Residential,Gordena Care Limited,2153.84, 12-Apr-2016
916,Revenue,CAHD,Bed Purchasing - North,Permanent Residential,Gordena Care Limited,2130.24, 12-Apr-2016
917,Revenue,CAHD,Bed Purchasing - South,Permanent Nursing,Gracefields Nursing Home,1722.48, 12-Apr-2016
918,Revenue,CAHD,Bed Purchasing - Southmead Hospital,Permanent Nursing,Gracefields Nursing Home,1745.78, 12-Apr-2016
919,Revenue,CAHD,Bed Purchasing - Southmead Hospital,Permanent Nursing,Gracefields Nursing Home,1665.46, 12-Apr-2016
920,Revenue,CAHD,Bed Purchasing - Southmead Hospital,Permanent Nursing,Gracefields Nursing Home,890.58, 12-Apr-2016
921,Revenue,CAHD,Bed purchasing - Elderly S117 - South,Permanent Nursing,Gracefields Nursing Home,2398.08, 12-Apr-2016
922,Revenue,CAHD,Bed Purchasing - Southmead Hospital,Permanent Nursing,Gracefields Nursing Home,802.80, 12-Apr-2016
923,Revenue,CAHD,Bed Purchasing - Southmead Hospital,Permanent Nursing,Gracefields Nursing Home,793.28, 12-Apr-2016
924,Revenue,CAHD,South Glos Users in South Glos Homes,Permanent Nursing,Gracefields Nursing Home,1056.00, 12-Apr-2016
925,Revenue,CAHD,Bed Purchasing - South,Permanent Nursing,Gracefields Nursing Home,810.48, 12-Apr-2016
926,Revenue,CAHD,Bed Purchasing - South,Permanent Nursing,Gracefields Nursing Home,800.98, 12-Apr-2016
927,Revenue,CAHD,Bed Purchasing - Southmead Hospital,Permanent Nursing,Gracefields Nursing Home,1548.50, 12-Apr-2016
928,Revenue,CAHD,Bed Purchasing - Southmead Hospital,Permanent Residential,Granada House Residential Home,1048.66, 12-Apr-2016
929,Revenue,CAHD,Bed Purchasing - North,Permanent Residential,Greensleeves,1351.30, 12-Apr-2016
930,Revenue,CAHD,Bed Purchasing - South,Permanent Residential,Grove Care,1894.58, 12-Apr-2016
931,Revenue,CAHD,Bed Purchasing - Southmead Hospital,Permanent Residential,Gwendoline House,2936.92, 12-Apr-2016
932,Revenue,CAHD,Bed Purchasing - South,Permanent Residential,Gwendoline House,851.74, 12-Apr-2016
933,Revenue,CAHD,Bed Purchasing - Southmead Hospital,Permanent Residential,Gwendoline House,1290.14, 12-Apr-2016
934,Revenue,CAHD,Bed Purchasing - South,Permanent Residential,Gwendoline House,1576.50, 12-Apr-2016
935,Revenue,CAHD,Bed Purchasing - South,Permanent Residential,Gwendoline House,962.18, 12-Apr-2016
936,Revenue,CAHD,Bed Purchasing - Southmead Hospital,Permanent Residential,Gwendoline House,1349.24, 12-Apr-2016
937,Revenue,CAHD,Alexandra Way,Prop.Serv. General Repairs,H Mealing & Sons Limited,3678.54, 14-Apr-2016
938,Revenue,CAHD,Supporting People Programme,Grants to Voluntary Bodies,Habinteg Housing Association,1377.00, 11-Apr-2016
939,Revenue,CAHD,Supporting People Programme,Grants to Voluntary Bodies,Habinteg Housing Association,1377.00, 29-Apr-2016
940,Revenue,CAHD,Bed Purchasing - North,Permanent Nursing,Hambledon House,3008.68, 12-Apr-2016
941,Revenue,CAHD,Social Lettings Agency,Fees - General,Individual,16.46, 27-Apr-2016
942,Revenue,CAHD,Social Lettings Agency,Other Supplies & Services,Individual,559.60, 27-Apr-2016
943,Revenue,CAHD,Supporting People Programme,Grants to Voluntary Bodies,Hanover Housing Association,996.24, 11-Apr-2016
944,Revenue,CAHD,Supporting People Programme,Grants to Voluntary Bodies,Hanover Housing Association,996.16, 29-Apr-2016
945,Revenue,CAHD,Bed Purchasing - South,Permanent Residential,Harefield Hall,1227.20, 12-Apr-2016
946,Revenue,CAHD,Bed Purchasing - South,Permanent Residential,Harefield Hall,1156.44, 12-Apr-2016
947,Revenue,CAHD,Bed Purchasing - South,Permanent Residential,Harefield Hall,961.26, 12-Apr-2016
948,Revenue,CAHD,Bed Purchasing - South,Permanent Residential,Harefield Hall,1047.26, 12-Apr-2016
949,Revenue,CAHD,Bed Purchasing - South,Permanent Residential,Harefield Hall,1320.38, 12-Apr-2016
950,Revenue,CAHD,Bed Purchasing - South,Permanent Residential,Harefield Hall,1264.84, 12-Apr-2016
951,Revenue,CAHD,Woodleaze,Equipment Maintenance,Harvey Servicing & Engineering Limited,585.00, 13-Apr-2016
952,Revenue,CAHD,Bed Purchasing - Southmead Hospital,Respite Planned - Nursing,Hazelwood Gardens Nursing Home,2026.00, 12-Apr-2016
953,Revenue,CAHD,Bed Purchasing - Southmead Hospital,Permanent Nursing,Hc-One Ltd,1654.24, 12-Apr-2016
954,Revenue,CAHD,Bed Purchasing - Southmead Hospital,Permanent Nursing,Hc-One Ltd,1462.90, 12-Apr-2016
955,Revenue,CAHD,Bed Purchasing - North,Permanent Nursing,Hc-One Ltd,1520.90, 12-Apr-2016
956,Revenue,CAHD,Bed Purchasing - Southmead Hospital,Permanent Nursing,Hc-One Ltd,599.38, 12-Apr-2016
957,Revenue,CAHD,Bed Purchasing - Southmead Hospital,Permanent Nursing,Hc-One Ltd,784.32, 12-Apr-2016
958,Revenue,CAHD,Bed Purchasing - Southmead Hospital,Permanent Nursing,Hc-One Ltd,770.40, 12-Apr-2016
959,Revenue,CAHD,Bed Purchasing - Southmead Hospital,Permanent Nursing,Hc-One Ltd,605.32, 12-Apr-2016
960,Revenue,CAHD,Bed Purchasing - North,Permanent Residential,Hc-One Ltd,1056.00, 12-Apr-2016
961,Revenue,CAHD,Bed Purchasing - North,Permanent Residential,Hc-One Ltd,1041.84, 12-Apr-2016
962,Revenue,CAHD,Bed Purchasing - North,Permanent Residential,Hc-One Ltd,1056.00, 12-Apr-2016
963,Revenue,CAHD,Bed Purchasing - North,Permanent Residential,Hc-One Ltd,1041.84, 12-Apr-2016
964,Revenue,CAHD,Bed Purchasing - North,Permanent Nursing,Hc-One Ltd,830.00, 12-Apr-2016
965,Revenue,CAHD,Bed Purchasing - Southmead Hospital,Permanent Nursing,Hc-One Ltd,775.52, 12-Apr-2016
966,Revenue,CAHD,Bed Purchasing - Southmead Hospital,Permanent Nursing,Hc-One Ltd,770.40, 12-Apr-2016
967,Revenue,CAHD,Bed Purchasing - Southmead Hospital,Permanent Nursing,Hc-One Ltd,775.52, 12-Apr-2016
968,Revenue,CAHD,Bed Purchasing - Southmead Hospital,Permanent Nursing,Hc-One Ltd,770.40, 12-Apr-2016
969,Revenue,CAHD,Bed Purchasing - Southmead Hospital,Permanent Nursing,Hc-One Ltd,1489.92, 12-Apr-2016
970,Revenue,CAHD,Bed Purchasing - Southmead Hospital,Permanent Nursing,Hc-One Ltd,1996.96, 12-Apr-2016
971,Revenue,CAHD,Bed Purchasing - Southmead Hospital,Permanent Residential,Head Office,1700.96, 12-Apr-2016
972,Revenue,CAHD,Home Care - Elderly - South,Day Care / Social Activities,Headway Bristol,399.76, 06-Apr-2016
973,Revenue,CAHD,Home Care - Elderly - North,Day Care / Social Activities,Headway Bristol,831.08, 06-Apr-2016
974,Revenue,CAHD,Home Care - Elderly - South,Day Care / Social Activities,Headway Bristol,862.64, 11-Apr-2016
975,Revenue,CAHD,Home Care - Elderly - North,Day Care / Social Activities,Headway Bristol,746.92, 11-Apr-2016
976,Revenue,CAHD,Home Care - Elderly - South,Day Care / Social Activities,Headway Bristol,946.80, 19-Apr-2016
977,Revenue,CAHD,Home Care - Elderly - North,Day Care / Social Activities,Headway Bristol,883.68, 19-Apr-2016
978,Revenue,CAHD,Home Care - Elderly - South,Day Care / Social Activities,Headway Bristol,757.44, 27-Apr-2016
979,Revenue,CAHD,Home Care - Elderly - North,Day Care / Social Activities,Headway Bristol,547.04, 27-Apr-2016
980,Revenue,CAHD,Home Care - Elderly - South,Other Small Contracts,Helping Hands Homecare,1267.20, 01-Apr-2016
981,Revenue,CAHD,Home Care - Elderly - North,Day Care / Social Activities,Helping Hands Homecare,158.40, 01-Apr-2016
982,Revenue,CAHD,Home Care - Elderly - North,Other Small Contracts,Helping Hands Homecare,1995.84, 01-Apr-2016
983,Revenue,CAHD,Day Care - North,Day Care / Social Activities,Helping Hands Homecare,31.68, 01-Apr-2016
984,Revenue,CAHD,Under 65s -MH  Home Care Purch,Other Small Contracts,Helping Hands Homecare,31.68, 01-Apr-2016
985,Revenue,CAHD,Home care - Elderly MH - North,Other Small Contracts,Helping Hands Homecare,59.40, 01-Apr-2016
986,Revenue,CAHD,Home Care - Elderly - South,Other Small Contracts,Helping Hands Homecare,1283.04, 08-Apr-2016
987,Revenue,CAHD,Home Care - Elderly - North,Day Care / Social Activities,Helping Hands Homecare,198.00, 08-Apr-2016
988,Revenue,CAHD,Home Care - Elderly - North,Other Small Contracts,Helping Hands Homecare,1881.00, 08-Apr-2016
989,Revenue,CAHD,Under 65s -MH  Home Care Purch,Other Small Contracts,Helping Hands Homecare,31.68, 08-Apr-2016
990,Revenue,CAHD,Home care - Elderly MH - North,Other Small Contracts,Helping Hands Homecare,31.68, 08-Apr-2016
991,Revenue,CAHD,Home Care - Elderly - South,Other Small Contracts,Helping Hands Homecare,1045.44, 15-Apr-2016
992,Revenue,CAHD,Home Care - Elderly - North,Day Care / Social Activities,Helping Hands Homecare,186.12, 15-Apr-2016
993,Revenue,CAHD,Home Care - Elderly - North,Other Small Contracts,Helping Hands Homecare,1663.20, 15-Apr-2016
994,Revenue,CAHD,Under 65s -MH  Home Care Purch,Other Small Contracts,Helping Hands Homecare,31.68, 15-Apr-2016
995,Revenue,CAHD,Home care - Elderly MH - North,Other Small Contracts,Helping Hands Homecare,63.36, 15-Apr-2016
996,Revenue,CAHD,Home Care - Elderly - South,Other Small Contracts,Helping Hands Homecare,1053.36, 21-Apr-2016
997,Revenue,CAHD,Home Care - Elderly - North,Day Care / Social Activities,Helping Hands Homecare,178.20, 21-Apr-2016
998,Revenue,CAHD,Home Care - Elderly - North,Other Small Contracts,Helping Hands Homecare,1587.96, 21-Apr-2016
999,Revenue,CAHD,Day Care - North,Day Care / Social Activities,Helping Hands Homecare,31.68, 21-Apr-2016
1000,Revenue,CAHD,Under 65s -MH  Home Care Purch,Other Small Contracts,Helping Hands Homecare,27.72, 21-Apr-2016
1001,Revenue,CAHD,Home care - Elderly MH - North,Other Small Contracts,Helping Hands Homecare,63.36, 21-Apr-2016
1002,Revenue,CAHD,Home Care - Elderly - South,Other Small Contracts,Helping Hands Homecare,871.20, 29-Apr-2016
1003,Revenue,CAHD,Home Care - Elderly - North,Day Care / Social Activities,Helping Hands Homecare,198.00, 29-Apr-2016
1004,Revenue,CAHD,Home Care - Elderly - North,Other Small Contracts,Helping Hands Homecare,1580.04, 29-Apr-2016
1005,Revenue,CAHD,Day Care - North,Day Care / Social Activities,Helping Hands Homecare,3.96, 29-Apr-2016
1006,Revenue,CAHD,Under 65s -MH  Home Care Purch,Other Small Contracts,Helping Hands Homecare,31.68, 29-Apr-2016
1007,Revenue,CAHD,Home care - Elderly MH - North,Other Small Contracts,Helping Hands Homecare,59.40, 29-Apr-2016
1008,Revenue,CAHD,S117 Placements PCT,Permanent Residential,Hesley Hall,18531.36, 12-Apr-2016
1009,Revenue,CAHD,Bed Purchasing - Southmead Hospital,Permanent Residential,Highfield House,2106.78, 12-Apr-2016
1010,Revenue,CAHD,Bed Purchasing - Southmead Hospital,Permanent Residential,Highgate Studios,1186.40, 12-Apr-2016
1011,Revenue,CAHD,Bed Purchasing - North,Permanent Residential,Holmleigh Care Homes Ltd,4140.22, 12-Apr-2016
1012,Revenue,CAHD,Bed Purchasing - South,Permanent Residential,Holmleigh Care Homes Ltd,1515.16, 12-Apr-2016
1013,Revenue,CAHD,Bed Purchasing - South,Permanent Residential,Holmleigh Care Homes Ltd,606.06, 12-Apr-2016
1014,Revenue,CAHD,Bed Purchasing - North,Permanent Residential,Home Farm Trust Ltd  5-6 Brook Office Pa,2713.52, 12-Apr-2016
1015,Revenue,CAHD,Bed Purchasing - South,Permanent Residential,Home Farm Trust Ltd  5-6 Brook Office Pa,5208.70, 12-Apr-2016
1016,Revenue,CAHD,Bed Purchasing - North,Permanent Residential,Home Farm Trust Ltd  5-6 Brook Office Pa,3411.64, 12-Apr-2016
1017,Revenue,CAHD,Bed Purchasing - South,Permanent Residential,Home Farm Trust Ltd  5-6 Brook Office Pa,5647.42, 12-Apr-2016
1018,Revenue,CAHD,18-25 Year Olds,Permanent Residential,Home From Home Care Ltd,9150.66, 12-Apr-2016
1019,Revenue,CAHD,Home Care - Elderly - South,Other Small Contracts,Homecare 4U,260.65, 06-Apr-2016
1020,Revenue,CAHD,Home Care - Elderly - North,Other Small Contracts,Homecare 4U,797.99, 06-Apr-2016
1021,Revenue,CAHD,Home Care - Elderly - South,Other Small Contracts,Homecare 4U,344.86, 19-Apr-2016
1022,Revenue,CAHD,Home Care - Elderly - North,Other Small Contracts,Homecare 4U,894.23, 19-Apr-2016
1023,Revenue,CAHD,Home Care - Elderly - South,Other Small Contracts,Homecare 4U,340.85, 28-Apr-2016
1024,Revenue,CAHD,Home Care - Elderly - North,Other Small Contracts,Homecare 4U,757.89, 28-Apr-2016
1025,Revenue,CAHD,Bed Purchasing - North,Permanent Residential,Homes Caring For Autism Ltd  Churchill H,2844.64, 12-Apr-2016
1026,Revenue,CAHD,Jointly Funded H&SC Packages,Permanent Residential,Homes Caring For Autism Ltd  Churchill H,732.23, 12-Apr-2016
1027,Revenue,CAHD,Bed Purchasing - North,Permanent Residential,Homes Caring For Autism Ltd  Churchill H,1430.74, 12-Apr-2016
1028,Revenue,CAHD,18-25 Year Olds,Permanent Residential,Homes Caring For Autism Ltd  Churchill H,2006.50, 12-Apr-2016
1029,Revenue,CAHD,Jointly Funded H&SC Packages,Permanent Residential,Homes Caring For Autism Ltd  Churchill H,2652.06, 12-Apr-2016
1030,Revenue,CAHD,18-25 Year Olds,Permanent Residential,Homes Caring For Autism Ltd  Churchill H,1863.42, 12-Apr-2016
1031,Revenue,CAHD,Bed Purchasing - Southmead Hospital,Permanent Nursing,Horfield Care Limited,1476.22, 08-Apr-2016
1032,Revenue,CAHD,Bed Purchasing - Southmead Hospital,Permanent Nursing,Horfield Care Limited,1847.56, 08-Apr-2016
1033,Revenue,CAHD,Bed Purchasing - Southmead Hospital,Permanent Nursing,Horfield Care Limited,1366.92, 08-Apr-2016
1034,Revenue,CAHD,Bed Purchasing - South,Permanent Nursing,Horfield Care Limited,1364.40, 08-Apr-2016
1035,Revenue,CAHD,Bed Purchasing - Southmead Hospital,Respite Planned - Nursing,Horfield Care Limited,2291.07, 08-Apr-2016
1036,Revenue,CAHD,Supporting People Programme,Grants to Voluntary Bodies,Housing 21,957.74, 11-Apr-2016
1037,Revenue,CAHD,Supporting People Programme,Grants to Voluntary Bodies,Housing 21,631.50, 11-Apr-2016
1038,Revenue,CAHD,Supporting People Programme,Grants to Voluntary Bodies,Housing 21,631.50, 29-Apr-2016
1039,Revenue,CAHD,Supporting People Programme,Grants to Voluntary Bodies,Housing 21,957.66, 29-Apr-2016
1040,Revenue,CAHD,Home Care - Elderly - North,Private & Voluntary Home Care,Housing 21,40371.16, 08-Apr-2016
1041,Revenue,CAHD,Home Care - Elderly - South,Private & Voluntary Home Care,Housing 21,25849.77, 01-Apr-2016
1042,Revenue,CAHD,Home Care - Elderly - South,Private & Voluntary Home Care,Housing 21,25849.77, 29-Apr-2016
1043,Revenue,CAHD,Bed Purchasing - North,Respite Planned - Residential,Ilford Park Polish Home,2822.86, 12-Apr-2016
1044,Revenue,CAHD,Care Management Team - South,Agency Staff (Operational)/PCT Pay,IPE,780.00, 20-Apr-2016
1045,Revenue,CAHD,Social Lettings Agency,Fees - General,Individual,12.22, 11-Apr-2016
1046,Revenue,CAHD,Social Lettings Agency,Other Supplies & Services,Individual,690.32, 11-Apr-2016
1047,Revenue,CAHD,Social Lettings Agency,Fees - General,Individual,10.53, 01-Apr-2016
1048,Revenue,CAHD,Social Lettings Agency,Other Supplies & Services,Individual,595.11, 01-Apr-2016
1049,Revenue,CAHD,Social Lettings Agency,Fees - General,Individual,10.53, 29-Apr-2016
1050,Revenue,CAHD,Social Lettings Agency,Other Supplies & Services,Individual,595.11, 29-Apr-2016
1051,Revenue,CAHD,Research & Conferences,Conference Expenses,Jo Cleary,895.00, 27-Apr-2016
1053,Revenue,CAHD,Bed Purchasing - South,Permanent Residential,Jonen House,3678.10, 12-Apr-2016
1054,Revenue,CAHD,Home Care - Elderly - South,Supported Living,Julia Simone- Supp. Ind.,1178.36, 12-Apr-2016
1055,Revenue,CAHD,Younger MH non-res purchasing,Supported Living,Julia Simone- Supp. Ind.,1178.36, 12-Apr-2016
1056,Revenue,CAHD,Younger MH non-res purchasing,Supported Living,Julia Simone- Supp. Ind.,1178.36, 12-Apr-2016
1057,Revenue,CAHD,Home Care - Elderly - North,Supported Living,Julia Simone- Supp. Ind.,1212.32, 12-Apr-2016
1058,Revenue,CAHD,Younger MH non-res purchasing,Supported Living,Julia Simone- Supp. Ind.,1178.20, 12-Apr-2016
1059,Revenue,CAHD,Bed Purchasing - South,Permanent Residential,Julia Simone- Supp. Ind.,4033.78, 12-Apr-2016
1060,Revenue,CAHD,Bed purchasing -S28A  Under 65 - North,Permanent Residential,Julia Simone- Supp. Ind.,3559.54, 12-Apr-2016
1061,Revenue,CAHD,Community Support - South,Preventative Assistance,KCC Cleaning Services Limited,1000.00, 01-Apr-2016
1062,Revenue,CAHD,Community Support - North,Preventative Assistance,KCC Cleaning Services Limited,620.00, 08-Apr-2016
1063,Revenue,CAHD,Community Support - North,Preventative Assistance,KCC Cleaning Services Limited,784.00, 08-Apr-2016
1064,Revenue,CAHD,Home Care - Elderly - South,Other Small Contracts,Kensington Community Care,2066.28, 06-Apr-2016
1065,Revenue,CAHD,Home Care - Elderly - North,Other Small Contracts,Kensington Community Care,5113.44, 06-Apr-2016
1066,Revenue,CAHD,Home Care - Elderly - South,Other Small Contracts,Kensington Community Care,2026.08, 06-Apr-2016
1067,Revenue,CAHD,Home Care - Elderly - North,Other Small Contracts,Kensington Community Care,4651.14, 06-Apr-2016
1068,Revenue,CAHD,Home Care - Elderly - South,Other Small Contracts,Kensington Community Care,1985.88, 19-Apr-2016
1069,Revenue,CAHD,Home Care - Elderly - North,Other Small Contracts,Kensington Community Care,4590.84, 19-Apr-2016
1070,Revenue,CAHD,Home Care - Elderly - South,Other Small Contracts,Kensington Community Care,1945.68, 20-Apr-2016
1071,Revenue,CAHD,Home Care - Elderly - North,Other Small Contracts,Kensington Community Care,4550.64, 20-Apr-2016
1072,Revenue,CAHD,MH Purchasing - Younger,Respite Planned - Residential,Kenver House,1236.42, 11-Apr-2016
1073,Revenue,CAHD,Bed Purchasing - Southmead Hospital,Permanent Residential,Kenver House Residential Home,842.88, 12-Apr-2016
1074,Revenue,CAHD,Bed Purchasing - Southmead Hospital,Permanent Residential,Kenver House Residential Home,832.02, 12-Apr-2016
1075,Revenue,CAHD,Bed Purchasing - Southmead Hospital,Permanent Residential,Kenver House Residential Home,848.64, 12-Apr-2016
1076,Revenue,CAHD,Bed Purchasing - Southmead Hospital,Permanent Residential,Kenver House Residential Home,842.54, 12-Apr-2016
1077,Revenue,CAHD,Bed Purchasing - South,Permanent Residential,Kenver House Residential Home,1244.22, 12-Apr-2016
1078,Revenue,CAHD,MH Purchasing - Younger,Permanent Residential,Kenver House Residential Home,1727.18, 12-Apr-2016
1079,Revenue,CAHD,Bed Purchasing - South,Permanent Residential,Kenver House Residential Home,1398.06, 12-Apr-2016
1080,Revenue,CAHD,Bed Purchasing - Southmead Hospital,Permanent Residential,Kenver House Residential Home,1307.12, 12-Apr-2016
1081,Revenue,CAHD,Bed Purchasing - Southmead Hospital,Permanent Residential,Kenver House Residential Home,1934.02, 12-Apr-2016
1082,Revenue,CAHD,Bed Purchasing - South,Permanent Residential,Kenver House Residential Home,848.64, 12-Apr-2016
1083,Revenue,CAHD,Bed Purchasing - South,Permanent Residential,Kenver House Residential Home,842.54, 12-Apr-2016
1084,Revenue,CAHD,Bed Purchasing - North,Permanent Residential,Kenver House Residential Home,1550.56, 12-Apr-2016
1085,Revenue,CAHD,Bed Purchasing - Southmead Hospital,Permanent Residential,Kenver House Residential Home,1759.30, 12-Apr-2016
1086,Revenue,CAHD,Bed purchasing - Elderly S117 - South,Permanent Residential,Kenver House Residential Home,2270.94, 12-Apr-2016
1087,Revenue,CAHD,Bed Purchasing - Southmead Hospital,Permanent Residential,Kenver House Residential Home,848.60, 12-Apr-2016
1088,Revenue,CAHD,Bed Purchasing - Southmead Hospital,Permanent Residential,Kenver House Residential Home,842.50, 12-Apr-2016
1089,Revenue,CAHD,Bed Purchasing - South,Permanent Residential,Kenver House Residential Home,848.64, 12-Apr-2016
1090,Revenue,CAHD,Bed Purchasing - South,Permanent Residential,Kenver House Residential Home,842.54, 12-Apr-2016
1091,Revenue,CAHD,Supporting People Programme,Grants to Voluntary Bodies,Keyring Living Support Networks,2988.62, 11-Apr-2016
1092,Revenue,CAHD,Supporting People Programme,Grants to Voluntary Bodies,Keyring Living Support Networks,2988.58, 29-Apr-2016
1093,Revenue,CAHD,Bed Purchasing - North,Permanent Nursing,Kingfisher Lodge Care Centre,2547.22, 12-Apr-2016
1094,Revenue,CAHD,Supporting People Programme,Grants to Voluntary Bodies,Kingswood Young Homeless Project,17359.62, 11-Apr-2016
1095,Revenue,CAHD,Supporting People Programme,Grants to Voluntary Bodies,Kingswood Young Homeless Project,17359.58, 29-Apr-2016
1096,Revenue,CAHD,Bed Purchasing - North,Permanent Residential,Kisimul Group,11593.84, 12-Apr-2016
1097,Revenue,CAHD,Supporting People Programme,Grants to Voluntary Bodies,Knightstone Housing Association Limited,2544.37, 11-Apr-2016
1098,Revenue,CAHD,Supporting People Programme,Grants to Voluntary Bodies,Knightstone Housing Association Limited,1833.74, 11-Apr-2016
1099,Revenue,CAHD,Supporting People Programme,Grants to Voluntary Bodies,Knightstone Housing Association Limited,2543.75, 11-Apr-2016
1100,Revenue,CAHD,Supporting People Programme,Grants to Voluntary Bodies,Knightstone Housing Association Limited,865.25, 11-Apr-2016
1101,Revenue,CAHD,Supporting People Programme,Grants to Voluntary Bodies,Knightstone Housing Association Limited,13845.35, 11-Apr-2016
1102,Revenue,CAHD,Supporting People Programme,Grants to Voluntary Bodies,Knightstone Housing Association Limited,8747.50, 11-Apr-2016
1103,Revenue,CAHD,Supporting People Programme,Grants to Voluntary Bodies,Knightstone Housing Association Limited,7789.00, 11-Apr-2016
1104,Revenue,CAHD,Supporting People Programme,Grants to Voluntary Bodies,Knightstone Housing Association Limited,2544.33, 29-Apr-2016
1105,Revenue,CAHD,Supporting People Programme,Grants to Voluntary Bodies,Knightstone Housing Association Limited,865.25, 29-Apr-2016
1106,Revenue,CAHD,Supporting People Programme,Grants to Voluntary Bodies,Knightstone Housing Association Limited,2543.75, 29-Apr-2016
1107,Revenue,CAHD,Supporting People Programme,Grants to Voluntary Bodies,Knightstone Housing Association Limited,1833.66, 29-Apr-2016
1108,Revenue,CAHD,Supporting People Programme,Grants to Voluntary Bodies,Knightstone Housing Association Limited,7789.00, 29-Apr-2016
1109,Revenue,CAHD,Supporting People Programme,Grants to Voluntary Bodies,Knightstone Housing Association Limited,8747.50, 29-Apr-2016
1110,Revenue,CAHD,Supporting People Programme,Grants to Voluntary Bodies,Knightstone Housing Association Limited,13845.33, 29-Apr-2016
1111,Revenue,CAHD,Social Lettings Agency,Other Supplies & Services,Individual,1000.00, 13-Apr-2016
1112,Revenue,CAHD,Home Care - Elderly - South,Other Small Contracts,Kumari Care Limited,1825.97, 06-Apr-2016
1113,Revenue,CAHD,Home Care - Elderly - North,Other Small Contracts,Kumari Care Limited,833.86, 06-Apr-2016
1114,Revenue,CAHD,Home Care - Elderly - South,Other Small Contracts,Kumari Care Limited,1888.53, 15-Apr-2016
1115,Revenue,CAHD,Home Care - Elderly - North,Other Small Contracts,Kumari Care Limited,833.86, 15-Apr-2016
1116,Revenue,CAHD,Home Care - Elderly - South,Other Small Contracts,Kumari Care Limited,1880.71, 28-Apr-2016
1117,Revenue,CAHD,Home Care - Elderly - North,Other Small Contracts,Kumari Care Limited,834.32, 28-Apr-2016
1118,Revenue,CAHD,Bed purchasing - Elderly S117 - South,Permanent Nursing,Lavender Lodge Limited,8461.68, 12-Apr-2016
1119,Revenue,CAHD,Bed Purchasing - North,Permanent Residential,Leonard Cheshire  National Account Centr,2971.38, 12-Apr-2016
1120,Revenue,CAHD,Bed Purchasing - South,Permanent Residential,Leonard Cheshire  National Account Centr,3401.30, 12-Apr-2016
1121,Revenue,CAHD,Bed Purchasing - North,Permanent Nursing,Leonard Cheshire  National Account Centr,3586.08, 12-Apr-2016
1122,Revenue,CAHD,Bed Purchasing - North,Permanent Nursing,Leonard Cheshire  National Account Centr,2880.06, 12-Apr-2016
1123,Revenue,CAHD,18-25 Year Olds,Permanent Residential,Leonard Cheshire  National Account Centr,3256.62, 12-Apr-2016
1124,Revenue,CAHD,Bed Purchasing - North,Permanent Residential,Leonard Cheshire  National Account Centr,3055.60, 12-Apr-2016
1125,Revenue,CAHD,Bed Purchasing - North,Permanent Residential,Leonard Cheshire  National Account Centr,3012.44, 12-Apr-2016
1126,Revenue,CAHD,Bed Purchasing - North,Permanent Residential,Leonard Cheshire  National Account Centr,3054.80, 12-Apr-2016
1127,Revenue,CAHD,Bed Purchasing - North,Permanent Residential,Leonard Cheshire  National Account Centr,3011.66, 12-Apr-2016
1128,Revenue,CAHD,Bed Purchasing - South,Permanent Residential,Leonard Cheshire  National Account Centr,4569.66, 12-Apr-2016
1129,Revenue,CAHD,Bed Purchasing - North,Permanent Nursing,Leonard Cheshire  National Account Centr,2935.28, 12-Apr-2016
1130,Revenue,CAHD,Bed Purchasing - North,Permanent Nursing,Leonard Cheshire  National Account Centr,3940.96, 12-Apr-2016
1131,Revenue,CAHD,Bed Purchasing - North,Permanent Residential,Leonard Cheshire  National Account Centr,2987.72, 12-Apr-2016
1132,Revenue,CAHD,Bed Purchasing - North,Permanent Nursing,Leonard Cheshire  National Account Centr,1603.46, 12-Apr-2016
1133,Revenue,CAHD,Bed Purchasing - North,Permanent Nursing,Leonard Cheshire  National Account Centr,1129.96, 12-Apr-2016
1134,Revenue,CAHD,Bed Purchasing - North,Permanent Nursing,Leonard Cheshire  National Account Centr,5702.12, 12-Apr-2016
1135,Revenue,CAHD,Bed Purchasing - South,Permanent Nursing,Leonard Cheshire  National Account Centr,2963.64, 12-Apr-2016
1136,Revenue,CAHD,Bed Purchasing - Southmead Hospital,Permanent Nursing,Leonard Cheshire  National Account Centr,3100.98, 12-Apr-2016
1137,Revenue,CAHD,South Glos Users in all other LA Homes,Permanent Nursing,Leonard Cheshire  National Account Centr,616.56, 12-Apr-2016
1138,Revenue,CAHD,Bed Purchasing - South,Respite Emergency - Residential,Leonard Cheshire  National Account Centr,15166.06, 12-Apr-2016
1139,Revenue,CAHD,Bed Purchasing - North,Permanent Nursing,Leonard Cheshire  National Account Centr,3381.34, 12-Apr-2016
1140,Revenue,CAHD,Bed Purchasing - North,Permanent Nursing,Leonard Cheshire  National Account Centr,4198.52, 12-Apr-2016
1141,Revenue,CAHD,Supported Living - North,Private & Voluntary Home Care,Lifeways Community Care (Gloucester) Limited,11758.56, 05-Apr-2016
1142,Revenue,CAHD,Section 117 Placements MH Younger,Permanent Residential,Little Croft,2214.96, 12-Apr-2016
1143,Revenue,CAHD,Bed Purchasing - Southmead Hospital,Permanent Residential,Little Croft,547.92, 12-Apr-2016
1144,Revenue,CAHD,Bed Purchasing - Southmead Hospital,Permanent Residential,Little Croft,542.62, 12-Apr-2016
1145,Revenue,CAHD,Bed Purchasing - Southmead Hospital,Permanent Residential,Little Croft,638.60, 12-Apr-2016
1146,Revenue,CAHD,Bed Purchasing - Southmead Hospital,Permanent Residential,Little Croft,634.66, 12-Apr-2016
1147,Revenue,CAHD,Bed Purchasing - North,Permanent Residential,Little Croft,623.42, 12-Apr-2016
1148,Revenue,CAHD,Bed Purchasing - North,Permanent Residential,Little Croft,615.46, 12-Apr-2016
1149,Revenue,CAHD,Bed Purchasing - Southmead Hospital,Permanent Residential,Little Croft,1307.58, 12-Apr-2016
1150,Revenue,CAHD,Bed Purchasing - Southmead Hospital,Permanent Residential,Little Croft,1282.00, 12-Apr-2016
1151,Revenue,CAHD,Bed Purchasing - South,Permanent Residential,Little Croft,13059.63, 12-Apr-2016
1152,Revenue,CAHD,Bed Purchasing - South,Permanent Residential,Little Croft,908.56, 12-Apr-2016
1153,Revenue,CAHD,Bed Purchasing - South,Permanent Residential,Little Croft,896.86, 12-Apr-2016
1154,Revenue,CAHD,Bed Purchasing - North,Permanent Residential,Little Croft,616.94, 12-Apr-2016
1155,Revenue,CAHD,Bed Purchasing - North,Permanent Residential,Little Croft,608.98, 12-Apr-2016
1156,Revenue,CAHD,Bed Purchasing - Southmead Hospital,Permanent Residential,Little Croft,2214.96, 12-Apr-2016
1157,Revenue,CAHD,Bed Purchasing - Southmead Hospital,Permanent Residential,Little Croft,1768.02, 12-Apr-2016
1158,Revenue,CAHD,Bed Purchasing - Southmead Hospital,Permanent Residential,Little Croft,900.00, 12-Apr-2016
1159,Revenue,CAHD,Bed Purchasing - Southmead Hospital,Permanent Residential,Little Croft,888.00, 12-Apr-2016
1160,Revenue,CAHD,Bed Purchasing - Southmead Hospital,Permanent Residential,Little Croft,1483.24, 12-Apr-2016
1161,Revenue,CAHD,Bed Purchasing - South,Respite Emergency - Residential,Little Croft,1600.14, 12-Apr-2016
1162,Revenue,CAHD,Bed Purchasing - South,Permanent Residential,Little Croft,726.60, 12-Apr-2016
1163,Revenue,CAHD,Bed Purchasing - South,Permanent Residential,Little Croft,721.40, 12-Apr-2016
1164,Revenue,CAHD,Bed Purchasing - Southmead Hospital,Permanent Residential,Little Croft,1448.00, 12-Apr-2016
1165,Revenue,CAHD,Bed Purchasing - Southmead Hospital,Permanent Residential,Little Croft,624.78, 12-Apr-2016
1166,Revenue,CAHD,Bed Purchasing - Southmead Hospital,Permanent Residential,Little Croft,616.84, 12-Apr-2016
1167,Revenue,CAHD,Bed Purchasing - North,Permanent Residential,Little Croft,543.10, 12-Apr-2016
1168,Revenue,CAHD,Bed Purchasing - North,Permanent Residential,Little Croft,537.80, 12-Apr-2016
1169,Revenue,CAHD,Bed Purchasing - South,Permanent Residential,Little Croft,1392.86, 12-Apr-2016
1170,Revenue,CAHD,Bed Purchasing - South,Permanent Residential,Little Croft,726.60, 12-Apr-2016
1171,Revenue,CAHD,Bed Purchasing - South,Permanent Residential,Little Croft,721.40, 12-Apr-2016
1172,Revenue,CAHD,Bed Purchasing - South,Permanent Residential,Little Croft,721.42, 12-Apr-2016
1173,Revenue,CAHD,Bed Purchasing - South,Permanent Residential,Little Croft,711.46, 12-Apr-2016
1174,Revenue,CAHD,Bed Purchasing - Southmead Hospital,Permanent Residential,Little Croft,638.60, 12-Apr-2016
1175,Revenue,CAHD,Bed Purchasing - Southmead Hospital,Permanent Residential,Little Croft,635.40, 12-Apr-2016
1176,Revenue,CAHD,Bed Purchasing - Southmead Hospital,Permanent Residential,Little Croft,638.60, 12-Apr-2016
1177,Revenue,CAHD,Bed Purchasing - Southmead Hospital,Permanent Residential,Little Croft,635.40, 12-Apr-2016
1178,Revenue,CAHD,Bed Purchasing - South,Permanent Residential,Little Croft,1082.10, 12-Apr-2016
1179,Revenue,CAHD,Bed Purchasing - South,Permanent Residential,Little Croft,725.84, 12-Apr-2016
1180,Revenue,CAHD,Bed Purchasing - South,Permanent Residential,Little Croft,721.40, 12-Apr-2016
1181,Revenue,CAHD,Bed Purchasing - North,Permanent Residential,Littlecroft Residential Homes  Longcroft,6525.66, 12-Apr-2016
1182,Revenue,CAHD,Home Care - Elderly - South,Day Care / Social Activities,Lloyds TSB Commercial Finance Limited,4863.65, 18-Apr-2016
1183,Revenue,CAHD,Home Care - Elderly - South,Other Small Contracts,Lloyds TSB Commercial Finance Limited,5276.31, 18-Apr-2016
1184,Revenue,CAHD,Home Care - Elderly - South,Supported Living,Lloyds TSB Commercial Finance Limited,8149.42, 18-Apr-2016
1185,Revenue,CAHD,Home Care - Elderly - North,Day Care / Social Activities,Lloyds TSB Commercial Finance Limited,195.36, 18-Apr-2016
1186,Revenue,CAHD,Home Care - Elderly - North,Supported Living,Lloyds TSB Commercial Finance Limited,1827.43, 18-Apr-2016
1187,Revenue,CAHD,Younger MH non-res purchasing,Other Small Contracts,Lloyds TSB Commercial Finance Limited,10636.30, 18-Apr-2016
1188,Revenue,CAHD,Younger MH non-res purchasing,Supported Living,Lloyds TSB Commercial Finance Limited,105.20, 18-Apr-2016
1189,Revenue,CAHD,Home Care - Elderly - South,Day Care / Social Activities,Lloyds TSB Commercial Finance Limited,4888.07, 18-Apr-2016
1190,Revenue,CAHD,Home Care - Elderly - South,Other Small Contracts,Lloyds TSB Commercial Finance Limited,5365.85, 18-Apr-2016
1191,Revenue,CAHD,Home Care - Elderly - South,Supported Living,Lloyds TSB Commercial Finance Limited,8166.59, 18-Apr-2016
1192,Revenue,CAHD,Home Care - Elderly - North,Day Care / Social Activities,Lloyds TSB Commercial Finance Limited,195.36, 18-Apr-2016
1193,Revenue,CAHD,Home Care - Elderly - North,Supported Living,Lloyds TSB Commercial Finance Limited,1827.43, 18-Apr-2016
1194,Revenue,CAHD,Younger MH non-res purchasing,Other Small Contracts,Lloyds TSB Commercial Finance Limited,10652.00, 18-Apr-2016
1195,Revenue,CAHD,Younger MH non-res purchasing,Supported Living,Lloyds TSB Commercial Finance Limited,105.20, 18-Apr-2016
1196,Revenue,CAHD,Home Care - Elderly - South,Day Care / Social Activities,Lloyds TSB Commercial Finance Limited,4818.88, 15-Apr-2016
1197,Revenue,CAHD,Home Care - Elderly - South,Other Small Contracts,Lloyds TSB Commercial Finance Limited,5369.92, 15-Apr-2016
1198,Revenue,CAHD,Home Care - Elderly - South,Supported Living,Lloyds TSB Commercial Finance Limited,8460.75, 15-Apr-2016
1199,Revenue,CAHD,Home Care - Elderly - North,Day Care / Social Activities,Lloyds TSB Commercial Finance Limited,195.36, 15-Apr-2016
1200,Revenue,CAHD,Home Care - Elderly - North,Supported Living,Lloyds TSB Commercial Finance Limited,1253.56, 15-Apr-2016
1201,Revenue,CAHD,Younger MH non-res purchasing,Other Small Contracts,Lloyds TSB Commercial Finance Limited,10645.42, 15-Apr-2016
1202,Revenue,CAHD,Younger MH non-res purchasing,Supported Living,Lloyds TSB Commercial Finance Limited,105.20, 15-Apr-2016
1203,Revenue,CAHD,Home Care - Elderly - South,Day Care / Social Activities,Lloyds TSB Commercial Finance Limited,4765.97, 28-Apr-2016
1204,Revenue,CAHD,Home Care - Elderly - South,Other Small Contracts,Lloyds TSB Commercial Finance Limited,5369.92, 28-Apr-2016
1205,Revenue,CAHD,Home Care - Elderly - South,Supported Living,Lloyds TSB Commercial Finance Limited,7898.93, 28-Apr-2016
1206,Revenue,CAHD,Home Care - Elderly - North,Day Care / Social Activities,Lloyds TSB Commercial Finance Limited,195.36, 28-Apr-2016
1207,Revenue,CAHD,Home Care - Elderly - North,Supported Living,Lloyds TSB Commercial Finance Limited,1396.01, 28-Apr-2016
1208,Revenue,CAHD,Younger MH non-res purchasing,Other Small Contracts,Lloyds TSB Commercial Finance Limited,10657.34, 28-Apr-2016
1209,Revenue,CAHD,Younger MH non-res purchasing,Supported Living,Lloyds TSB Commercial Finance Limited,105.20, 28-Apr-2016
1210,Revenue,CAHD,Home Care - Elderly - South,Day Care / Social Activities,Lloyds TSB Commercial Finance Limited,4977.61, 29-Apr-2016
1211,Revenue,CAHD,Home Care - Elderly - South,Other Small Contracts,Lloyds TSB Commercial Finance Limited,5390.27, 29-Apr-2016
1212,Revenue,CAHD,Home Care - Elderly - South,Supported Living,Lloyds TSB Commercial Finance Limited,7398.64, 29-Apr-2016
1213,Revenue,CAHD,Home Care - Elderly - North,Day Care / Social Activities,Lloyds TSB Commercial Finance Limited,390.72, 29-Apr-2016
1214,Revenue,CAHD,Home Care - Elderly - North,Supported Living,Lloyds TSB Commercial Finance Limited,1839.64, 29-Apr-2016
1215,Revenue,CAHD,Younger MH non-res purchasing,Other Small Contracts,Lloyds TSB Commercial Finance Limited,10683.36, 29-Apr-2016
1216,Revenue,CAHD,Younger MH non-res purchasing,Supported Living,Lloyds TSB Commercial Finance Limited,105.20, 29-Apr-2016
1217,Revenue,CAHD,Home Care - Elderly - North,Day Care / Social Activities,Lower Kilcott,1481.84, 12-Apr-2016
1218,Revenue,CAHD,Home Care - Elderly - North,Day Care / Social Activities,Lower Kilcott,710.16, 12-Apr-2016
1219,Revenue,CAHD,Home Care - Elderly - North,Day Care / Social Activities,Lower Kilcott,566.68, 12-Apr-2016
1220,Revenue,CAHD,Social Lettings Agency,Fees - General,Individual,13.60, 05-Apr-2016
1221,Revenue,CAHD,Social Lettings Agency,Other Supplies & Services,Individual,768.40, 05-Apr-2016
1223,Revenue,CAHD,Bed Purchasing - Southmead Hospital,Permanent Nursing,Majestic 3 Limited,1010.96, 12-Apr-2016
1224,Revenue,CAHD,18-25 Year Olds,Day Care / Social Activities,Make it Mentoring CIC Ltd,1456.00, 20-Apr-2016
1225,Revenue,CAHD,18-25 Year Olds,Day Care / Social Activities,Make it Mentoring CIC Ltd,1720.00, 21-Apr-2016
1226,Revenue,CAHD,18-25 Year Olds,Day Care / Social Activities,Make it Mentoring CIC Ltd,1022.00, 01-Apr-2016
1227,Revenue,CAHD,18-25 Year Olds,Day Care / Social Activities,Make it Mentoring CIC Ltd,1694.00, 01-Apr-2016
1228,Revenue,CAHD,18-25 Year Olds,Day Care / Social Activities,Make it Mentoring CIC Ltd,2688.00, 01-Apr-2016
1229,Revenue,CAHD,18-25 Year Olds,Day Care / Social Activities,Make it Mentoring CIC Ltd,1092.00, 20-Apr-2016
1230,Revenue,CAHD,18-25 Year Olds,Day Care / Social Activities,Make it Mentoring CIC Ltd,2632.00, 20-Apr-2016
1231,Revenue,CAHD,Bed Purchasing - South,Permanent Residential,Manor Cottage,1878.14, 12-Apr-2016
1232,Revenue,CAHD,Bed Purchasing - Southmead Hospital,Permanent Residential,Manor Cottage,1274.00, 12-Apr-2016
1233,Revenue,CAHD,Bed Purchasing - South,Permanent Residential,Manor Cottage,1821.78, 12-Apr-2016
1234,Revenue,CAHD,Bed Purchasing - Southmead Hospital,Permanent Residential,Manor Cottage,1046.88, 12-Apr-2016
1235,Revenue,CAHD,Bed Purchasing - South,Permanent Residential,Manor Cottage,1479.84, 12-Apr-2016
1236,Revenue,CAHD,Bed Purchasing - South,Permanent Residential,Manor Cottage,1521.34, 12-Apr-2016
1237,Revenue,CAHD,Bed Purchasing - North,Permanent Residential,Manton Hall Residential Home,1553.08, 12-Apr-2016
1238,Revenue,CAHD,Younger MH non-res purchasing,Supported Living,Maples Community Care Limited,1092.81, 08-Apr-2016
1239,Revenue,CAHD,Younger MH non-res purchasing,Other Small Contracts,Maples Community Care Limited,748.50, 22-Apr-2016
1240,Revenue,CAHD,Younger MH non-res purchasing,Supported Living,Maples Community Care Limited,798.40, 22-Apr-2016
1241,Revenue,CAHD,Younger MH non-res purchasing,Supported Living,Maples Community Care Limited,1197.60, 22-Apr-2016
1242,Revenue,CAHD,Younger MH non-res purchasing,Supported Living,Maples Community Care Limited,1197.60, 22-Apr-2016
1243,Revenue,CAHD,Home Care - Elderly - South,Supported Living,Maples Community Care Limited,808.38, 22-Apr-2016
1244,Revenue,CAHD,Home Care - Elderly - South,Supported Living,Maples Community Care Limited,4371.24, 22-Apr-2016
1245,Revenue,CAHD,Home Care - Elderly - South,Supported Living,Maples Community Care Limited,558.88, 22-Apr-2016
1246,Revenue,CAHD,Younger MH non-res purchasing,Supported Living,Maples Community Care Limited,1152.69, 27-Apr-2016
1247,Revenue,CAHD,Home Care - Elderly - South,Supported Living,Maples Community Care Limited,898.20, 22-Apr-2016
1248,Revenue,CAHD,Younger MH non-res purchasing,Supported Living,Maples Community Care Limited,798.40, 27-Apr-2016
1249,Revenue,CAHD,Younger MH non-res purchasing,Supported Living,Maples Community Care Limited,1400.00, 12-Apr-2016
1250,Revenue,CAHD,Younger MH non-res purchasing,Supported Living,Maples Community Care Limited,1400.00, 12-Apr-2016
1251,Revenue,CAHD,Home Care - Elderly - South,Supported Living,Maples Community Care Limited,1400.00, 12-Apr-2016
1252,Revenue,CAHD,Home Care - Elderly - South,Supported Living,Maples Community Care Limited,1400.00, 12-Apr-2016
1253,Revenue,CAHD,Younger MH non-res purchasing,Supported Living,Maples Community Care Limited,1400.00, 12-Apr-2016
1254,Revenue,CAHD,Younger MH non-res purchasing,Supported Living,Maples Community Care Limited,1400.00, 12-Apr-2016
1255,Revenue,CAHD,Younger MH non-res purchasing,Supported Living,Maples Community Care Limited,1400.00, 12-Apr-2016
1257,Revenue,CAHD,Social Lettings Agency,Fees - General,Individual,12.22, 20-Apr-2016
1258,Revenue,CAHD,Social Lettings Agency,Other Supplies & Services,Individual,690.32, 20-Apr-2016
1259,Revenue,CAHD,Bed Purchasing - South,Permanent Residential,Marsden Healthcare Ltd,1287.02, 12-Apr-2016
1260,Revenue,CAHD,Bed Purchasing - South,Permanent Residential,Marsden Healthcare Ltd,3295.78, 12-Apr-2016
1261,Revenue,CAHD,Bed Purchasing - South,Permanent Residential,Marsden Healthcare Ltd,1543.18, 12-Apr-2016
1262,Revenue,CAHD,Bed Purchasing - South,Permanent Nursing,Meadow Care Home,1562.28, 12-Apr-2016
1263,Revenue,CAHD,Bed Purchasing - Elderly S117- North,Permanent Nursing,Meadow Care Home,3825.84, 12-Apr-2016
1264,Revenue,CAHD,Bed purchasing - Elderly S117 - South,Permanent Nursing,Meadow Care Home,2436.44, 12-Apr-2016
1265,Revenue,CAHD,Bed Purchasing - Elderly S117- North,Permanent Nursing,Meadow Care Home,4832.64, 12-Apr-2016
1266,Revenue,CAHD,Bed Purchasing - Elderly S117- North,Permanent Nursing,Meadow Care Home,685.71, 12-Apr-2016
1267,Revenue,CAHD,Home Care - Elderly - South,Private & Voluntary Home Care,Mears Care,49770.25, 28-Apr-2016
1268,Revenue,CAHD,Home Care - Elderly - South,Other Small Contracts,Medacs Home Care,14.16, 06-Apr-2016
1269,Revenue,CAHD,Home Care - Elderly - North,Other Small Contracts,Medacs Home Care,661.98, 06-Apr-2016
1270,Revenue,CAHD,Home Care - Elderly - South,Other Small Contracts,Medacs Home Care,10.62, 19-Apr-2016
1271,Revenue,CAHD,Home Care - Elderly - North,Other Small Contracts,Medacs Home Care,665.52, 19-Apr-2016
1272,Revenue,CAHD,Home Care - Elderly - South,Other Small Contracts,Medacs Home Care,14.16, 26-Apr-2016
1273,Revenue,CAHD,Home Care - Elderly - North,Other Small Contracts,Medacs Home Care,647.82, 26-Apr-2016
1274,Revenue,CAHD,ICES / NRS Contract,Daily Living Equipment,Medequip Assistive Technology Limited,1282.82, 11-Apr-2016
1275,Revenue,CAHD,Bed Purchasing - South,Permanent Residential,Mencap,2295.52, 12-Apr-2016
1276,Revenue,CAHD,Supporting People Programme,Grants to Voluntary Bodies,Merlin Housing Society,14987.62, 11-Apr-2016
1277,Revenue,CAHD,Supporting People Programme,Grants to Voluntary Bodies,Merlin Housing Society,2519.37, 11-Apr-2016
1278,Revenue,CAHD,Supporting People Programme,Grants to Voluntary Bodies,Merlin Housing Society,20687.49, 11-Apr-2016
1279,Revenue,CAHD,Supporting People Programme,Grants to Voluntary Bodies,Merlin Housing Society,1067.37, 11-Apr-2016
1280,Revenue,CAHD,Supporting People Programme,Grants to Voluntary Bodies,Merlin Housing Society,14987.58, 29-Apr-2016
1281,Revenue,CAHD,Supporting People Programme,Grants to Voluntary Bodies,Merlin Housing Society,2519.33, 29-Apr-2016
1282,Revenue,CAHD,Supporting People Programme,Grants to Voluntary Bodies,Merlin Housing Society,20687.41, 29-Apr-2016
1283,Revenue,CAHD,Supporting People Programme,Grants to Voluntary Bodies,Merlin Housing Society,1067.33, 29-Apr-2016
1284,Revenue,CAHD,Under 65s -MH  Home Care Purch,Other Small Contracts,Mike Durrant - Cherry Orchards,1780.00, 12-Apr-2016
1285,Revenue,CAHD,Home Care - Elderly - South,Supported Living,Milestones - Unit 10,2103.36, 12-Apr-2016
1286,Revenue,CAHD,Home Care - Elderly - South,Supported Living,Milestones - Unit 10,3631.76, 12-Apr-2016
1287,Revenue,CAHD,Home Care - Elderly - North,Supported Living,Milestones - Unit 10,4304.16, 12-Apr-2016
1288,Revenue,CAHD,Home Care - Elderly - South,Supported Living,Milestones - Unit 10,3631.76, 12-Apr-2016
1289,Revenue,CAHD,Supported Living (S28a) North,Private & Voluntary Home Care,Milestones - Unit 10,4076.32, 12-Apr-2016
1290,Revenue,CAHD,Home Care - Elderly - South,Supported Living,Milestones - Unit 10,3643.60, 12-Apr-2016
1291,Revenue,CAHD,Home Care - Elderly - South,Supported Living,Milestones - Unit 10,2317.68, 12-Apr-2016
1292,Revenue,CAHD,Home Care - Elderly - South,Supported Living,Milestones - Unit 10,3715.52, 12-Apr-2016
1293,Revenue,CAHD,Home Care - Elderly - South,Other Small Contracts,Milestones - Unit 10,3719.52, 12-Apr-2016
1294,Revenue,CAHD,Supported Living (S28a) North,Private & Voluntary Home Care,Milestones - Unit 10,4076.32, 12-Apr-2016
1295,Revenue,CAHD,Supported Living (S28a) South,Supported Living,Milestones - Unit 10,3881.32, 12-Apr-2016
1296,Revenue,CAHD,Supported Living (S28a) North,Private & Voluntary Home Care,Milestones - Unit 10,3603.08, 12-Apr-2016
1297,Revenue,CAHD,Supported Living (S28a) North,Private & Voluntary Home Care,Milestones - Unit 10,3603.08, 12-Apr-2016
1298,Revenue,CAHD,Home Care - Elderly - South,Supported Living,Milestones - Unit 10,1251.04, 12-Apr-2016
1299,Revenue,CAHD,Supported Living (S28a) South,Supported Living,Milestones - Unit 10,5505.80, 12-Apr-2016
1300,Revenue,CAHD,Home Care - Elderly - South,Supported Living,Milestones - Unit 10,2232.52, 12-Apr-2016
1301,Revenue,CAHD,Supported Living (S28a) South,Supported Living,Milestones - Unit 10,2232.52, 12-Apr-2016
1302,Revenue,CAHD,Home Care - Elderly - North,Supported Living,Milestones - Unit 10,4304.16, 12-Apr-2016
1303,Revenue,CAHD,Home Care - Elderly - South,Supported Living,Milestones - Unit 10,2103.36, 12-Apr-2016
1304,Revenue,CAHD,Supported Living (S28a) North,Private & Voluntary Home Care,Milestones - Unit 10,3615.20, 12-Apr-2016
1305,Revenue,CAHD,Supported Living (S28a) South,Supported Living,Milestones - Unit 10,2232.52, 12-Apr-2016
1306,Revenue,CAHD,Supported Living (S28a) South,Supported Living,Milestones - Unit 10,2232.52, 12-Apr-2016
1307,Revenue,CAHD,Bed Purchasing - North,Permanent Residential,Milestones - Unit 10,3514.54, 12-Apr-2016
1308,Revenue,CAHD,Bed Purchasing - South,Permanent Residential,Milestones - Unit 10,2496.44, 12-Apr-2016
1309,Revenue,CAHD,Bed Purchasing - South,Permanent Residential,Milestones - Unit 10,2460.78, 12-Apr-2016
1310,Revenue,CAHD,Bed Purchasing - South,Permanent Residential,Milestones - Unit 10,1827.76, 12-Apr-2016
1311,Revenue,CAHD,Bed Purchasing - South,Permanent Residential,Milestones - Unit 10,920.56, 12-Apr-2016
1312,Revenue,CAHD,Bed Purchasing - South,Permanent Nursing,Milestones - Unit 10,2781.90, 12-Apr-2016
1313,Revenue,CAHD,Bed Purchasing - South,Permanent Nursing,Milestones - Unit 10,1293.74, 12-Apr-2016
1314,Revenue,CAHD,Bed Purchasing - South,Permanent Residential,Milestones - Unit 10,3660.24, 12-Apr-2016
1315,Revenue,CAHD,Bed purchasing - Elderly S117 - South,Permanent Nursing,Milestones - Unit 10,7763.80, 12-Apr-2016
1316,Revenue,CAHD,Bed Purchasing - North,Permanent Nursing,Milestones - Unit 10,1450.04, 12-Apr-2016
1317,Revenue,CAHD,Bed Purchasing - North,Permanent Residential,Milestones - Unit 10,8907.56, 12-Apr-2016
1318,Revenue,CAHD,Bed Purchasing - South,Permanent Residential,Milestones - Unit 10,2105.78, 12-Apr-2016
1319,Revenue,CAHD,Bed Purchasing - South,Permanent Residential,Milestones - Unit 10,2082.82, 12-Apr-2016
1320,Revenue,CAHD,Bed Purchasing - North,Permanent Nursing,Milestones - Unit 10,4270.32, 12-Apr-2016
1321,Revenue,CAHD,Bed purchasing -S28A  Under 65 - North,Permanent Residential,Milestones - Unit 10,5418.96, 12-Apr-2016
1322,Revenue,CAHD,Bed purchasing - S28A Under 65 - South,Permanent Residential,Milestones - Unit 10,5628.84, 12-Apr-2016
1323,Revenue,CAHD,Bed Purchasing - South,Permanent Residential,Milestones - Unit 10,1321.04, 12-Apr-2016
1324,Revenue,CAHD,Bed Purchasing - South,Permanent Residential,Milestones - Unit 10,5078.80, 12-Apr-2016
1325,Revenue,CAHD,Bed Purchasing - South,Permanent Residential,Milestones - Unit 10,5636.10, 12-Apr-2016
1326,Revenue,CAHD,Bed purchasing - S28A Under 65 - South,Permanent Nursing,Milestones - Unit 10,7413.78, 12-Apr-2016
1327,Revenue,CAHD,MH Purchasing - Younger,Permanent Residential,Milestones - Unit 10,868.00, 12-Apr-2016
1328,Revenue,CAHD,Bed Purchasing - South,Permanent Residential,Milestones - Unit 10,5155.70, 12-Apr-2016
1329,Revenue,CAHD,Bed Purchasing - South,Permanent Residential,Milestones - Unit 10,5205.58, 12-Apr-2016
1330,Revenue,CAHD,Bed Purchasing - North,Permanent Residential,Milestones - Unit 10,1535.69, 12-Apr-2016
1331,Revenue,CAHD,Bed Purchasing - North,Permanent Residential,Milestones - Unit 10,580.42, 12-Apr-2016
1332,Revenue,CAHD,Bed purchasing -S28A  Under 65 - North,Permanent Nursing,Milestones - Unit 10,5355.58, 12-Apr-2016
1333,Revenue,CAHD,Bed Purchasing - North,Permanent Residential,Milestones - Unit 10,2377.04, 12-Apr-2016
1334,Revenue,CAHD,Bed Purchasing - North,Permanent Residential,Milestones - Unit 10,2342.98, 12-Apr-2016
1335,Revenue,CAHD,Bed purchasing -S28A  Under 65 - North,Permanent Residential,Milestones - Unit 10,3618.72, 12-Apr-2016
1336,Revenue,CAHD,Bed purchasing -S28A  Under 65 - North,Permanent Residential,Milestones - Unit 10,3568.00, 12-Apr-2016
1337,Revenue,CAHD,Bed purchasing -S28A  Under 65 - North,Permanent Nursing,Milestones - Unit 10,2974.60, 12-Apr-2016
1338,Revenue,CAHD,Bed purchasing -S28A  Under 65 - North,Permanent Nursing,Milestones - Unit 10,2932.52, 12-Apr-2016
1339,Revenue,CAHD,Bed Purchasing - South,Permanent Residential,Milestones - Unit 10,3270.52, 12-Apr-2016
1340,Revenue,CAHD,Bed purchasing -S28A  Under 65 - North,Permanent Residential,Milestones - Unit 10,6877.74, 12-Apr-2016
1341,Revenue,CAHD,Bed purchasing - S28A Under 65 - South,Permanent Residential,Milestones - Unit 10,4609.10, 12-Apr-2016
1342,Revenue,CAHD,Bed Purchasing - S28A - Over 65- North,Permanent Residential,Milestones - Unit 10,6710.90, 12-Apr-2016
1343,Revenue,CAHD,Bed purchasing -S28A  Under 65 - North,Permanent Residential,Milestones - Unit 10,3598.82, 12-Apr-2016
1344,Revenue,CAHD,Bed purchasing -S28A  Under 65 - North,Permanent Residential,Milestones - Unit 10,3544.60, 12-Apr-2016
1345,Revenue,CAHD,Bed purchasing -S28A  Under 65 - North,Permanent Residential,Milestones - Unit 10,3618.82, 12-Apr-2016
1346,Revenue,CAHD,Bed purchasing -S28A  Under 65 - North,Permanent Residential,Milestones - Unit 10,3568.10, 12-Apr-2016
1347,Revenue,CAHD,Bed Purchasing - LD S28A- Over 65- South,Permanent Residential,Milestones - Unit 10,2091.98, 12-Apr-2016
1348,Revenue,CAHD,Bed Purchasing - LD S28A- Over 65- South,Permanent Residential,Milestones - Unit 10,2067.24, 12-Apr-2016
1349,Revenue,CAHD,Bed purchasing - S28A Under 65 - South,Permanent Residential,Milestones - Unit 10,4560.70, 12-Apr-2016
1350,Revenue,CAHD,Bed purchasing - S28A Under 65 - South,Permanent Residential,Milestones - Unit 10,3731.98, 12-Apr-2016
1351,Revenue,CAHD,Bed Purchasing - LD S28A- Over 65- South,Permanent Residential,Milestones - Unit 10,5171.64, 12-Apr-2016
1352,Revenue,CAHD,Bed Purchasing - LD S28A- Over 65- South,Permanent Residential,Milestones - Unit 10,4826.06, 12-Apr-2016
1353,Revenue,CAHD,Bed Purchasing - LD S28A- Over 65- South,Permanent Residential,Milestones - Unit 10,5155.58, 12-Apr-2016
1354,Revenue,CAHD,Bed Purchasing - LD S28A- Over 65- South,Permanent Residential,Milestones - Unit 10,2222.64, 12-Apr-2016
1355,Revenue,CAHD,Bed Purchasing - LD S28A- Over 65- South,Permanent Residential,Milestones - Unit 10,2198.12, 12-Apr-2016
1356,Revenue,CAHD,Bed Purchasing - LD S28A- Over 65- South,Permanent Residential,Milestones - Unit 10,5252.14, 12-Apr-2016
1357,Revenue,CAHD,Bed Purchasing - S28A - Over 65- North,Permanent Residential,Milestones - Unit 10,2916.44, 12-Apr-2016
1358,Revenue,CAHD,Section 117 Placements MH Younger,Permanent Residential,Milestones - Unit 10,1382.00, 12-Apr-2016
1359,Revenue,CAHD,Bed Purchasing - South,Permanent Residential,Milestones - Unit 10,868.00, 12-Apr-2016
1360,Revenue,CAHD,Bed purchasing - S28A Under 65 - South,Permanent Residential,Milestones - Unit 10,2522.98, 12-Apr-2016
1361,Revenue,CAHD,Bed purchasing - S28A Under 65 - South,Permanent Residential,Milestones - Unit 10,2494.42, 12-Apr-2016
1362,Revenue,CAHD,Bed Purchasing - North,Permanent Residential,Milestones - Unit 10,4374.14, 12-Apr-2016
1363,Revenue,CAHD,Bed Purchasing - North,Permanent Nursing,Milestones - Unit 10,7005.18, 12-Apr-2016
1364,Revenue,CAHD,Bed Purchasing - South,Permanent Residential,Milestones - Unit 10,4350.28, 12-Apr-2016
1365,Revenue,CAHD,Bed purchasing -S28A  Under 65 - North,Permanent Residential,Milestones - Unit 10,5779.12, 12-Apr-2016
1366,Revenue,CAHD,Bed Purchasing - S28A - Over 65- North,Permanent Residential,Milestones - Unit 10,3653.26, 12-Apr-2016
1367,Revenue,CAHD,MH Purchasing - Younger,Permanent Residential,Milestones - Unit 10,1060.20, 12-Apr-2016
1368,Revenue,CAHD,Bed Purchasing - S28A - Over 65- North,Permanent Residential,Milestones - Unit 10,3261.94, 12-Apr-2016
1369,Revenue,CAHD,Bed Purchasing - LD S28A- Over 65- South,Permanent Residential,Milestones - Unit 10,3941.26, 12-Apr-2016
1370,Revenue,CAHD,Bed purchasing - S28A Under 65 - South,Permanent Residential,Milestones - Unit 10,5272.12, 12-Apr-2016
1371,Revenue,CAHD,Bed purchasing - S28A Under 65 - South,Permanent Nursing,Milestones - Unit 10,2650.18, 12-Apr-2016
1372,Revenue,CAHD,Bed purchasing - S28A Under 65 - South,Permanent Nursing,Milestones - Unit 10,2619.92, 12-Apr-2016
1373,Revenue,CAHD,Bed Purchasing - LD S28A- Over 65- South,Permanent Nursing,Milestones - Unit 10,2669.48, 12-Apr-2016
1374,Revenue,CAHD,Bed Purchasing - LD S28A- Over 65- South,Permanent Nursing,Milestones - Unit 10,2638.96, 12-Apr-2016
1375,Revenue,CAHD,Bed Purchasing - LD S28A- Over 65- South,Permanent Residential,Milestones - Unit 10,4828.00, 12-Apr-2016
1376,Revenue,CAHD,Bed Purchasing - LD S28A- Over 65- South,Permanent Residential,Milestones - Unit 10,4671.70, 12-Apr-2016
1377,Revenue,CAHD,Bed purchasing - S28A Under 65 - South,Permanent Residential,Milestones - Unit 10,6156.94, 12-Apr-2016
1378,Revenue,CAHD,Bed Purchasing - LD S28A- Over 65- South,Permanent Residential,Milestones - Unit 10,4740.20, 12-Apr-2016
1379,Revenue,CAHD,Bed Purchasing - S28A - Over 65- North,Permanent Nursing,Milestones - Unit 10,4814.26, 12-Apr-2016
1380,Revenue,CAHD,Bed Purchasing - South,Permanent Nursing,Milestones - Unit 10,3342.38, 12-Apr-2016
1381,Revenue,CAHD,Bed Purchasing - S28A - Over 65- North,Permanent Residential,Milestones - Unit 10,2343.16, 12-Apr-2016
1382,Revenue,CAHD,Bed Purchasing - S28A - Over 65- North,Permanent Residential,Milestones - Unit 10,2317.02, 12-Apr-2016
1383,Revenue,CAHD,Bed Purchasing - S28A - Over 65- North,Permanent Residential,Milestones - Unit 10,4833.96, 12-Apr-2016
1384,Revenue,CAHD,Bed purchasing - S28A Under 65 - South,Permanent Residential,Milestones - Unit 10,4843.56, 12-Apr-2016
1385,Revenue,CAHD,Bed Purchasing - S28A - Over 65- North,Permanent Residential,Milestones - Unit 10,4573.32, 12-Apr-2016
1386,Revenue,CAHD,Bed purchasing -S28A  Under 65 - North,Permanent Residential,Milestones - Unit 10,3618.82, 12-Apr-2016
1387,Revenue,CAHD,Bed purchasing -S28A  Under 65 - North,Permanent Residential,Milestones - Unit 10,3568.10, 12-Apr-2016
1388,Revenue,CAHD,Bed purchasing -S28A  Under 65 - North,Permanent Residential,Milestones - Unit 10,3365.66, 12-Apr-2016
1389,Revenue,CAHD,Bed Purchasing - North,Permanent Residential,Milestones - Unit 10,3178.58, 12-Apr-2016
1390,Revenue,CAHD,Bed Purchasing - S28A - Over 65- North,Permanent Residential,Milestones - Unit 10,3482.44, 12-Apr-2016
1391,Revenue,CAHD,Bed Purchasing - North,Respite Emergency - Residential,Milestones - Unit 10,9857.02, 12-Apr-2016
1392,Revenue,CAHD,Bed Purchasing - North,Permanent Nursing,Milestones - Unit 10,1334.00, 12-Apr-2016
1393,Revenue,CAHD,MH Purchasing - Younger,Permanent Nursing,Milestones - Unit 10,960.00, 12-Apr-2016
1394,Revenue,CAHD,Bed Purchasing - South,Permanent Residential,Milestones - Unit 10,3302.34, 12-Apr-2016
1395,Revenue,CAHD,Bed purchasing - S28A Under 65 - South,Permanent Residential,Milestones - Unit 10,6026.96, 12-Apr-2016
1396,Revenue,CAHD,Bed purchasing - S28A Under 65 - South,Permanent Residential,Milestones - Unit 10,6106.96, 12-Apr-2016
1397,Revenue,CAHD,Bed Purchasing - Southmead Hospital,Permanent Nursing,Milestones - Unit 10,2960.20, 12-Apr-2016
1398,Revenue,CAHD,Bed Purchasing - Southmead Hospital,Permanent Nursing,Milestones - Unit 10,2918.32, 12-Apr-2016
1399,Revenue,CAHD,Bed Purchasing - LD S28A- Over 65- South,Permanent Residential,Milestones - Unit 10,2222.64, 12-Apr-2016
1400,Revenue,CAHD,Bed Purchasing - LD S28A- Over 65- South,Permanent Residential,Milestones - Unit 10,2198.12, 12-Apr-2016
1401,Revenue,CAHD,Bed Purchasing - South,Permanent Residential,Milestones - Unit 10,6027.40, 12-Apr-2016
1402,Revenue,CAHD,Bed Purchasing - LD S28A- Over 65- South,Permanent Nursing,Milestones - Unit 10,2669.48, 12-Apr-2016
1403,Revenue,CAHD,Bed Purchasing - LD S28A- Over 65- South,Permanent Nursing,Milestones - Unit 10,2638.96, 12-Apr-2016
1404,Revenue,CAHD,Bed Purchasing - LD S28A- Over 65- South,Permanent Residential,Milestones - Unit 10,3594.10, 12-Apr-2016
1405,Revenue,CAHD,Bed Purchasing - South,Permanent Residential,Milestones - Unit 10,4410.70, 12-Apr-2016
1406,Revenue,CAHD,Bed Purchasing - South,Permanent Residential,Milestones - Unit 10,1247.32, 12-Apr-2016
1407,Revenue,CAHD,Bed purchasing -S28A  Under 65 - North,Permanent Nursing,Milestones - Unit 10,7752.04, 12-Apr-2016
1408,Revenue,CAHD,Bed Purchasing - South,Permanent Residential,Milestones - Unit 10,5358.04, 12-Apr-2016
1409,Revenue,CAHD,Bed Purchasing - North,Permanent Nursing,Milestones - Unit 10,1470.20, 12-Apr-2016
1410,Revenue,CAHD,18-25 Year Olds,Permanent Residential,Milestones - Unit 10,9989.38, 12-Apr-2016
1411,Revenue,CAHD,Section 117 Placements MH Younger,Permanent Residential,Milestones - Unit 10,1382.00, 12-Apr-2016
1412,Revenue,CAHD,Bed Purchasing - South,Permanent Nursing,Milestones - Unit 10,3415.10, 12-Apr-2016
1413,Revenue,CAHD,Bed Purchasing - South,Permanent Nursing,Milestones - Unit 10,2822.44, 12-Apr-2016
1414,Revenue,CAHD,Bed Purchasing - S28A - Over 65- North,Permanent Nursing,Milestones - Unit 10,1860.46, 12-Apr-2016
1415,Revenue,CAHD,Bed Purchasing - S28A - Over 65- North,Permanent Nursing,Milestones - Unit 10,1835.42, 12-Apr-2016
1416,Revenue,CAHD,Bed Purchasing - S28A - Over 65- North,Permanent Nursing,Milestones - Unit 10,1854.86, 12-Apr-2016
1417,Revenue,CAHD,Bed Purchasing - S28A - Over 65- North,Permanent Nursing,Milestones - Unit 10,1833.42, 12-Apr-2016
1418,Revenue,CAHD,Home Care - Elderly - South,Other Small Contracts,Milestones Homecare & Dementia Service,691.68, 15-Apr-2016
1419,Revenue,CAHD,Home Care - Elderly - North,Other Small Contracts,Milestones Homecare & Dementia Service,1996.44, 15-Apr-2016
1420,Revenue,CAHD,Home care - Elderly MH - North,Other Small Contracts,Milestones Homecare & Dementia Service,47.16, 15-Apr-2016
1421,Revenue,CAHD,Home Care - Elderly - South,Other Small Contracts,Milestones Homecare & Dementia Service,939.27, 15-Apr-2016
1422,Revenue,CAHD,Home Care - Elderly - North,Other Small Contracts,Milestones Homecare & Dementia Service,1925.70, 15-Apr-2016
1423,Revenue,CAHD,Home care - Elderly MH - North,Other Small Contracts,Milestones Homecare & Dementia Service,43.23, 15-Apr-2016
1424,Revenue,CAHD,Home Care - Elderly - South,Other Small Contracts,Milestones Homecare & Dementia Service,738.84, 08-Apr-2016
1425,Revenue,CAHD,Home Care - Elderly - North,Other Small Contracts,Milestones Homecare & Dementia Service,2043.60, 08-Apr-2016
1426,Revenue,CAHD,Home care - Elderly MH - North,Other Small Contracts,Milestones Homecare & Dementia Service,55.02, 08-Apr-2016
1427,Revenue,CAHD,Home Care - Elderly - South,Day Care / Social Activities,Milestones Supported Living Services,7291.95, 19-Apr-2016
1428,Revenue,CAHD,Home Care - Elderly - South,Other Small Contracts,Milestones Supported Living Services,934.08, 19-Apr-2016
1429,Revenue,CAHD,Home Care - Elderly - South,Supported Living,Milestones Supported Living Services,1904.14, 19-Apr-2016
1430,Revenue,CAHD,Home Care - Elderly - North,Day Care / Social Activities,Milestones Supported Living Services,2987.21, 19-Apr-2016
1431,Revenue,CAHD,Home Care - Elderly - North,Other Small Contracts,Milestones Supported Living Services,284.48, 19-Apr-2016
1432,Revenue,CAHD,Home Care - Elderly - North,Supported Living,Milestones Supported Living Services,166.46, 19-Apr-2016
1433,Revenue,CAHD,Day Care - South,Day Care / Social Activities,Milestones Supported Living Services,101.50, 19-Apr-2016
1434,Revenue,CAHD,Day Care - North,Day Care / Social Activities,Milestones Supported Living Services,125.86, 19-Apr-2016
1435,Revenue,CAHD,Younger MH non-res purchasing,Day Care / Social Activities,Milestones Supported Living Services,24.36, 19-Apr-2016
1436,Revenue,CAHD,Home care - Elderly MH - North,Other Small Contracts,Milestones Supported Living Services,133.98, 19-Apr-2016
1437,Revenue,CAHD,Bed Purchasing - North,Permanent Residential,Millennium House,1439.52, 12-Apr-2016
1438,Revenue,CAHD,18-25 Year Olds,Permanent Residential,Modus Care Ltd,4552.52, 12-Apr-2016
1439,Revenue,CAHD,Bed Purchasing - Southmead Hospital,Permanent Residential,Mostyn Lodge Residential Home,1148.64, 12-Apr-2016
1440,Revenue,CAHD,Bed Purchasing - North,Permanent Residential,Mostyn Lodge Residential Home,1247.10, 12-Apr-2016
1441,Revenue,CAHD,Home Care - Elderly - South,Supported Living,Moving On,1074.45, 28-Apr-2016
1442,Revenue,CAHD,Home Care - Elderly - South,Supported Living,Moving On,1349.64, 28-Apr-2016
1443,Revenue,CAHD,Home Care - Elderly - South,Supported Living,Moving On,908.60, 28-Apr-2016
1444,Revenue,CAHD,Home Care - Elderly - South,Supported Living,Moving On (UK) Limited,2415.28, 12-Apr-2016
1450,Revenue,CAHD,Social Lettings Agency,Fees - General,Individual,10.53, 06-Apr-2016
1451,Revenue,CAHD,Social Lettings Agency,Other Supplies & Services,Individual,595.11, 06-Apr-2016
1452,Revenue,CAHD,Social Lettings Agency,Fees - General,Individual,10.53, 22-Apr-2016
1453,Revenue,CAHD,Social Lettings Agency,Other Supplies & Services,Individual,595.11, 22-Apr-2016
1454,Revenue,CAHD,Social Lettings Agency,Fees - General,Individual,7.24, 22-Apr-2016
1455,Revenue,CAHD,Social Lettings Agency,Other Supplies & Services,Individual,614.85, 22-Apr-2016
1456,Revenue,CAHD,Supporting People Programme,Grants to Voluntary Bodies,Mr & Mrs Watts,1023.37, 11-Apr-2016
1457,Revenue,CAHD,Supporting People Programme,Grants to Voluntary Bodies,Mr & Mrs Watts,1023.33, 29-Apr-2016
1460,Revenue,CAHD,Social Lettings Agency,Fees - General,Individual,12.22, 29-Apr-2016
1461,Revenue,CAHD,Social Lettings Agency,Other Supplies & Services,Individual,690.32, 29-Apr-2016
1463,Revenue,CAHD,Homeless - Private Sector Leasing,Other Supplies & Services,Individual,595.00, 22-Apr-2016
1464,Revenue,CAHD,Social Lettings Agency,Fees - General,Individual,16.85, 07-Apr-2016
1465,Revenue,CAHD,Social Lettings Agency,Other Supplies & Services,Individual,951.89, 07-Apr-2016
1467,Revenue,CAHD,Social Lettings Agency,Fees - General,Individual,10.53, 08-Apr-2016
1468,Revenue,CAHD,Social Lettings Agency,Other Supplies & Services,Individual,595.11, 08-Apr-2016
1469,Revenue,CAHD,Social Lettings Agency,Fees - General,Individual,12.22, 08-Apr-2016
1470,Revenue,CAHD,Social Lettings Agency,Other Supplies & Services,Individual,690.32, 08-Apr-2016
1472,Revenue,CAHD,Social Lettings Agency,Fees - General,Individual,12.22, 01-Apr-2016
1473,Revenue,CAHD,Social Lettings Agency,Other Supplies & Services,Individual,690.32, 01-Apr-2016
1474,Revenue,CAHD,Social Lettings Agency,Fees - General,Individual,12.22, 29-Apr-2016
1475,Revenue,CAHD,Social Lettings Agency,Other Supplies & Services,Individual,690.32, 29-Apr-2016
1476,Revenue,CAHD,Social Lettings Agency,Fees - General,Individual,10.53, 22-Apr-2016
1477,Revenue,CAHD,Social Lettings Agency,Other Supplies & Services,Individual,595.11, 22-Apr-2016
1480,Revenue,CAHD,Learning Difficulties PSL,Other Supplies & Services,Individual,732.63, 15-Apr-2016
1481,Revenue,CAHD,Social Lettings Agency,Fees - General,Individual,12.22, 20-Apr-2016
1482,Revenue,CAHD,Social Lettings Agency,Other Supplies & Services,Individual,690.32, 20-Apr-2016
1485,Revenue,CAHD,Social Lettings Agency,Fees - General,Individual,10.53, 15-Apr-2016
1486,Revenue,CAHD,Social Lettings Agency,Other Supplies & Services,Individual,595.11, 15-Apr-2016
1487,Revenue,CAHD,Social Lettings Agency,Fees - General,Individual,10.53, 01-Apr-2016
1488,Revenue,CAHD,Social Lettings Agency,Other Supplies & Services,Individual,595.11, 01-Apr-2016
1489,Revenue,CAHD,Social Lettings Agency,Fees - General,Individual,10.53, 29-Apr-2016
1490,Revenue,CAHD,Social Lettings Agency,Other Supplies & Services,Individual,532.11, 29-Apr-2016
1491,Revenue,CAHD,Social Lettings Agency,Fees - General,Individual,16.85, 22-Apr-2016
1492,Revenue,CAHD,Social Lettings Agency,Other Supplies & Services,Individual,951.90, 22-Apr-2016
1495,Revenue,CAHD,Social Lettings Agency,Fees - General,Individual,12.22, 20-Apr-2016
1496,Revenue,CAHD,Social Lettings Agency,Other Supplies & Services,Individual,680.32, 20-Apr-2016
1497,Revenue,CAHD,Social Lettings Agency,Fees - General,Individual,10.53, 29-Apr-2016
1498,Revenue,CAHD,Social Lettings Agency,Other Supplies & Services,Individual,595.11, 29-Apr-2016
1499,Revenue,CAHD,Home Care - Elderly - South,Day Care / Social Activities,Mrs B Kimber -  CM2000,1790.40, 18-Apr-2016
1500,Revenue,CAHD,Home Care - Elderly - South,Other Small Contracts,Mrs B Kimber -  CM2000,9883.30, 18-Apr-2016
1501,Revenue,CAHD,Home Care - Elderly - South,Supported Living,Mrs B Kimber -  CM2000,29.12, 18-Apr-2016
1502,Revenue,CAHD,Home Care - Elderly - North,Day Care / Social Activities,Mrs B Kimber -  CM2000,381.60, 18-Apr-2016
1503,Revenue,CAHD,Home Care - Elderly - North,Other Small Contracts,Mrs B Kimber -  CM2000,4484.48, 18-Apr-2016
1504,Revenue,CAHD,Under 65s -MH  Home Care Purch,Other Small Contracts,Mrs B Kimber -  CM2000,66.56, 18-Apr-2016
1505,Revenue,CAHD,Home Care - Elderly - South,Day Care / Social Activities,Mrs B Kimber -  CM2000,2073.28, 15-Apr-2016
1506,Revenue,CAHD,Home Care - Elderly - South,Other Small Contracts,Mrs B Kimber -  CM2000,9471.92, 15-Apr-2016
1507,Revenue,CAHD,Home Care - Elderly - South,Supported Living,Mrs B Kimber -  CM2000,24.96, 15-Apr-2016
1508,Revenue,CAHD,Home Care - Elderly - North,Day Care / Social Activities,Mrs B Kimber -  CM2000,427.92, 15-Apr-2016
1509,Revenue,CAHD,Home Care - Elderly - North,Other Small Contracts,Mrs B Kimber -  CM2000,4480.32, 15-Apr-2016
1510,Revenue,CAHD,Home Care - Elderly - South,Day Care / Social Activities,Mrs B Kimber -  CM2000,2069.44, 15-Apr-2016
1511,Revenue,CAHD,Home Care - Elderly - South,Other Small Contracts,Mrs B Kimber -  CM2000,9746.92, 15-Apr-2016
1512,Revenue,CAHD,Home Care - Elderly - South,Supported Living,Mrs B Kimber -  CM2000,29.12, 15-Apr-2016
1513,Revenue,CAHD,Home Care - Elderly - North,Day Care / Social Activities,Mrs B Kimber -  CM2000,249.60, 15-Apr-2016
1514,Revenue,CAHD,Home Care - Elderly - North,Other Small Contracts,Mrs B Kimber -  CM2000,4546.88, 15-Apr-2016
1515,Revenue,CAHD,Home Care - Elderly - South,Day Care / Social Activities,Mrs B Kimber -  CM2000,2064.96, 29-Apr-2016
1516,Revenue,CAHD,Home Care - Elderly - South,Other Small Contracts,Mrs B Kimber -  CM2000,9713.88, 29-Apr-2016
1517,Revenue,CAHD,Home Care - Elderly - South,Supported Living,Mrs B Kimber -  CM2000,24.96, 29-Apr-2016
1518,Revenue,CAHD,Home Care - Elderly - North,Day Care / Social Activities,Mrs B Kimber -  CM2000,332.80, 29-Apr-2016
1519,Revenue,CAHD,Home Care - Elderly - North,Other Small Contracts,Mrs B Kimber -  CM2000,4671.68, 29-Apr-2016
1520,Revenue,CAHD,Home Care - Elderly - South,Day Care / Social Activities,Mrs B Kimber -  CM2000,1917.44, 29-Apr-2016
1521,Revenue,CAHD,Home Care - Elderly - South,Other Small Contracts,Mrs B Kimber -  CM2000,9610.32, 29-Apr-2016
1522,Revenue,CAHD,Home Care - Elderly - South,Supported Living,Mrs B Kimber -  CM2000,33.28, 29-Apr-2016
1523,Revenue,CAHD,Home Care - Elderly - North,Day Care / Social Activities,Mrs B Kimber -  CM2000,249.60, 29-Apr-2016
1524,Revenue,CAHD,Home Care - Elderly - North,Other Small Contracts,Mrs B Kimber -  CM2000,5383.04, 29-Apr-2016
1525,Revenue,CAHD,Social Lettings Agency,Fees - General,Individual,10.53, 14-Apr-2016
1526,Revenue,CAHD,Social Lettings Agency,Other Supplies & Services,Individual,595.11, 14-Apr-2016
1527,Revenue,CAHD,Social Lettings Agency,Fees - General,Individual,10.00, 22-Apr-2016
1528,Revenue,CAHD,Social Lettings Agency,Other Supplies & Services,Individual,565.00, 22-Apr-2016
1530,Revenue,CAHD,Social Lettings Agency,Fees - General,Individual,10.53, 01-Apr-2016
1531,Revenue,CAHD,Social Lettings Agency,Other Supplies & Services,Individual,595.11, 01-Apr-2016
1532,Revenue,CAHD,Social Lettings Agency,Fees - General,Individual,10.53, 29-Apr-2016
1533,Revenue,CAHD,Social Lettings Agency,Other Supplies & Services,Individual,595.11, 29-Apr-2016
1535,Revenue,CAHD,Social Lettings Agency,Fees - General,Individual,10.53, 14-Apr-2016
1536,Revenue,CAHD,Social Lettings Agency,Other Supplies & Services,Individual,595.11, 14-Apr-2016
1537,Revenue,CAHD,Social Lettings Agency,Fees - General,Individual,10.53, 12-Apr-2016
1538,Revenue,CAHD,Social Lettings Agency,Other Supplies & Services,Individual,595.11, 12-Apr-2016
1543,Revenue,CAHD,Social Lettings Agency,Fees - General,Individual,10.53, 08-Apr-2016
1544,Revenue,CAHD,Social Lettings Agency,Other Supplies & Services,Individual,595.11, 08-Apr-2016
1545,Revenue,CAHD,Social Lettings Agency,Fees - General,Individual,16.85, 11-Apr-2016
1546,Revenue,CAHD,Social Lettings Agency,Other Supplies & Services,Individual,830.00, 11-Apr-2016
1547,Revenue,CAHD,Bed Purchasing - North,Permanent Residential,Nas Services  Church House,3767.96, 12-Apr-2016
1548,Revenue,CAHD,Jointly Funded H&SC Packages,Permanent Residential,Nas Services  Church House,1614.84, 12-Apr-2016
1549,Revenue,CAHD,Bed Purchasing - North,Permanent Residential,Nas Services  Church House,2655.29, 12-Apr-2016
1550,Revenue,CAHD,Jointly Funded H&SC Packages,Permanent Residential,Nas Services  Church House,1137.99, 12-Apr-2016
1551,Revenue,CAHD,Bed Purchasing - North,Permanent Residential,Nas Services  Church House,1517.31, 12-Apr-2016
1552,Revenue,CAHD,Bed Purchasing - North,Permanent Residential,Nas Services  Church House,6027.60, 12-Apr-2016
1553,Revenue,CAHD,Section 117 Placements MH Younger,Permanent Residential,Nas Services  Church House,7701.06, 12-Apr-2016
1554,Revenue,CAHD,Home Care - Elderly - South,Day Care / Social Activities,NAS Services Limited,544.66, 01-Apr-2016
1555,Revenue,CAHD,Home Care - Elderly - South,Supported Living,NAS Services Limited,28.92, 01-Apr-2016
1556,Revenue,CAHD,Home Care - Elderly - North,Day Care / Social Activities,NAS Services Limited,1012.20, 01-Apr-2016
1557,Revenue,CAHD,Home Care - Elderly - North,Supported Living,NAS Services Limited,347.04, 01-Apr-2016
1558,Revenue,CAHD,Younger MH non-res purchasing,Day Care / Social Activities,NAS Services Limited,202.44, 01-Apr-2016
1559,Revenue,CAHD,Home Care - Elderly - South,Day Care / Social Activities,NAS Services Limited,390.42, 01-Apr-2016
1560,Revenue,CAHD,Home Care - Elderly - South,Supported Living,NAS Services Limited,19.28, 01-Apr-2016
1561,Revenue,CAHD,Home Care - Elderly - North,Day Care / Social Activities,NAS Services Limited,1060.40, 01-Apr-2016
1562,Revenue,CAHD,Home Care - Elderly - North,Supported Living,NAS Services Limited,337.40, 01-Apr-2016
1563,Revenue,CAHD,Younger MH non-res purchasing,Day Care / Social Activities,NAS Services Limited,231.36, 01-Apr-2016
1564,Revenue,CAHD,Home Care - Elderly - South,Day Care / Social Activities,NAS Services Limited,597.68, 08-Apr-2016
1565,Revenue,CAHD,Home Care - Elderly - South,Supported Living,NAS Services Limited,28.92, 08-Apr-2016
1566,Revenue,CAHD,Home Care - Elderly - North,Day Care / Social Activities,NAS Services Limited,1205.00, 08-Apr-2016
1567,Revenue,CAHD,Home Care - Elderly - North,Supported Living,NAS Services Limited,366.32, 08-Apr-2016
1568,Revenue,CAHD,Younger MH non-res purchasing,Day Care / Social Activities,NAS Services Limited,231.36, 08-Apr-2016
1569,Revenue,CAHD,Home Care - Elderly - South,Day Care / Social Activities,NAS Services Limited,616.96, 15-Apr-2016
1570,Revenue,CAHD,Home Care - Elderly - South,Supported Living,NAS Services Limited,19.28, 15-Apr-2016
1571,Revenue,CAHD,Home Care - Elderly - North,Day Care / Social Activities,NAS Services Limited,1074.86, 15-Apr-2016
1572,Revenue,CAHD,Home Care - Elderly - North,Supported Living,NAS Services Limited,337.40, 15-Apr-2016
1573,Revenue,CAHD,Younger MH non-res purchasing,Day Care / Social Activities,NAS Services Limited,231.36, 15-Apr-2016
1574,Revenue,CAHD,Home Care - Elderly - South,Day Care / Social Activities,NAS Services Limited,535.02, 29-Apr-2016
1575,Revenue,CAHD,Home Care - Elderly - South,Supported Living,NAS Services Limited,28.92, 29-Apr-2016
1576,Revenue,CAHD,Home Care - Elderly - North,Day Care / Social Activities,NAS Services Limited,1045.94, 29-Apr-2016
1577,Revenue,CAHD,Home Care - Elderly - North,Supported Living,NAS Services Limited,347.04, 29-Apr-2016
1578,Revenue,CAHD,Younger MH non-res purchasing,Day Care / Social Activities,NAS Services Limited,216.90, 29-Apr-2016
1579,Revenue,CAHD,Home Care - Elderly - South,Day Care / Social Activities,NAS Services Limited,660.34, 29-Apr-2016
1580,Revenue,CAHD,Home Care - Elderly - South,Supported Living,NAS Services Limited,19.28, 29-Apr-2016
1581,Revenue,CAHD,Home Care - Elderly - North,Day Care / Social Activities,NAS Services Limited,896.52, 29-Apr-2016
1582,Revenue,CAHD,Home Care - Elderly - North,Supported Living,NAS Services Limited,356.68, 29-Apr-2016
1583,Revenue,CAHD,Younger MH non-res purchasing,Day Care / Social Activities,NAS Services Limited,231.36, 29-Apr-2016
1584,Revenue,CAHD,Home Care - Elderly - North,Supported Living,NAS Services Limited,655.52, 19-Apr-2016
1585,Revenue,CAHD,Bed Purchasing - Southmead Hospital,Permanent Residential,Nashley House Retirement Home,1274.00, 12-Apr-2016
1586,Revenue,CAHD,Learning Difficulties Development Fund,Other Supplies & Services,National Development Team for Inclusion,3977.00, 25-Apr-2016
1587,Revenue,CAHD,Newton House,Security Systems,National Security Group,123.51, 15-Apr-2016
1588,Revenue,CAHD,Home Care - Elderly - South,Day Care / Social Activities,Nestor T/A Allied Healthcare,69.30, 06-Apr-2016
1589,Revenue,CAHD,Home Care - Elderly - South,Other Small Contracts,Nestor T/A Allied Healthcare,2280.60, 06-Apr-2016
1590,Revenue,CAHD,Home Care - Elderly - North,Other Small Contracts,Nestor T/A Allied Healthcare,6799.10, 06-Apr-2016
1591,Revenue,CAHD,Day Care - North,Day Care / Social Activities,Nestor T/A Allied Healthcare,38.50, 06-Apr-2016
1592,Revenue,CAHD,Home Care - Elderly - South,Day Care / Social Activities,Nestor T/A Allied Healthcare,69.30, 19-Apr-2016
1593,Revenue,CAHD,Home Care - Elderly - South,Other Small Contracts,Nestor T/A Allied Healthcare,2380.70, 19-Apr-2016
1594,Revenue,CAHD,Home Care - Elderly - North,Other Small Contracts,Nestor T/A Allied Healthcare,6922.30, 19-Apr-2016
1595,Revenue,CAHD,Day Care - North,Day Care / Social Activities,Nestor T/A Allied Healthcare,38.50, 19-Apr-2016
1596,Revenue,CAHD,Home Care - Elderly - South,Day Care / Social Activities,Nestor T/A Allied Healthcare,73.15, 19-Apr-2016
1597,Revenue,CAHD,Home Care - Elderly - South,Other Small Contracts,Nestor T/A Allied Healthcare,2434.60, 19-Apr-2016
1598,Revenue,CAHD,Home Care - Elderly - North,Other Small Contracts,Nestor T/A Allied Healthcare,6903.05, 19-Apr-2016
1599,Revenue,CAHD,Day Care - North,Day Care / Social Activities,Nestor T/A Allied Healthcare,38.50, 19-Apr-2016
1600,Revenue,CAHD,Home Care - Elderly - South,Day Care / Social Activities,Nestor T/A Allied Healthcare,69.30, 20-Apr-2016
1601,Revenue,CAHD,Home Care - Elderly - South,Other Small Contracts,Nestor T/A Allied Healthcare,1984.18, 20-Apr-2016
1602,Revenue,CAHD,Home Care - Elderly - North,Other Small Contracts,Nestor T/A Allied Healthcare,6714.40, 20-Apr-2016
1603,Revenue,CAHD,Day Care - North,Day Care / Social Activities,Nestor T/A Allied Healthcare,38.50, 20-Apr-2016
1604,Revenue,CAHD,Social Lettings Agency,Fees - General,Individual,10.00, 04-Apr-2016
1605,Revenue,CAHD,Social Lettings Agency,Other Supplies & Services,Individual,565.00, 04-Apr-2016
1607,Revenue,CAHD,Home Care - Elderly - North,Other Small Contracts,Newcross Healthcare Solutions Limited,821.10, 25-Apr-2016
1608,Revenue,CAHD,Home Care - Elderly - North,Other Small Contracts,Newcross Healthcare Solutions Limited,1642.20, 25-Apr-2016
1609,Revenue,CAHD,Home Care - Elderly - North,Other Small Contracts,Newcross Healthcare Solutions Limited,574.77, 25-Apr-2016
1610,Revenue,CAHD,Home Care - Elderly - North,Other Small Contracts,Newcross Healthcare Solutions Limited,1349.03, 25-Apr-2016
1611,Revenue,CAHD,Purchase of Non-Res Care - North,Day Care / Social Activities,Newcross Healthcare Solutions Limited,1313.76, 14-Apr-2016
1612,Revenue,CAHD,Home Care - Elderly - North,Supported Living,Newplan House,7704.00, 12-Apr-2016
1613,Revenue,CAHD,Home Care - Elderly - North,Supported Living,Newplan House,7704.00, 12-Apr-2016
1614,Revenue,CAHD,Mental Capacity Act - Advocacy,Grants to Voluntary Bodies,NHS South Gloucestershire CCG,25007.92, 20-Apr-2016
1615,Revenue,CAHD,SLA Grants - Support Serv,Other Supplies & Services,NHS South Gloucestershire CCG,30788.00, 22-Apr-2016
1616,Revenue,CAHD,Information Systems - Software,Computer Equipment - Purchase,North Bristol NHS Trust,6790.95, 06-Apr-2016
1617,Revenue,CAHD,SLA Grants - Support Serv,Grants to Voluntary Bodies,North Bristol NHS Trust,4350.00, 05-Apr-2016
1618,Revenue,CAHD,Connecting Care,Software Support & Maintenance,North Somerset Council,34166.67, 01-Apr-2016
1619,Revenue,CAHD,NTS Grant - Trainee Social Wor,Training Expenses,North Somerset Council,5950.00, 08-Apr-2016
1620,Revenue,CAHD,Information Systems - Software,Software Support & Maintenance,Northgate Public Services (UK) Ltd,67585.33, 12-Apr-2016
1621,Revenue,CAHD,Bed Purchasing - South,Permanent Residential,Norwood   Broadway House,5063.54, 12-Apr-2016
1622,Revenue,CAHD,Bed Purchasing - Southmead Hospital,Respite Planned - Residential,Notaro Homes Ltd  Queensmead Court,3100.94, 12-Apr-2016
1623,Revenue,CAHD,Bed Purchasing - South,Permanent Residential,Notaro Homes Ltd  Queensmead Court,1918.12, 12-Apr-2016
1624,Revenue,CAHD,Bed Purchasing - Southmead Hospital,Permanent Residential,Notaro Homes Ltd  Queensmead Court,1404.12, 12-Apr-2016
1625,Revenue,CAHD,MH Purchasing - Younger,Permanent Residential,Notaro Homes Ltd  Queensmead Court,3053.02, 12-Apr-2016
1626,Revenue,CAHD,Bed Purchasing - South,Permanent Residential,Nova House Care Home,961.52, 12-Apr-2016
1627,Revenue,CAHD,Home Care - Elderly - South,Day Care / Social Activities,Nursing Solutions Limited,47.64, 06-Apr-2016
1628,Revenue,CAHD,Home Care - Elderly - South,Other Small Contracts,Nursing Solutions Limited,1278.34, 06-Apr-2016
1629,Revenue,CAHD,Home Care - Elderly - South,Other Small Contracts,Nursing Solutions Limited,1226.73, 19-Apr-2016
1630,Revenue,CAHD,Home Care - Elderly - South,Day Care / Social Activities,Nursing Solutions Limited,23.82, 28-Apr-2016
1631,Revenue,CAHD,Home Care - Elderly - South,Other Small Contracts,Nursing Solutions Limited,1325.98, 28-Apr-2016
1632,Revenue,CAHD,Section 117 Placements MH Younger,Permanent Nursing,Oaklands,2339.98, 12-Apr-2016
1633,Revenue,CAHD,Jointly Funded H&SC Packages,Permanent Nursing,Oaklands,779.16, 12-Apr-2016
1634,Revenue,CAHD,Section 117 Placements MH Younger,Permanent Nursing,Oaklands,1648.97, 12-Apr-2016
1635,Revenue,CAHD,Jointly Funded H&SC Packages,Permanent Nursing,Oaklands,549.09, 12-Apr-2016
1636,Revenue,CAHD,Section 117 Placements MH Younger,Permanent Nursing,Oaklands,879.22, 12-Apr-2016
1637,Revenue,CAHD,Woodleaze,Refuse Collection Charges,OCS Group UK Ltd,873.45, 20-Apr-2016
1638,Revenue,CAHD,Bed purchasing -S28A  Under 65 - North,Permanent Residential,Orchard End Limited,7699.78, 12-Apr-2016
1639,Revenue,CAHD,Bed Purchasing - Southmead Hospital,Respite Planned - Residential,Osbourne Court,4217.14, 12-Apr-2016
1640,Revenue,CAHD,Bed Purchasing - North,Permanent Residential,Osbourne Court,2020.68, 12-Apr-2016
1641,Revenue,CAHD,Bed Purchasing - North,Permanent Residential,Osbourne Court,2271.40, 12-Apr-2016
1642,Revenue,CAHD,Bed Purchasing - Southmead Hospital,Permanent Residential,Osbourne Court,980.38, 12-Apr-2016
1643,Revenue,CAHD,Bed Purchasing - North,Permanent Residential,Osbourne Court,2219.54, 12-Apr-2016
1644,Revenue,CAHD,Bed Purchasing - North,Permanent Residential,Osbourne Court,1840.94, 12-Apr-2016
1645,Revenue,CAHD,Bed Purchasing - North,Permanent Residential,Osbourne Court,2076.46, 12-Apr-2016
1646,Revenue,CAHD,Bed Purchasing - North,Permanent Residential,Osbourne Court,2701.34, 12-Apr-2016
1647,Revenue,CAHD,Research & Conferences,Membership Fees,Oxford Brookes Enterprises Limited,3250.00, 08-Apr-2016
1648,Revenue,CAHD,Bed Purchasing - Southmead Hospital,Permanent Nursing,Palm Court Nursing Home,1624.04, 12-Apr-2016
1649,Revenue,CAHD,Bed Purchasing - South,Permanent Residential,Park Farm House,1810.32, 12-Apr-2016
1650,Revenue,CAHD,Bed Purchasing - North,Permanent Residential,Park Farm House,834.06, 12-Apr-2016
1651,Revenue,CAHD,Bed Purchasing - South,Permanent Residential,Park Farm House,1633.26, 12-Apr-2016
1652,Revenue,CAHD,Bed Purchasing - Southmead Hospital,Permanent Residential,Park Farm House,2617.68, 12-Apr-2016
1653,Revenue,CAHD,Bed Purchasing - South,Permanent Residential,Park Hall,5658.68, 12-Apr-2016
1654,Revenue,CAHD,Bed Purchasing - North,Permanent Residential,Park Hall,5308.32, 12-Apr-2016
1655,Revenue,CAHD,Bed Purchasing - South,Permanent Residential,Park Hall,5027.50, 12-Apr-2016
1656,Revenue,CAHD,Bed Purchasing - South,Permanent Residential,Park Hall,2591.42, 12-Apr-2016
1657,Revenue,CAHD,Bed purchasing - S28A Under 65 - South,Permanent Residential,Park Hall,4768.94, 12-Apr-2016
1658,Revenue,CAHD,Bed Purchasing - South,Permanent Residential,Park Hall,5003.06, 12-Apr-2016
1659,Revenue,CAHD,Bed Purchasing - North,Permanent Residential,Park Hall,4402.82, 12-Apr-2016
1660,Revenue,CAHD,Bed Purchasing - South,Permanent Residential,Park Hall,3757.00, 12-Apr-2016
1661,Revenue,CAHD,Jointly Funded H&SC Packages,Permanent Residential,Park Hall,1759.14, 12-Apr-2016
1662,Revenue,CAHD,Bed Purchasing - South,Permanent Residential,Park Hall,2647.56, 12-Apr-2016
1663,Revenue,CAHD,Jointly Funded H&SC Packages,Permanent Residential,Park Hall,1239.67, 12-Apr-2016
1664,Revenue,CAHD,Bed Purchasing - South,Permanent Residential,Park Hall,1554.89, 12-Apr-2016
1665,Revenue,CAHD,Bed purchasing -S28A  Under 65 - North,Permanent Residential,Park Hall,6039.20, 12-Apr-2016
1666,Revenue,CAHD,Bed purchasing - S28A Under 65 - South,Permanent Residential,Park Hall,5699.74, 12-Apr-2016
1667,Revenue,CAHD,18-25 Year Olds,Permanent Residential,Park Hall,7320.12, 12-Apr-2016
1668,Revenue,CAHD,Social Lettings Agency,Fees - General,Individual,10.00, 27-Apr-2016
1669,Revenue,CAHD,Social Lettings Agency,Other Supplies & Services,Individual,565.00, 27-Apr-2016
1670,Revenue,CAHD,Bed Purchasing - South,Permanent Residential,Penleigh House Care Home,4644.34, 12-Apr-2016
1671,Revenue,CAHD,Bed Purchasing - South,Permanent Residential,Penleigh House Care Home,6547.56, 12-Apr-2016
1672,Revenue,CAHD,Bed Purchasing - South,Permanent Residential,Penleigh House Care Home,4385.78, 12-Apr-2016
1673,Revenue,CAHD,Bed purchasing - S28A Under 65 - South,Permanent Residential,Penleigh House Care Home,5598.10, 12-Apr-2016
1674,Revenue,CAHD,Bed Purchasing - South,Permanent Residential,Penleigh House Care Home,5057.16, 12-Apr-2016
1675,Revenue,CAHD,Information Systems - Software,Agency Staff (Admin/Support Staff) Pay,Permanent Futures Ltd,9450.00, 29-Apr-2016
1676,Revenue,CAHD,Information Systems - Software,Computer Equipment - Purchase,Phoenix Software Limited,296.66, 04-Apr-2016
1677,Revenue,CAHD,Kingswood Centre - Maple Suite,Personal Needs of Clients,PHS Group Plc,929.76, 26-Apr-2016
1678,Revenue,CAHD,Community Promoting Independence Team,Care Management/Assessment Staff Pay,Piers Meadows Recruitment Limited,1190.18, 29-Apr-2016
1679,Revenue,CAHD,Community Promoting Independence Team,Care Management/Assessment Staff Pay,Piers Meadows Recruitment Limited,1142.00, 01-Apr-2016
1680,Revenue,CAHD,Community Promoting Independence Team,Care Management/Assessment Staff Pay,Piers Meadows Recruitment Limited,1222.13, 08-Apr-2016
1681,Revenue,CAHD,Community Promoting Independence Team,Care Management/Assessment Staff Pay,Piers Meadows Recruitment Limited,437.95, 15-Apr-2016
1682,Revenue,CAHD,Community Promoting Independence Team,Care Management/Assessment Staff Pay,Piers Meadows Recruitment Limited,1209.98, 22-Apr-2016
1683,Revenue,CAHD,Supporting People Programme,Grants to Voluntary Bodies,Places for People,1162.00, 11-Apr-2016
1684,Revenue,CAHD,Supporting People Programme,Grants to Voluntary Bodies,Places for People,1162.00, 29-Apr-2016
1685,Revenue,CAHD,Home Care - Elderly - North,Day Care / Social Activities,Premier Homecare Limited,82.98, 06-Apr-2016
1686,Revenue,CAHD,Home Care - Elderly - North,Other Small Contracts,Premier Homecare Limited,9634.91, 06-Apr-2016
1687,Revenue,CAHD,Home care - Elderly MH - North,Other Small Contracts,Premier Homecare Limited,129.08, 06-Apr-2016
1688,Revenue,CAHD,Elderly MH Day Care North,Day Care / Social Activities,Premier Homecare Limited,73.76, 06-Apr-2016
1689,Revenue,CAHD,Home Care - Elderly - North,Day Care / Social Activities,Premier Homecare Limited,82.98, 15-Apr-2016
1690,Revenue,CAHD,Home Care - Elderly - North,Other Small Contracts,Premier Homecare Limited,9800.86, 15-Apr-2016
1691,Revenue,CAHD,Home care - Elderly MH - North,Other Small Contracts,Premier Homecare Limited,129.08, 15-Apr-2016
1692,Revenue,CAHD,Elderly MH Day Care North,Day Care / Social Activities,Premier Homecare Limited,73.76, 15-Apr-2016
1693,Revenue,CAHD,Home Care - Elderly - North,Day Care / Social Activities,Premier Homecare Limited,82.98, 19-Apr-2016
1694,Revenue,CAHD,Home Care - Elderly - North,Other Small Contracts,Premier Homecare Limited,9404.40, 19-Apr-2016
1695,Revenue,CAHD,Home care - Elderly MH - North,Other Small Contracts,Premier Homecare Limited,129.08, 19-Apr-2016
1696,Revenue,CAHD,Elderly MH Day Care North,Day Care / Social Activities,Premier Homecare Limited,73.76, 19-Apr-2016
1697,Revenue,CAHD,Home Care - Elderly - North,Day Care / Social Activities,Premier Homecare Limited,84.24, 28-Apr-2016
1698,Revenue,CAHD,Home Care - Elderly - North,Other Small Contracts,Premier Homecare Limited,10216.44, 28-Apr-2016
1699,Revenue,CAHD,Home care - Elderly MH - North,Other Small Contracts,Premier Homecare Limited,131.04, 28-Apr-2016
1700,Revenue,CAHD,Elderly MH Day Care North,Day Care / Social Activities,Premier Homecare Limited,74.88, 28-Apr-2016
1701,Revenue,CAHD,Home Care - Elderly - South,Other Small Contracts,Prestige Nursing,580.33, 08-Apr-2016
1702,Revenue,CAHD,Home Care - Elderly - North,Other Small Contracts,Prestige Nursing,1655.04, 08-Apr-2016
1703,Revenue,CAHD,Day Care - South,Day Care / Social Activities,Prestige Nursing,106.32, 08-Apr-2016
1704,Revenue,CAHD,Alexandra Way,Agency Staff (Operational)/PCT Pay,Prestige Nursing,1170.28, 27-Apr-2016
1705,Revenue,CAHD,Alexandra Way,Agency Staff (Operational)/PCT Pay,Prestige Nursing,964.45, 27-Apr-2016
1706,Revenue,CAHD,Alexandra Way,Agency Staff (Operational)/PCT Pay,Prestige Nursing,1868.84, 27-Apr-2016
1707,Revenue,CAHD,Bed Purchasing - Southmead Hospital,Respite Planned - Nursing,Quarry House,7601.85, 12-Apr-2016
1708,Revenue,CAHD,Mental Capacity Act - Advocacy,Agency Staff (Operational)/PCT Pay,R S Harty,750.00, 04-Apr-2016
1709,Revenue,CAHD,Shared Lives,Other Supplies & Services,R S Harty,1736.00, 22-Apr-2016
1710,Revenue,CAHD,Purchase of Non-Res Care - South,Other Supplies & Services,R S Harty,1876.00, 22-Apr-2016
1711,Revenue,CAHD,Purchase of Non-Res Care - South,Other Supplies & Services,R S Harty,2100.00, 22-Apr-2016
1712,Revenue,CAHD,Bed Purchasing - North,Permanent Nursing,Ravenswood,2234.00, 12-Apr-2016
1713,Revenue,CAHD,Bed Purchasing - Elderly S117- North,Permanent Residential,Real Life Options,1364.80, 12-Apr-2016
1714,Revenue,CAHD,Jointly Funded H&SC Packages,Permanent Residential,Real Life Options,1029.59, 12-Apr-2016
1715,Revenue,CAHD,Bed Purchasing - Elderly S117- North,Permanent Residential,Real Life Options,957.75, 12-Apr-2016
1716,Revenue,CAHD,Bed Purchasing - Elderly S117- North,Permanent Nursing,Redholme Memory Care Limited,2027.06, 12-Apr-2016
1717,Revenue,CAHD,Supporting People Programme,Grants to Voluntary Bodies,Redland Housing Association Ltd,739.20, 11-Apr-2016
1718,Revenue,CAHD,Supporting People Programme,Grants to Voluntary Bodies,Redland Housing Association Ltd,739.16, 29-Apr-2016
1719,Revenue,CAHD,Bed Purchasing - Southmead Hospital,Permanent Nursing,Regent House,1314.14, 12-Apr-2016
1720,Revenue,CAHD,Bed Purchasing - South,Permanent Nursing,Regent House,2132.62, 12-Apr-2016
1721,Revenue,CAHD,South Glos Users in South Glos Homes,Permanent Nursing,Regent House,880.00, 12-Apr-2016
1722,Revenue,CAHD,Bed Purchasing - South,Permanent Nursing,Regent House,2423.70, 12-Apr-2016
1723,Revenue,CAHD,Bed Purchasing - South,Permanent Nursing,Regent House,848.54, 12-Apr-2016
1724,Revenue,CAHD,Bed Purchasing - South,Permanent Nursing,Regent House,842.44, 12-Apr-2016
1725,Revenue,CAHD,South Glos Users in South Glos Homes,Permanent Nursing,Regent House,4576.00, 12-Apr-2016
1726,Revenue,CAHD,Bed Purchasing - South,Permanent Nursing,Regent House,1031.18, 12-Apr-2016
1727,Revenue,CAHD,Bed Purchasing - South,Permanent Nursing,Regent House,1019.42, 12-Apr-2016
1728,Revenue,CAHD,Bed Purchasing - South,Permanent Nursing,Regent House,861.30, 12-Apr-2016
1729,Revenue,CAHD,Bed Purchasing - South,Permanent Nursing,Regent House,847.90, 12-Apr-2016
1730,Revenue,CAHD,Bed Purchasing - South,Permanent Nursing,Regent House,1780.58, 12-Apr-2016
1731,Revenue,CAHD,Bed Purchasing - Southmead Hospital,Permanent Nursing,Regent House,1603.52, 12-Apr-2016
1732,Revenue,CAHD,Bed Purchasing - Southmead Hospital,Permanent Nursing,Regent House,1582.00, 12-Apr-2016
1733,Revenue,CAHD,Bed Purchasing - Southmead Hospital,Permanent Nursing,Regent House,1016.92, 12-Apr-2016
1734,Revenue,CAHD,Bed Purchasing - Southmead Hospital,Permanent Nursing,Regent House,1003.70, 12-Apr-2016
1735,Revenue,CAHD,Bed Purchasing - North,Permanent Nursing,Regent House,1022.18, 12-Apr-2016
1736,Revenue,CAHD,Bed Purchasing - North,Permanent Nursing,Regent House,1009.10, 12-Apr-2016
1737,Revenue,CAHD,Bed Purchasing - South,Permanent Nursing,Regent House,2504.38, 12-Apr-2016
1738,Revenue,CAHD,Bed Purchasing - North,Permanent Nursing,Regent House,2096.30, 12-Apr-2016
1739,Revenue,CAHD,Bed Purchasing - Southmead Hospital,Permanent Nursing,Regent House,1603.52, 12-Apr-2016
1740,Revenue,CAHD,Bed Purchasing - Southmead Hospital,Permanent Nursing,Regent House,1582.00, 12-Apr-2016
1741,Revenue,CAHD,Bed Purchasing - South,Permanent Nursing,Regent House,2389.22, 12-Apr-2016
1742,Revenue,CAHD,Bed Purchasing - South,Permanent Residential,Ridgeway House,3567.22, 12-Apr-2016
1743,Revenue,CAHD,Bed Purchasing - Southmead Hospital,Permanent Nursing,Riversway Nursing Home,901.30, 12-Apr-2016
1744,Revenue,CAHD,Bed Purchasing - Southmead Hospital,Permanent Nursing,Riversway Nursing Home,4771.81, 12-Apr-2016
1745,Revenue,CAHD,Bed Purchasing - Southmead Hospital,Permanent Nursing,Riversway Nursing Home,1646.12, 12-Apr-2016
1746,Revenue,CAHD,Bed Purchasing - Southmead Hospital,Permanent Nursing,Riversway Nursing Home,1629.40, 12-Apr-2016
1747,Revenue,CAHD,Bed Purchasing - Southmead Hospital,Permanent Nursing,Riversway Nursing Home,1640.12, 12-Apr-2016
1748,Revenue,CAHD,Bed Purchasing - Southmead Hospital,Permanent Nursing,Riversway Nursing Home,1623.40, 12-Apr-2016
1749,Revenue,CAHD,Bed Purchasing - Southmead Hospital,Permanent Nursing,Riversway Nursing Home,2611.37, 12-Apr-2016
1750,Revenue,CAHD,Bed Purchasing - Southmead Hospital,Permanent Nursing,Riversway Nursing Home,3065.42, 12-Apr-2016
1751,Revenue,CAHD,Bed Purchasing - Southmead Hospital,Permanent Nursing,Riversway Nursing Home,4015.51, 12-Apr-2016
1752,Revenue,CAHD,Bed Purchasing - Southmead Hospital,Permanent Nursing,Riversway Nursing Home,2735.98, 12-Apr-2016
1753,Revenue,CAHD,Bed Purchasing - LD S28A- Over 65- South,Permanent Residential,Rockleaze,2109.40, 12-Apr-2016
1754,Revenue,CAHD,Bed Purchasing - South,Permanent Residential,Rockleaze,2448.20, 12-Apr-2016
1757,Revenue,CAHD,Supported Living - North,Permanent Residential,Rosealeen Jarrett,831.43, 11-Apr-2016
1758,Revenue,CAHD,Bed Purchasing - South,Permanent Residential,Rosedale House,1535.70, 12-Apr-2016
1759,Revenue,CAHD,Bed Purchasing - South,Permanent Residential,Rosewood Lodge & Brook House,4653.72, 12-Apr-2016
1760,Revenue,CAHD,Bed Purchasing - South,Permanent Nursing,Saffron Gardens Nursing Home,2024.52, 12-Apr-2016
1761,Revenue,CAHD,Bed Purchasing - South,Permanent Nursing,Saffron Gardens Nursing Home,2126.04, 12-Apr-2016
1762,Revenue,CAHD,Bed Purchasing - South,Permanent Nursing,Saffron Gardens Nursing Home,980.70, 12-Apr-2016
1763,Revenue,CAHD,Bed Purchasing - South,Permanent Nursing,Saffron Gardens Nursing Home,551.70, 12-Apr-2016
1764,Revenue,CAHD,Bed Purchasing - South,Permanent Nursing,Saffron Gardens Nursing Home,1056.68, 12-Apr-2016
1765,Revenue,CAHD,Bed Purchasing - South,Permanent Nursing,Saffron Gardens Nursing Home,819.70, 12-Apr-2016
1766,Revenue,CAHD,South Glos Users in South Glos Homes,Permanent Nursing,Saffron Gardens Nursing Home,1168.00, 12-Apr-2016
1767,Revenue,CAHD,Bed Purchasing - Southmead Hospital,Permanent Nursing,Saffron Gardens Nursing Home,1909.60, 12-Apr-2016
1768,Revenue,CAHD,Bed purchasing - Elderly S117 - South,Permanent Nursing,Saffron Gardens Nursing Home,4880.00, 12-Apr-2016
1769,Revenue,CAHD,Bed purchasing - Elderly S117 - South,Permanent Nursing,Saffron Gardens Nursing Home,3978.88, 12-Apr-2016
1770,Revenue,CAHD,Bed Purchasing - Southmead Hospital,Permanent Nursing,Saffron Gardens Nursing Home,2184.60, 12-Apr-2016
1771,Revenue,CAHD,Bed Purchasing - South,Permanent Nursing,Saffron Gardens Nursing Home,2099.50, 12-Apr-2016
1772,Revenue,CAHD,Bed Purchasing - North,Permanent Nursing,Saffron Gardens Nursing Home,2305.90, 12-Apr-2016
1773,Revenue,CAHD,Bed Purchasing - Southmead Hospital,Permanent Nursing,Saffron Gardens Nursing Home,2086.56, 12-Apr-2016
1774,Revenue,CAHD,Bed Purchasing - South,Permanent Nursing,Saffron Gardens Nursing Home,1901.42, 12-Apr-2016
1775,Revenue,CAHD,Bed Purchasing - South,Permanent Residential,Saffron Gardens Nursing Home,1315.86, 12-Apr-2016
1776,Revenue,CAHD,Bed Purchasing - South,Permanent Nursing,Saffron Gardens Nursing Home,3027.91, 12-Apr-2016
1777,Revenue,CAHD,Bed Purchasing - South,Permanent Nursing,Saffron Gardens Nursing Home,1778.84, 12-Apr-2016
1778,Revenue,CAHD,Bed Purchasing - South,Permanent Residential,Salters Hill Barn,2044.04, 12-Apr-2016
1779,Revenue,CAHD,Bed Purchasing - Southmead Hospital,Permanent Residential,Sanctuary Care Ltd,1932.58, 12-Apr-2016
1780,Revenue,CAHD,Learning Difficulties PSL,Rent,Individual,1650.00, 01-Apr-2016
1781,Revenue,CAHD,Learning Difficulties PSL,Rent,Individual,1650.00, 29-Apr-2016
1782,Revenue,CAHD,Woodleaze,"Provisions (Food, etc)",School Milk Services Limited,586.30, 06-Apr-2016
1783,Revenue,CAHD,Woodleaze,"Provisions (Food, etc)",School Milk Services Limited,583.50, 06-Apr-2016
1784,Revenue,CAHD,Woodleaze,"Provisions (Food, etc)",School Milk Services Limited,596.50, 29-Apr-2016
1785,Revenue,CAHD,Bed Purchasing - South,Permanent Residential,Scope   Accounts Dept,3130.72, 12-Apr-2016
1786,Revenue,CAHD,Supporting People Programme,Grants to Voluntary Bodies,Second Step Housing Association,27569.35, 11-Apr-2016
1787,Revenue,CAHD,Supporting People Programme,Grants to Voluntary Bodies,Second Step Housing Association,24335.50, 11-Apr-2016
1788,Revenue,CAHD,Supporting People Programme,Grants to Voluntary Bodies,Second Step Housing Association,27569.33, 29-Apr-2016
1789,Revenue,CAHD,Supporting People Programme,Grants to Voluntary Bodies,Second Step Housing Association,24335.50, 29-Apr-2016
1790,Revenue,CAHD,Home Care - Elderly - North,Other Small Contracts,SeeAbility,1941.93, 22-Apr-2016
1791,Revenue,CAHD,Home Care - Elderly - North,Other Small Contracts,SeeAbility,1341.77, 22-Apr-2016
1792,Revenue,CAHD,Home Care - Elderly - North,Other Small Contracts,SeeAbility,9909.68, 22-Apr-2016
1793,Revenue,CAHD,Home Care - Elderly - North,Other Small Contracts,SeeAbility,1444.82, 28-Apr-2016
1794,Revenue,CAHD,Home Care - Elderly - North,Other Small Contracts,SeeAbility,1583.60, 29-Apr-2016
1795,Revenue,CAHD,Home Care - Elderly - North,Other Small Contracts,SeeAbility,1774.74, 28-Apr-2016
1796,Revenue,CAHD,Home Care - Elderly - North,Other Small Contracts,SeeAbility,9909.68, 28-Apr-2016
1797,Revenue,CAHD,Home Care - Elderly - North,Other Small Contracts,SeeAbility,1087.12, 28-Apr-2016
1798,Revenue,CAHD,Home Care - Elderly - North,Other Small Contracts,SeeAbility,915.92, 28-Apr-2016
1799,Revenue,CAHD,Home Care - Elderly - North,Other Small Contracts,SeeAbility,1198.40, 28-Apr-2016
1800,Revenue,CAHD,Home Care - Elderly - North,Other Small Contracts,SeeAbility,1275.44, 28-Apr-2016
1801,Revenue,CAHD,Home Care - Elderly - North,Other Small Contracts,SeeAbility,1138.48, 29-Apr-2016
1802,Revenue,CAHD,Home Care - Elderly - North,Other Small Contracts,SeeAbility,1215.52, 29-Apr-2016
1803,Revenue,CAHD,Home Care - Elderly - South,Day Care / Social Activities,Selborne Care Ltd,548.25, 06-Apr-2016
1804,Revenue,CAHD,Home Care - Elderly - South,Other Small Contracts,Selborne Care Ltd,68.00, 06-Apr-2016
1805,Revenue,CAHD,Home Care - Elderly - South,Supported Living,Selborne Care Ltd,1479.00, 06-Apr-2016
1806,Revenue,CAHD,Home Care - Elderly - North,Day Care / Social Activities,Selborne Care Ltd,340.00, 06-Apr-2016
1807,Revenue,CAHD,Home Care - Elderly - South,Day Care / Social Activities,Selborne Care Ltd,799.00, 13-Apr-2016
1808,Revenue,CAHD,Home Care - Elderly - South,Other Small Contracts,Selborne Care Ltd,68.00, 13-Apr-2016
1809,Revenue,CAHD,Home Care - Elderly - South,Supported Living,Selborne Care Ltd,1615.00, 13-Apr-2016
1810,Revenue,CAHD,Home Care - Elderly - North,Day Care / Social Activities,Selborne Care Ltd,552.50, 13-Apr-2016
1811,Revenue,CAHD,Home Care - Elderly - North,Supported Living,Selborne Care Ltd,102.00, 13-Apr-2016
1812,Revenue,CAHD,Home Care - Elderly - South,Day Care / Social Activities,Selborne Care Ltd,731.00, 13-Apr-2016
1813,Revenue,CAHD,Home Care - Elderly - South,Supported Living,Selborne Care Ltd,1513.00, 13-Apr-2016
1814,Revenue,CAHD,Home Care - Elderly - North,Day Care / Social Activities,Selborne Care Ltd,552.50, 13-Apr-2016
1815,Revenue,CAHD,Home Care - Elderly - North,Supported Living,Selborne Care Ltd,102.00, 13-Apr-2016
1816,Revenue,CAHD,Home Care - Elderly - South,Day Care / Social Activities,Selborne Care Ltd,731.00, 13-Apr-2016
1817,Revenue,CAHD,Home Care - Elderly - South,Other Small Contracts,Selborne Care Ltd,68.00, 13-Apr-2016
1818,Revenue,CAHD,Home Care - Elderly - South,Supported Living,Selborne Care Ltd,1542.75, 13-Apr-2016
1819,Revenue,CAHD,Home Care - Elderly - North,Day Care / Social Activities,Selborne Care Ltd,565.25, 13-Apr-2016
1820,Revenue,CAHD,Home Care - Elderly - North,Supported Living,Selborne Care Ltd,102.00, 13-Apr-2016
1821,Revenue,CAHD,Home Care - Elderly - South,Day Care / Social Activities,Selborne Care Ltd,735.25, 19-Apr-2016
1822,Revenue,CAHD,Home Care - Elderly - South,Supported Living,Selborne Care Ltd,1627.75, 19-Apr-2016
1823,Revenue,CAHD,Home Care - Elderly - North,Day Care / Social Activities,Selborne Care Ltd,552.50, 19-Apr-2016
1824,Revenue,CAHD,Home Care - Elderly - North,Supported Living,Selborne Care Ltd,102.00, 19-Apr-2016
1825,Revenue,CAHD,Home Care - Elderly - South,Supported Living,Selborrne House,3491.36, 12-Apr-2016
1826,Revenue,CAHD,Home Care - Elderly - South,Supported Living,Selborrne House,3491.36, 12-Apr-2016
1827,Revenue,CAHD,Home Care - Elderly - South,Supported Living,Selborrne House,1820.92, 12-Apr-2016
1828,Revenue,CAHD,Bed Purchasing - South,Permanent Residential,Shaldon House (Positive Care Ltd),2269.54, 12-Apr-2016
1829,Revenue,CAHD,Bed Purchasing - South,Permanent Nursing,Shaw Healthcare Ltd,1065.60, 12-Apr-2016
1830,Revenue,CAHD,Bed Purchasing - South,Permanent Nursing,Shaw Healthcare Ltd,1055.36, 12-Apr-2016
1831,Revenue,CAHD,Bed Purchasing - South,Permanent Nursing,Shaw Healthcare Ltd,1063.52, 12-Apr-2016
1832,Revenue,CAHD,Bed Purchasing - South,Permanent Nursing,Shaw Healthcare Ltd,1050.44, 12-Apr-2016
1833,Revenue,CAHD,Bed purchasing - S28A Under 65 - South,Permanent Residential,Shaw Healthcare Ltd,10069.04, 12-Apr-2016
1834,Revenue,CAHD,Bed purchasing - S28A Under 65 - South,Permanent Residential,Shaw Healthcare Ltd,9927.64, 12-Apr-2016
1835,Revenue,CAHD,Bed Purchasing - South,Permanent Residential,Shaw Healthcare Ltd,10083.84, 12-Apr-2016
1836,Revenue,CAHD,Bed Purchasing - South,Permanent Residential,Shaw Healthcare Ltd,4023.52, 12-Apr-2016
1837,Revenue,CAHD,Bed Purchasing - S28A - Over 65- North,Permanent Residential,Shaw Healthcare Ltd,2194.88, 12-Apr-2016
1838,Revenue,CAHD,Bed Purchasing - S28A - Over 65- North,Permanent Residential,Shaw Healthcare Ltd,2162.72, 12-Apr-2016
1839,Revenue,CAHD,Bed Purchasing - S28A - Over 65- North,Permanent Residential,Shaw Healthcare Ltd,2202.66, 12-Apr-2016
1840,Revenue,CAHD,Bed Purchasing - S28A - Over 65- North,Permanent Residential,Shaw Healthcare Ltd,2180.06, 12-Apr-2016
1841,Revenue,CAHD,Bed Purchasing - LD S28A- Over 65- South,Permanent Residential,Shaw Healthcare Ltd,4562.60, 12-Apr-2016
1842,Revenue,CAHD,Bed Purchasing - S28A - Over 65- North,Permanent Residential,Shaw Healthcare Ltd,6937.40, 12-Apr-2016
1843,Revenue,CAHD,Bed Purchasing - North,Permanent Residential,Shaw Healthcare Ltd,4211.86, 12-Apr-2016
1844,Revenue,CAHD,Bed Purchasing - Elderly S117- North,Permanent Nursing,Shaw Healthcare Ltd,2891.52, 12-Apr-2016
1845,Revenue,CAHD,Housing Needs,Training Expenses,Shelter Training,990.00, 07-Apr-2016
1846,Revenue,CAHD,Older People's Commissioned Se,Grants to Voluntary Bodies,Shopmobility South Gloucestershire,1125.00, 05-Apr-2016
1847,Revenue,CAHD,Supported Living - South,Private & Voluntary Home Care,Silva Care Limited,4415.44, 13-Apr-2016
1848,Revenue,CAHD,Purchase of Non-Res Care - North,Day Care / Social Activities,Silva Care Limited,5359.36, 13-Apr-2016
1849,Revenue,CAHD,Bed Purchasing - Elderly S117- North,Respite Planned - Residential,Smallcombe House,2953.94, 12-Apr-2016
1850,Revenue,CAHD,Home Care - Elderly - North,Supported Living,Smile Ind Living Support Limited,3060.80, 12-Apr-2016
1851,Revenue,CAHD,Home Care - Elderly - North,Supported Living,Smile Ind Living Support Limited,3060.80, 12-Apr-2016
1852,Revenue,CAHD,Home Care - Elderly - North,Supported Living,Smile Ind Living Support Limited,3060.80, 12-Apr-2016
1853,Revenue,CAHD,Home Care - Elderly - South,Day Care / Social Activities,Smile Independent Living Support Limited,308.22, 06-Apr-2016
1854,Revenue,CAHD,Home Care - Elderly - South,Other Small Contracts,Smile Independent Living Support Limited,149.44, 06-Apr-2016
1855,Revenue,CAHD,Home Care - Elderly - North,Day Care / Social Activities,Smile Independent Living Support Limited,663.14, 06-Apr-2016
1856,Revenue,CAHD,Home Care - Elderly - North,Supported Living,Smile Independent Living Support Limited,210.15, 06-Apr-2016
1857,Revenue,CAHD,Home Care - Elderly - South,Day Care / Social Activities,Smile Independent Living Support Limited,308.22, 13-Apr-2016
1858,Revenue,CAHD,Home Care - Elderly - South,Other Small Contracts,Smile Independent Living Support Limited,210.15, 13-Apr-2016
1859,Revenue,CAHD,Home Care - Elderly - North,Day Care / Social Activities,Smile Independent Living Support Limited,663.14, 13-Apr-2016
1860,Revenue,CAHD,Home Care - Elderly - North,Supported Living,Smile Independent Living Support Limited,210.15, 13-Apr-2016
1861,Revenue,CAHD,Home Care - Elderly - South,Day Care / Social Activities,Smile Independent Living Support Limited,308.22, 21-Apr-2016
1862,Revenue,CAHD,Home Care - Elderly - South,Other Small Contracts,Smile Independent Living Support Limited,322.23, 21-Apr-2016
1863,Revenue,CAHD,Home Care - Elderly - North,Day Care / Social Activities,Smile Independent Living Support Limited,663.14, 21-Apr-2016
